Workbook

Sheet Overview
B2: Overview
B4: Purpose for the Spreadsheet
B5: - Fuel Adjustment
B6: · Computes payment adjustment for fuel price changes
B7: ·The Aviation Special Provision 109A (ASP 109A) requires the use of this tool to calculate the Fuel adjustment for all Tennessee Aeronautics Division projects that include the special provision
B8: ·Refer to Fuel Indexing Payment Adjustment One Pager on TAD Website
B9: - Bituminous Materials Adjustment
B10: ·Computes price adjustment for items using Bituminous materials
B11: ·The Aviation Special Provision 109B (ASP 109B) requires the use of this tool to calculate the bituminous adjustment for all Tennessee Aeronautics Division projects that include the special provision
B12: ·Refer to Bituminous Indexing Payment Adjustment One Pager on TAD Website
B13: Why use the Spreadsheet?
B14: ·Calculates additional compensation to the prime contractor or cost savings to Airport Sponsors (Owners) depending on cost fluctuations
B15: ·Promotes risk sharing for contractors and project sponsors
B16: ·Reduce risks and uncertainty for contractors and project sponsors due to petroleum price volatility
B18: What items are applicable to the special provision and this spreadsheet?
B19: - Fuel Adjustment
B20: · Excavation and embankment items
B21: · Aggregate Base
B22: · Bituminous mix base and surface
B23: · Portland cement concrete
B24: · Other items as outlined in the ASP 109A
B25: - Bituminous Materials Adjustment
B26: ·Virgin asphalt mixtures
B27: ·Asphalt mixtures containing reclaimed asphalt pavement (RAP)
B28: ·Asphalt cement
B29: ·Asphalt emulsion
B30: ·Prime and Tack Coats
B31: ·Bituminous materials used for paving and surface treatments
B33: Questions?
B34: ·Reach out to assigned TDOT Aeronautics Division Project Manager with any questions

Sheet Start
B2: About this Spreadsheet
B3: Tab Description
B4: Different sheets, or tabs, both provide information about the function of this spreadsheet and are where inputs are entered and outputs are displayed. A brief description of each tab follows:
B5: • Overview tab – An introduction to the tool’s purpose and application according to the applicable special provision.
B6: • Item Lists tab – A table of typical items used in Tennessee Aeronautics Division (TAD) contracts to which cost adjustments are applied. These items are referenced in either the ASP 109A or ASP 109B special provisions based their applicability for either fuel or bituminous adjustment or both.
B7: • Fuel Index Calculations tab – A spreadsheet where fuel adjustments are calculated for each applicable item accepted during the pay estimate period using project information provided by the contract and project records.
B8: • Bit Index Calculations tab – A spreadsheet where bituminous adjustments are calculated for each applicable item accepted during the pay estimate period using project information provided by the contract and project records.
B9: • Summary tab – A project history of price adjustments based on accepted quantities of work for each estimate for fuel and bituminous material adjustments.
B11: Instructions for Adjustment Calculation
B12: The following step-by-step procedures are provided to assist in using the workbook and in understanding how the series of worksheets fit together. Be sure to follow these directions in sequence to allow the calculations to work properly. Avoid using the cut and paste feature as this can write over any functions, commands, or equations. Make sure to “Enable Content” in Excel when the file is opened so that functions work properly.
B13: 1. Update the item list in the "Item Lists" worksheet according to the scope of the project. Use either the "Add Items" button, which should open a form to fill, or manually enter information into the last row of the list. The form contains additional instructions to complete. If entering information manually, please check pop up notes on each column headings for additional instructions. The list is dynamic, so all cells that are dependent on the list are updated automatically. Each item row may be edited to fit specific items in the contract. Information can be edited, deleted, or updated. Note: This step is completed at the beginning of the project.
B14: 2. Go to the Project Information tab worksheet and enter the relevant information in cells E5 through E15. This is general information (such as the Project ID, TAD Proj. No., and so on), the bid fuel index (bid date, fuel index and fuel price) and bituminous index (Bid date and bid index) needed to identify the project and to complete the cost adjustment computations. If any of the items are not applicable, enter zero. If the project applies to multiple airports, enter Multiple as Airport ID and enter the Airport Names, Regions, and County names manually. Note: This information is project specific and should only require entry at the beginning of the project. The project information entered should automatically populate the project information in the "Bit Index Calculations" and "Fuel Index Calculations" spreadsheet.
B15: -Fuel Adjustment (ASP 109A)
B16: 3. Go to the 'Fuel Index' section in the "Fuel Index Calculations" worksheet and enter the relevant items in cells I7 to I9. The TDOT Fuel Index Information can be obtained using the source file links in the cell titles. Also enter the pay estimate date for the corresponding pay adjustment and the pay estimate number. Note: These components of the adjustment are likely to change each month with changing Fuel index values.
B17: 4. In the "Fuel Index Calculations" worksheet, enter the project-specific item information in the item table. More information for entering the table values are found as pop-up instructions in the column headings.
B18: 5. In the "Fuel Index Calculations" worksheet, enter the date of the estimate in Row 14. The cost adjustment is summarized in Row 15. Enter the user's name in row 16.
B19: 6. After all inputs in the "Fuel Index Calculations" worksheet are entered, click on the "Print Summary" button and the itemized results will be exported to the "Summary" tab .
B20: 7. Press 'CTRL'+'P' to print the "Fuel Index Calculations" worksheet. The print settings are set to print the "Fuel Index Calculations" worksheet of all fuel adjustment items included.
B21: -Bituminous Material Adjustment (ASP 109B)
B22: 8. Then go to the "Bituminous Index" section in the "Bit Index Calculations" worksheet and enter the relevant items in cells I6 to I8. The TDOT Bituminous Index Information can be obtained using the source file links in the cell titles. Also enter the pay estimate date for the corresponding pay adjustment and the pay estimate number. Note: These components of the adjustment are likely to change each month with changing bituminous index values.
B23: 9. In the "Bit Index Calculations" worksheet, enter the project-specific item information in either the Virgin or Recycled Mix table. A summary of the tables is included below. Links to the applicable FAA advisory circulars (when available) are provided, but users should also consider the project specifications to complete the item descriptions and terms. More information for entering the table values are found as pop-up instructions in the column headings.
B24: Payment Adjustment 1 - Virgin Mix (Row 19 to 55)
B25: • Table 1- P-4.. FAA Flexible Pavements (Virgin)
B26: • Table 2 - P-6.. FAA Surface Treatments
B27: • Table 3 - P-6.. FAA Prime and Tack Coats
B28: Payment Adjustment 2 - Recycled Mix (Row 56 - 64)
B29: • Table 4-P-4.. Recycled Bituminous Material
B30: 10. In the "Bit Index Calculations" worksheet, enter the date of the estimate in Row 14. The cost adjustment is summarized in Row 15. Enter the user's name in row 16.
B31: 11. After all inputs in the "Bit Index Calculations" worksheet are entered, click on the "Print Summary" button and the itemized results will be exported to the "Summary" tab .
B32: 12. Press 'CTRL'+'P' to print the "Bit Index Calculation" worksheet. The print settings are set to print the "Bit Index Calculations" worksheet as a two-page summary of all bituminous adjustment items included.
B33: -Summary
B34: 13. In the "Summary" sheet, calculated pay adjustments are added, and the a running total is calculated starting from the first estimate. The sheet also contains a list of items that had price adjustments and the corresponding adjustment amounts.
B36: Note:
B37: • In the "Bit Index Calculations" tab, "Fuel Index Calculations" tab and "Summary" tabs, in order to delete cells, select the cells and press 'delete'. Only specified cells (Highlighted in a note in the respective tabs) can be deleted. The protection in the sheets prevents deleting non input cells. Alternatively, a 'Clear' button can be used in the calculation and summary sheets to clear all specified cells to begin with a blank page.
B38: • Please perform any updates on the item description in the "Item Lists" tab.
B39: • Read the pop up instructions in each column heading in the tables before filling out the details.
B40: • For recycled bituminous materials, the payment adjustment formulas account for the appropriate pay adjustment process.
B41: • Fuel adjustment and Bituminous adjustments are calculated only if the variation is more than 5 percent in accordance with the TAD special provisions.
B42: • This spreadsheet makes the process of adding items and calculations easier; however, if the programming of the sheet needs to be updated, the hidden sheet - "Sheet1"- contains the cells/arrays/information that feed into the main workbook. The description for each table in the hidden sheet is listed in comments at the heading.
B43: • Additional instructions have been provided in column A in the "Bit Index Calculations" and "Fuel Index Calculations" worksheet.
B44: • If there are any issues with or questions about the use of the workbook, please contact the TAD Project Manager.
B45: • Estimated Residue Table - Refer this table to fill in the estimated residue field in "Item Lists" tab.

Sheet Project Information
B2: Project Information
C5: Project Title
C6: TAD Proj. No.
C7: Airport ID
C8: Airport Name | E8: =_xlfn.IFNA(_xlfn.SWITCH(E7,"Multiple","Enter value manually",_xlfn.XLOOKUP($E$7,Sheet1!$AC$4:$AC$81,Sheet1!$AD$4:$AD$81,"")),"") -> 0
C9: County | E9: =_xlfn.IFNA(_xlfn.SWITCH(E7,"Multiple","Enter value manually",_xlfn.XLOOKUP($E$7,Sheet1!$AC$4:$AC$81,Sheet1!$AE$4:$AE$81,"")),"") -> 0
C10: Region | E10: =_xlfn.IFNA(_xlfn.SWITCH(E7,"Multiple","Enter value manually",_xlfn.XLOOKUP($E$7,Sheet1!$AC$4:$AC$81,Sheet1!$AF$4:$AF$81,"")),"") -> 0
C11: Prime Contractor
C12: Base Bidding Date
C13: Fuel Bidding Value (gal)
C14: Fuel Price ($/ Gallon)
C15: Bituminous Bidding Index ($/ton)

Sheet Item Lists
A1: LIST OF ITEMS
A2: Serial Number | B2: Item Number | C2: Descriptions | D2: Treatment Type | E2: Virgin/Recycled | F2: Application Number | G2: Estimated Application Rate (gal/sy) | H2: Estimated Volumetric Density (lb/gal) | I2: Estimated Residue (%) | J2: Unique ID | K2: Conversion factor (SY to TONS) | L2: Conversion factor (GAL to TONS) | M2: Fuel Factor | N2: Fuel Factor Unit of Measure
A3: 1 | B3: P-602-5.1-a | C3: Emulsified Asphalt Prime Coat | D3: FAA Prime and Tack Coats | E3: Virgin | F3: N/A | H3: 9 | I3: 54 | J3: =_xlfn.CONCAT(B3,F3) -> P-602-5.1-aN/A | K3: =IFERROR(_xlfn.SWITCH(F3,2,SUMPRODUCT(IF($B$3:$B$100=B3,1,0),IF($F$3:$F$100<=F3,1,0),$G$3:$G$100,$H$3:$H$100)/2000,3,SUMPRODUCT(IF($B$3:$B$100=B3,1,0),IF($F$3:$F$100<=F3,1,0),$G$3:$G$100,$H$3:$H$100)/2000,IF(G3="",1,G3)*H3/2000),"N/A") -> 0.0045 | L3: =IFERROR(H3/2000,"N/A") -> 0.0045 | M3: N/A | N3: N/A
A4: 2 | B4: P-603-5.1-a | C4: Emulsified Asphalt Tack Coat | D4: FAA Prime and Tack Coats | E4: Virgin | F4: N/A | H4: 9 | I4: 63 | J4: P-603-5.1-aN/A | K4: =IFERROR(_xlfn.SWITCH(F4,2,SUMPRODUCT(IF($B$3:$B$100=B4,1,0),IF($F$3:$F$100<=F4,1,0),$G$3:$G$100,$H$3:$H$100)/2000,3,SUMPRODUCT(IF($B$3:$B$100=B4,1,0),IF($F$3:$F$100<=F4,1,0),$G$3:$G$100,$H$3:$H$100)/2000,IF(G4="",1,G4)*H4/2000),"N/A") -> 0.0045 | L4: 0.0045 | M4: N/A | N4: N/A
A5: 3 | B5: P-602-5.1-b | C5: Emulsified Asphalt Prime Coat | D5: FAA Prime and Tack Coats | E5: Virgin | F5: N/A | H5: 9 | I5: 54 | J5: 0.0045 | K5: 0.0045 | L5: N/A | M5: N/A
A6: 4 | B6: P-603-5.1-b | C6: Emulsified Asphalt Tack Coat | D6: FAA Prime and Tack Coats | E6: Virgin | F6: N/A | H6: 9 | I6: 63 | J6: 0.0045 | K6: 0.0045 | L6: N/A | M6: N/A
A7: 5 | B7: P-608-8.1-a | C7: Emulsified Asphalt Surface Treatment | D7: FAA Surface Treatments | E7: Virgin | F7: 1 | G7: 0.135 | H7: 9 | I7: 28.5 | J7: P-608-8.1-a1 | K7: =IFERROR(_xlfn.SWITCH(F7,2,SUMPRODUCT(IF($B$3:$B$100=B7,1,0),IF($F$3:$F$100<=F7,1,0),$G$3:$G$100,$H$3:$H$100)/2000,3,SUMPRODUCT(IF($B$3:$B$100=B7,1,0),IF($F$3:$F$100<=F7,1,0),$G$3:$G$100,$H$3:$H$100)/2000,IF(G7="",1,G7)*H7/2000),"N/A") -> 0.0006075 | L7: 0.0045 | M7: N/A | N7: N/A
A8: 6 | B8: P-608-R-8.1-a | C8: Rapid Cure Seal Coat | D8: FAA Surface Treatments | E8: Virgin | F8: 1 | G8: 0.115 | H8: 9 | I8: 37.5 | J8: P-608-R-8.1-a1 | K8: =IFERROR(_xlfn.SWITCH(F8,2,SUMPRODUCT(IF($B$3:$B$100=B8,1,0),IF($F$3:$F$100<=F8,1,0),$G$3:$G$100,$H$3:$H$100)/2000,3,SUMPRODUCT(IF($B$3:$B$100=B8,1,0),IF($F$3:$F$100<=F8,1,0),$G$3:$G$100,$H$3:$H$100)/2000,IF(G8="",1,G8)*H8/2000),"N/A") -> 0.0005175 | L8: 0.0045 | M8: N/A | N8: N/A
A9: 7 | B9: P-609-5.1-a | C9: Asphalt Cement, Type 1 Chip Seal | D9: FAA Surface Treatments | E9: Virgin | F9: N/A | G9: 0.4 | H9: 7.71 | I9: 100 | J9: P-609-5.1-aN/A | K9: =IFERROR(_xlfn.SWITCH(F9,2,SUMPRODUCT(IF($B$3:$B$100=B9,1,0),IF($F$3:$F$100<=F9,1,0),$G$3:$G$100,$H$3:$H$100)/2000,3,SUMPRODUCT(IF($B$3:$B$100=B9,1,0),IF($F$3:$F$100<=F9,1,0),$G$3:$G$100,$H$3:$H$100)/2000,IF(G9="",1,G9)*H9/2000),"N/A") -> 0.001542 | L9: 0.003855 | M9: N/A | N9: N/A
A10: 8 | B10: P-609-5.2-a | C10: Emulsified Asphalt, Type 1 Chip Seal | D10: FAA Surface Treatments | E10: Virgin | F10: N/A | G10: 0.45 | H10: 9 | I10: 69 | J10: P-609-5.2-aN/A | K10: =IFERROR(_xlfn.SWITCH(F10,2,SUMPRODUCT(IF($B$3:$B$100=B10,1,0),IF($F$3:$F$100<=F10,1,0),$G$3:$G$100,$H$3:$H$100)/2000,3,SUMPRODUCT(IF($B$3:$B$100=B10,1,0),IF($F$3:$F$100<=F10,1,0),$G$3:$G$100,$H$3:$H$100)/2000,IF(G10="",1,G10)*H10/2000),"N/A") -> 0.002025 | L10: 0.0045 | M10: N/A | N10: N/A
A11: 9 | B11: P-623-8.1-a | C11: Emulsified Asphalt Spray Seal Coat | D11: FAA Surface Treatments | E11: Virgin | F11: 1 | G11: 0.17 | H11: 9 | I11: 44 | J11: =_xlfn.CONCAT(B11,F11) -> P-623-8.1-a1 | K11: =IFERROR(_xlfn.SWITCH(F11,2,SUMPRODUCT(IF($B$3:$B$100=B11,1,0),IF($F$3:$F$100<=F11,1,0),$G$3:$G$100,$H$3:$H$100)/2000,3,SUMPRODUCT(IF($B$3:$B$100=B11,1,0),IF($F$3:$F$100<=F11,1,0),$G$3:$G$100,$H$3:$H$100)/2000,IF(G11="",1,G11)*H11/2000),"N/A") -> 0.000765 | L11: 0.0045 | M11: N/A | N11: N/A
A12: 10 | B12: P-623-8.1-a | C12: Emulsified Asphalt Spray Seal Coat | D12: FAA Surface Treatments | E12: Virgin | F12: 2 | G12: 0.15 | H12: 9 | I12: 44 | J12: =_xlfn.CONCAT(B12,F12) -> P-623-8.1-a2 | K12: =IFERROR(_xlfn.SWITCH(F12,2,SUMPRODUCT(IF($B$3:$B$100=B12,1,0),IF($F$3:$F$100<=F12,1,0),$G$3:$G$100,$H$3:$H$100)/2000,3,SUMPRODUCT(IF($B$3:$B$100=B12,1,0),IF($F$3:$F$100<=F12,1,0),$G$3:$G$100,$H$3:$H$100)/2000,IF(G12="",1,G12)*H12/2000),"N/A") -> 0.00144 | L12: 0.0045 | M12: N/A | N12: N/A
A13: 11 | B13: P-623-8.1-a | C13: Emulsified Asphalt Spray Seal Coat | D13: FAA Surface Treatments | E13: Virgin | F13: 3 | G13: 0.115 | H13: 9 | I13: 44 | J13: P-623-8.1-a3 | K13: =IFERROR(_xlfn.SWITCH(F13,2,SUMPRODUCT(IF($B$3:$B$100=B13,1,0),IF($F$3:$F$100<=F13,1,0),$G$3:$G$100,$H$3:$H$100)/2000,3,SUMPRODUCT(IF($B$3:$B$100=B13,1,0),IF($F$3:$F$100<=F13,1,0),$G$3:$G$100,$H$3:$H$100)/2000,IF(G13="",1,G13)*H13/2000),"N/A") -> 0.0019575 | L13: 0.0045 | M13: N/A | N13: N/A
A14: 12 | B14: P-626-6.1-a | C14: Emulsified Asphalt for Slurry Coat | D14: FAA Surface Treatments | E14: Virgin | F14: N/A | H14: 9 | I14: 65 | J14: P-626-6.1-aN/A | K14: =IFERROR(_xlfn.SWITCH(F14,2,SUMPRODUCT(IF($B$3:$B$100=B14,1,0),IF($F$3:$F$100<=F14,1,0),$G$3:$G$100,$H$3:$H$100)/2000,3,SUMPRODUCT(IF($B$3:$B$100=B14,1,0),IF($F$3:$F$100<=F14,1,0),$G$3:$G$100,$H$3:$H$100)/2000,IF(G14="",1,G14)*H14/2000),"N/A") -> 0.0045 | L14: 0.0045 | M14: N/A | N14: N/A
A15: 13 | B15: P-626-6.3-a | C15: Emulsified Asphalt for Slurry Coat Tack | D15: FAA Surface Treatments | E15: Virgin | F15: N/A | G15: 0.1 | H15: 9 | I15: 63 | J15: P-626-6.3-aN/A | K15: =IFERROR(_xlfn.SWITCH(F15,2,SUMPRODUCT(IF($B$3:$B$100=B15,1,0),IF($F$3:$F$100<=F15,1,0),$G$3:$G$100,$H$3:$H$100)/2000,3,SUMPRODUCT(IF($B$3:$B$100=B15,1,0),IF($F$3:$F$100<=F15,1,0),$G$3:$G$100,$H$3:$H$100)/2000,IF(G15="",1,G15)*H15/2000),"N/A") -> 0.00045 | L15: 0.0045 | M15: N/A | N15: N/A
A16: 14 | B16: P-626-6.1-b | C16: Emulsified Asphalt for Slurry Coat | D16: FAA Surface Treatments | E16: Virgin | F16: N/A | H16: 9 | I16: 65 | J16: =_xlfn.CONCAT(B16,F16) -> P-626-6.1-bN/A | K16: =IFERROR(_xlfn.SWITCH(F16,2,SUMPRODUCT(IF($B$3:$B$100=B16,1,0),IF($F$3:$F$100<=F16,1,0),$G$3:$G$100,$H$3:$H$100)/2000,3,SUMPRODUCT(IF($B$3:$B$100=B16,1,0),IF($F$3:$F$100<=F16,1,0),$G$3:$G$100,$H$3:$H$100)/2000,IF(G16="",1,G16)*H16/2000),"N/A") -> 0.0045 | L16: =IFERROR(H16/2000,"N/A") -> 0.0045 | M16: N/A | N16: N/A
A17: 15 | B17: P-626-6.3-b | C17: Emulsified Asphalt for Slurry Coat Tack | D17: FAA Surface Treatments | E17: Virgin | F17: N/A | G17: 0.1 | H17: 9 | I17: 63 | J17: P-626-6.3-bN/A | K17: =IFERROR(_xlfn.SWITCH(F17,2,SUMPRODUCT(IF($B$3:$B$100=B17,1,0),IF($F$3:$F$100<=F17,1,0),$G$3:$G$100,$H$3:$H$100)/2000,3,SUMPRODUCT(IF($B$3:$B$100=B17,1,0),IF($F$3:$F$100<=F17,1,0),$G$3:$G$100,$H$3:$H$100)/2000,IF(G17="",1,G17)*H17/2000),"N/A") -> 0.00045 | L17: 0.0045 | M17: N/A | N17: N/A
A18: 16 | B18: P-401-8.6-a | C18: State Aviation Asphalt Surface Course | D18: FAA Flexible Pavements | E18: Virgin | F18: N/A | I18: 100 | J18: P-401-8.6-aN/A | K18: =IFERROR(_xlfn.SWITCH(F18,2,SUMPRODUCT(IF($B$3:$B$100=B18,1,0),IF($F$3:$F$100<=F18,1,0),$G$3:$G$100,$H$3:$H$100)/2000,3,SUMPRODUCT(IF($B$3:$B$100=B18,1,0),IF($F$3:$F$100<=F18,1,0),$G$3:$G$100,$H$3:$H$100)/2000,IF(G18="",1,G18)*H18/2000),"N/A") -> 0 | L18: 0 | M18: N/A | N18: N/A
A19: 17 | B19: P-401-8.7-a | C19: State Aviation Asphalt Surface Course w/ RAP | D19: FAA Flexible Pavements | E19: Recycled | F19: N/A | I19: 100 | J19: P-401-8.7-aN/A | K19: =IFERROR(_xlfn.SWITCH(F19,2,SUMPRODUCT(IF($B$3:$B$100=B19,1,0),IF($F$3:$F$100<=F19,1,0),$G$3:$G$100,$H$3:$H$100)/2000,3,SUMPRODUCT(IF($B$3:$B$100=B19,1,0),IF($F$3:$F$100<=F19,1,0),$G$3:$G$100,$H$3:$H$100)/2000,IF(G19="",1,G19)*H19/2000),"N/A") -> 0 | L19: 0 | M19: N/A | N19: N/A
A20: 18 | B20: P-609-5.1-b | C20: Asphalt Cement, Type 2 Chip Seal | D20: FAA Surface Treatments | E20: Virgin | F20: N/A | G20: 0.2 | H20: 7.71 | I20: 100 | J20: P-609-5.1-bN/A | K20: =IFERROR(_xlfn.SWITCH(F20,2,SUMPRODUCT(IF($B$3:$B$100=B20,1,0),IF($F$3:$F$100<=F20,1,0),$G$3:$G$100,$H$3:$H$100)/2000,3,SUMPRODUCT(IF($B$3:$B$100=B20,1,0),IF($F$3:$F$100<=F20,1,0),$G$3:$G$100,$H$3:$H$100)/2000,IF(G20="",1,G20)*H20/2000),"N/A") -> 0.000771 | L20: 0.003855 | M20: N/A | N20: N/A
A21: 19 | B21: P-609-5.2-b | C21: Emulsified Asphalt, Type 2 Chip Seal | D21: FAA Surface Treatments | E21: Virgin | F21: N/A | G21: 0.28 | H21: 9 | I21: 69 | J21: P-609-5.2-bN/A | K21: =IFERROR(_xlfn.SWITCH(F21,2,SUMPRODUCT(IF($B$3:$B$100=B21,1,0),IF($F$3:$F$100<=F21,1,0),$G$3:$G$100,$H$3:$H$100)/2000,3,SUMPRODUCT(IF($B$3:$B$100=B21,1,0),IF($F$3:$F$100<=F21,1,0),$G$3:$G$100,$H$3:$H$100)/2000,IF(G21="",1,G21)*H21/2000),"N/A") -> 0.00126 | L21: 0.0045 | M21: N/A | N21: N/A
A22: 20 | B22: P-609-5.2-c | C22: Emulsified Asphalt, Type 3 Chip Seal | D22: FAA Surface Treatments | E22: Virgin | F22: N/A | G22: 0.18 | H22: 9 | I22: 69 | J22: P-609-5.2-cN/A | K22: =IFERROR(_xlfn.SWITCH(F22,2,SUMPRODUCT(IF($B$3:$B$100=B22,1,0),IF($F$3:$F$100<=F22,1,0),$G$3:$G$100,$H$3:$H$100)/2000,3,SUMPRODUCT(IF($B$3:$B$100=B22,1,0),IF($F$3:$F$100<=F22,1,0),$G$3:$G$100,$H$3:$H$100)/2000,IF(G22="",1,G22)*H22/2000),"N/A") -> 0.00081 | L22: 0.0045 | M22: N/A | N22: N/A
A23: 21 | B23: P-152-4.1-a | C23: Any Road and Drainage Excavation | D23: Fuel Adjustment | E23: N/A | F23: N/A | G23: N/A | H23: N/A | I23: N/A | J23: P-152-4.1-aN/A | K23: =IFERROR(_xlfn.SWITCH(F23,2,SUMPRODUCT(IF($B$3:$B$100=B23,1,0),IF($F$3:$F$100<=F23,1,0),$G$3:$G$100,$H$3:$H$100)/2000,3,SUMPRODUCT(IF($B$3:$B$100=B23,1,0),IF($F$3:$F$100<=F23,1,0),$G$3:$G$100,$H$3:$H$100)/2000,IF(G23="",1,G23)*H23/2000),"N/A") -> N/A | L23: N/A | M23: 0.25 | N23: Cubic Yard
A24: 22 | B24: P-152-4.1-b | C24: Any Borrow Excavation (Rock) | D24: Fuel Adjustment | E24: N/A | F24: N/A | G24: N/A | H24: N/A | I24: N/A | J24: P-152-4.1-bN/A | K24: =IFERROR(_xlfn.SWITCH(F24,2,SUMPRODUCT(IF($B$3:$B$100=B24,1,0),IF($F$3:$F$100<=F24,1,0),$G$3:$G$100,$H$3:$H$100)/2000,3,SUMPRODUCT(IF($B$3:$B$100=B24,1,0),IF($F$3:$F$100<=F24,1,0),$G$3:$G$100,$H$3:$H$100)/2000,IF(G24="",1,G24)*H24/2000),"N/A") -> N/A | L24: N/A | M24: 0.36 | N24: Cubic Yard
A25: 23 | B25: P-152-4.1-c | C25: Any Borrow Excavation (Other than Solid Rock) | D25: Fuel Adjustment | E25: N/A | F25: N/A | G25: N/A | H25: N/A | I25: N/A | J25: P-152-4.1-cN/A | K25: =IFERROR(_xlfn.SWITCH(F25,2,SUMPRODUCT(IF($B$3:$B$100=B25,1,0),IF($F$3:$F$100<=F25,1,0),$G$3:$G$100,$H$3:$H$100)/2000,3,SUMPRODUCT(IF($B$3:$B$100=B25,1,0),IF($F$3:$F$100<=F25,1,0),$G$3:$G$100,$H$3:$H$100)/2000,IF(G25="",1,G25)*H25/2000),"N/A") -> N/A | L25: N/A | M25: 0.25 | N25: Cubic Yard
A26: 24 | B26: P-152-4.1-d | C26: Any Borrow Excavation (Rock) | D26: Fuel Adjustment | E26: N/A | F26: N/A | G26: N/A | H26: N/A | I26: N/A | J26: P-152-4.1-dN/A | K26: =IFERROR(_xlfn.SWITCH(F26,2,SUMPRODUCT(IF($B$3:$B$100=B26,1,0),IF($F$3:$F$100<=F26,1,0),$G$3:$G$100,$H$3:$H$100)/2000,3,SUMPRODUCT(IF($B$3:$B$100=B26,1,0),IF($F$3:$F$100<=F26,1,0),$G$3:$G$100,$H$3:$H$100)/2000,IF(G26="",1,G26)*H26/2000),"N/A") -> N/A | L26: N/A | M26: 0.16 | N26: Ton
A27: 25 | B27: P-152-4.1-e | C27: Any Borrow Excavation (Other than Solid Rock) | D27: Fuel Adjustment | E27: N/A | F27: N/A | G27: N/A | H27: N/A | I27: N/A | J27: P-152-4.1-eN/A | K27: =IFERROR(_xlfn.SWITCH(F27,2,SUMPRODUCT(IF($B$3:$B$100=B27,1,0),IF($F$3:$F$100<=F27,1,0),$G$3:$G$100,$H$3:$H$100)/2000,3,SUMPRODUCT(IF($B$3:$B$100=B27,1,0),IF($F$3:$F$100<=F27,1,0),$G$3:$G$100,$H$3:$H$100)/2000,IF(G27="",1,G27)*H27/2000),"N/A") -> N/A | L27: N/A | M27: 0.11 | N27: Ton
A28: 26 | B28: P-152-4.1-f | C28: Undercutting | D28: Fuel Adjustment | E28: N/A | F28: N/A | G28: N/A | H28: N/A | I28: N/A | J28: P-152-4.1-fN/A | K28: =IFERROR(_xlfn.SWITCH(F28,2,SUMPRODUCT(IF($B$3:$B$100=B28,1,0),IF($F$3:$F$100<=F28,1,0),$G$3:$G$100,$H$3:$H$100)/2000,3,SUMPRODUCT(IF($B$3:$B$100=B28,1,0),IF($F$3:$F$100<=F28,1,0),$G$3:$G$100,$H$3:$H$100)/2000,IF(G28="",1,G28)*H28/2000),"N/A") -> N/A | L28: N/A | M28: 0.25 | N28: Cubic Yard
A29: 27 | B29: P-152-4.2-a | C29: Any Embankment (in-place) | D29: Fuel Adjustment | E29: N/A | F29: N/A | G29: N/A | H29: N/A | I29: N/A | J29: P-152-4.2-aN/A | K29: =IFERROR(_xlfn.SWITCH(F29,2,SUMPRODUCT(IF($B$3:$B$100=B29,1,0),IF($F$3:$F$100<=F29,1,0),$G$3:$G$100,$H$3:$H$100)/2000,3,SUMPRODUCT(IF($B$3:$B$100=B29,1,0),IF($F$3:$F$100<=F29,1,0),$G$3:$G$100,$H$3:$H$100)/2000,IF(G29="",1,G29)*H29/2000),"N/A") -> N/A | L29: N/A | M29: 0.25 | N29: Cubic Yard
A30: 28 | B30: P-207-5.2-a | C30: Any Aggregate Base | D30: Fuel Adjustment | E30: N/A | F30: N/A | G30: N/A | H30: N/A | I30: N/A | J30: P-207-5.2-aN/A | K30: =IFERROR(_xlfn.SWITCH(F30,2,SUMPRODUCT(IF($B$3:$B$100=B30,1,0),IF($F$3:$F$100<=F30,1,0),$G$3:$G$100,$H$3:$H$100)/2000,3,SUMPRODUCT(IF($B$3:$B$100=B30,1,0),IF($F$3:$F$100<=F30,1,0),$G$3:$G$100,$H$3:$H$100)/2000,IF(G30="",1,G30)*H30/2000),"N/A") -> N/A | L30: N/A | M30: 0.79 | N30: Ton
A31: 29 | B31: P-307-7.1-a | C31: Cement-treated permeable base course (CTPB) | D31: Fuel Adjustment | E31: N/A | F31: N/A | G31: N/A | H31: N/A | I31: N/A | J31: P-307-7.1-aN/A | K31: =IFERROR(_xlfn.SWITCH(F31,2,SUMPRODUCT(IF($B$3:$B$100=B31,1,0),IF($F$3:$F$100<=F31,1,0),$G$3:$G$100,$H$3:$H$100)/2000,3,SUMPRODUCT(IF($B$3:$B$100=B31,1,0),IF($F$3:$F$100<=F31,1,0),$G$3:$G$100,$H$3:$H$100)/2000,IF(G31="",1,G31)*H31/2000),"N/A") -> N/A | L31: N/A | M31: 0.1 | N31: Square Yard
A32: 30 | B32: P-501-8.1-a | C32: Any Portland Cement Concrete Pavement ≤ 10 in. thickness | D32: Fuel Adjustment | E32: N/A | F32: N/A | G32: N/A | H32: N/A | I32: N/A | J32: =_xlfn.CONCAT(#REF!,F32) ->  | K32: =IFERROR(_xlfn.SWITCH(F32,2,SUMPRODUCT(IF($B$3:$B$100=#REF!,1,0),IF($F$3:$F$100<=F32,1,0),$G$3:$G$100,$H$3:$H$100)/2000,3,SUMPRODUCT(IF($B$3:$B$100=#REF!,1,0),IF($F$3:$F$100<=F32,1,0),$G$3:$G$100,$H$3:$H$100)/2000,IF(G32="",1,G32)*H32/2000),"N/A") -> N/A | L32: N/A | M32: 0.25 | N32: Square Yard
A33: 31 | B33: P-501-8.1-b | C33: Any Portland Cement Concrete Pavement > 10 in. thickness | D33: Fuel Adjustment | E33: N/A | F33: N/A | G33: N/A | H33: N/A | I33: N/A | J33: =_xlfn.CONCAT(B32,F33) -> P-501-8.1-aN/A | K33: =IFERROR(_xlfn.SWITCH(F33,2,SUMPRODUCT(IF($B$3:$B$100=B32,1,0),IF($F$3:$F$100<=F33,1,0),$G$3:$G$100,$H$3:$H$100)/2000,3,SUMPRODUCT(IF($B$3:$B$100=B32,1,0),IF($F$3:$F$100<=F33,1,0),$G$3:$G$100,$H$3:$H$100)/2000,IF(G33="",1,G33)*H33/2000),"N/A") -> N/A | L33: N/A | M33: 0.3 | N33: Square Yard
A34: 32 | B34: P-152-4.3-a | C34: Unclassified Excavation to Off-Site Disposal | D34: Fuel Adjustment | E34: N/A | F34: N/A | G34: N/A | H34: N/A | I34: N/A | J34: =_xlfn.CONCAT(B33,F34) -> P-501-8.1-bN/A | K34: =IFERROR(_xlfn.SWITCH(F34,2,SUMPRODUCT(IF($B$3:$B$100=B33,1,0),IF($F$3:$F$100<=F34,1,0),$G$3:$G$100,$H$3:$H$100)/2000,3,SUMPRODUCT(IF($B$3:$B$100=B33,1,0),IF($F$3:$F$100<=F34,1,0),$G$3:$G$100,$H$3:$H$100)/2000,IF(G34="",1,G34)*H34/2000),"N/A") -> N/A | L34: N/A | M34: 0.25 | N34: Cubic Yard
A35: 33 | B35: P-401-8.1-a | C35: Asphalt Surface Course (Gradation 1, PG 64-22) | D35: FAA Flexible Pavements | E35: Virgin | F35: N/A | I35: 100 | J35: =_xlfn.CONCAT(B35,F35) -> P-401-8.1-aN/A | K35: =IFERROR(_xlfn.SWITCH(F35,2,SUMPRODUCT(IF($B$3:$B$100=B35,1,0),IF($F$3:$F$100<=F35,1,0),$G$3:$G$100,$H$3:$H$100)/2000,3,SUMPRODUCT(IF($B$3:$B$100=B35,1,0),IF($F$3:$F$100<=F35,1,0),$G$3:$G$100,$H$3:$H$100)/2000,IF(G35="",1,G35)*H35/2000),"N/A") -> 0 | L35: 0 | M35: N/A | N35: N/A
A36: 34 | B36: P-401-8.1-b | C36: Asphalt Surface Course (Gradation 1, PG 70-22) | D36: FAA Flexible Pavements | E36: Virgin | F36: N/A | I36: 100 | J36: P-401-8.1-bN/A | K36: =IFERROR(_xlfn.SWITCH(F36,2,SUMPRODUCT(IF($B$3:$B$100=B36,1,0),IF($F$3:$F$100<=F36,1,0),$G$3:$G$100,$H$3:$H$100)/2000,3,SUMPRODUCT(IF($B$3:$B$100=B36,1,0),IF($F$3:$F$100<=F36,1,0),$G$3:$G$100,$H$3:$H$100)/2000,IF(G36="",1,G36)*H36/2000),"N/A") -> 0 | L36: 0 | M36: N/A | N36: N/A
A37: 35 | B37: P-401-8.1-c | C37: Asphalt Surface Course (Gradation 1, PG 76-22) | D37: FAA Flexible Pavements | E37: Virgin | F37: N/A | I37: 100 | J37: P-401-8.1-cN/A | K37: =IFERROR(_xlfn.SWITCH(F37,2,SUMPRODUCT(IF($B$3:$B$100=B37,1,0),IF($F$3:$F$100<=F37,1,0),$G$3:$G$100,$H$3:$H$100)/2000,3,SUMPRODUCT(IF($B$3:$B$100=B37,1,0),IF($F$3:$F$100<=F37,1,0),$G$3:$G$100,$H$3:$H$100)/2000,IF(G37="",1,G37)*H37/2000),"N/A") -> 0 | L37: 0 | M37: N/A | N37: N/A
A38: 36 | B38: P-401-8.1-d | C38: Asphalt Surface Course (Gradation 2, PG 64-22) | D38: FAA Flexible Pavements | E38: Virgin | F38: N/A | I38: 100 | J38: P-401-8.1-dN/A | K38: =IFERROR(_xlfn.SWITCH(F38,2,SUMPRODUCT(IF($B$3:$B$100=B38,1,0),IF($F$3:$F$100<=F38,1,0),$G$3:$G$100,$H$3:$H$100)/2000,3,SUMPRODUCT(IF($B$3:$B$100=B38,1,0),IF($F$3:$F$100<=F38,1,0),$G$3:$G$100,$H$3:$H$100)/2000,IF(G38="",1,G38)*H38/2000),"N/A") -> 0 | L38: 0 | M38: N/A | N38: N/A
A39: 37 | B39: P-401-8.1-e | C39: Asphalt Surface Course (Gradation 2, PG 70-22) | D39: FAA Flexible Pavements | E39: Virgin | F39: N/A | I39: 100 | J39: P-401-8.1-eN/A | K39: =IFERROR(_xlfn.SWITCH(F39,2,SUMPRODUCT(IF($B$3:$B$100=B39,1,0),IF($F$3:$F$100<=F39,1,0),$G$3:$G$100,$H$3:$H$100)/2000,3,SUMPRODUCT(IF($B$3:$B$100=B39,1,0),IF($F$3:$F$100<=F39,1,0),$G$3:$G$100,$H$3:$H$100)/2000,IF(G39="",1,G39)*H39/2000),"N/A") -> 0 | L39: 0 | M39: N/A | N39: N/A
A40: 38 | B40: P-401-8.1-f | C40: Asphalt Surface Course (Gradation 2, PG 76-22) | D40: FAA Flexible Pavements | E40: Virgin | F40: N/A | I40: 100 | J40: P-401-8.1-fN/A | K40: =IFERROR(_xlfn.SWITCH(F40,2,SUMPRODUCT(IF($B$3:$B$100=B40,1,0),IF($F$3:$F$100<=F40,1,0),$G$3:$G$100,$H$3:$H$100)/2000,3,SUMPRODUCT(IF($B$3:$B$100=B40,1,0),IF($F$3:$F$100<=F40,1,0),$G$3:$G$100,$H$3:$H$100)/2000,IF(G40="",1,G40)*H40/2000),"N/A") -> 0 | L40: 0 | M40: N/A | N40: N/A
A41: 39 | B41: P-401-8.1-g | C41: Asphalt Surface Course (Gradation 2, PG 82-22) | D41: FAA Flexible Pavements | E41: Virgin | F41: N/A | I41: 100 | J41: P-401-8.1-gN/A | K41: =IFERROR(_xlfn.SWITCH(F41,2,SUMPRODUCT(IF($B$3:$B$100=B41,1,0),IF($F$3:$F$100<=F41,1,0),$G$3:$G$100,$H$3:$H$100)/2000,3,SUMPRODUCT(IF($B$3:$B$100=B41,1,0),IF($F$3:$F$100<=F41,1,0),$G$3:$G$100,$H$3:$H$100)/2000,IF(G41="",1,G41)*H41/2000),"N/A") -> 0 | L41: 0 | M41: N/A | N41: N/A
A42: 40 | B42: P-401-8.1-h | C42: Asphalt Surface Course (Desc.) | D42: FAA Flexible Pavements | E42: Virgin | F42: N/A | I42: 100 | J42: P-401-8.1-hN/A | K42: =IFERROR(_xlfn.SWITCH(F42,2,SUMPRODUCT(IF($B$3:$B$100=B42,1,0),IF($F$3:$F$100<=F42,1,0),$G$3:$G$100,$H$3:$H$100)/2000,3,SUMPRODUCT(IF($B$3:$B$100=B42,1,0),IF($F$3:$F$100<=F42,1,0),$G$3:$G$100,$H$3:$H$100)/2000,IF(G42="",1,G42)*H42/2000),"N/A") -> 0 | L42: 0 | M42: N/A | N42: N/A
A43: 41 | B43: P-401-8.2-a | C43: Asphalt Base Course (Thickness 1, Gradation 1, Binder Grade 1) | D43: FAA Flexible Pavements | E43: Virgin | F43: N/A | I43: 100 | J43: P-401-8.2-aN/A | K43: =IFERROR(_xlfn.SWITCH(F43,2,SUMPRODUCT(IF($B$3:$B$100=B43,1,0),IF($F$3:$F$100<=F43,1,0),$G$3:$G$100,$H$3:$H$100)/2000,3,SUMPRODUCT(IF($B$3:$B$100=B43,1,0),IF($F$3:$F$100<=F43,1,0),$G$3:$G$100,$H$3:$H$100)/2000,IF(G43="",1,G43)*H43/2000),"N/A") -> 0 | L43: 0 | M43: N/A | N43: N/A
A44: 42 | B44: P-401-8.3-a | C44: Asphalt Binder Course (Thickness 1, Gradation 1, Binder Grade 1) | D44: FAA Flexible Pavements | E44: Virgin | F44: N/A | I44: 100 | J44: P-401-8.3-aN/A | K44: =IFERROR(_xlfn.SWITCH(F44,2,SUMPRODUCT(IF($B$3:$B$100=B44,1,0),IF($F$3:$F$100<=F44,1,0),$G$3:$G$100,$H$3:$H$100)/2000,3,SUMPRODUCT(IF($B$3:$B$100=B44,1,0),IF($F$3:$F$100<=F44,1,0),$G$3:$G$100,$H$3:$H$100)/2000,IF(G44="",1,G44)*H44/2000),"N/A") -> 0 | L44: 0 | M44: N/A | N44: N/A
A45: 43 | B45: P-401-8.4-a | C45: Asphalt Levelling Course (Thickness 1, Gradation 1, Binder Grade 1) | D45: FAA Flexible Pavements | E45: Virgin | F45: N/A | I45: 100 | J45: P-401-8.4-aN/A | K45: =IFERROR(_xlfn.SWITCH(F45,2,SUMPRODUCT(IF($B$3:$B$100=B45,1,0),IF($F$3:$F$100<=F45,1,0),$G$3:$G$100,$H$3:$H$100)/2000,3,SUMPRODUCT(IF($B$3:$B$100=B45,1,0),IF($F$3:$F$100<=F45,1,0),$G$3:$G$100,$H$3:$H$100)/2000,IF(G45="",1,G45)*H45/2000),"N/A") -> 0 | L45: 0 | M45: N/A | N45: N/A
A46: 44 | B46: P-403-8.1-a | C46: Asphalt Surface Course (Gradation 1, PG 64-22) | D46: FAA Flexible Pavements | E46: Virgin | F46: N/A | I46: 100 | J46: P-403-8.1-aN/A | K46: =IFERROR(_xlfn.SWITCH(F46,2,SUMPRODUCT(IF($B$3:$B$100=B46,1,0),IF($F$3:$F$100<=F46,1,0),$G$3:$G$100,$H$3:$H$100)/2000,3,SUMPRODUCT(IF($B$3:$B$100=B46,1,0),IF($F$3:$F$100<=F46,1,0),$G$3:$G$100,$H$3:$H$100)/2000,IF(G46="",1,G46)*H46/2000),"N/A") -> 0 | L46: 0 | M46: N/A | N46: N/A
A47: 45 | B47: P-403-8.1-b | C47: Asphalt Surface Course (Gradation 1, PG 70-22) | D47: FAA Flexible Pavements | E47: Virgin | F47: N/A | I47: 100 | J47: P-403-8.1-bN/A | K47: =IFERROR(_xlfn.SWITCH(F47,2,SUMPRODUCT(IF($B$3:$B$100=B47,1,0),IF($F$3:$F$100<=F47,1,0),$G$3:$G$100,$H$3:$H$100)/2000,3,SUMPRODUCT(IF($B$3:$B$100=B47,1,0),IF($F$3:$F$100<=F47,1,0),$G$3:$G$100,$H$3:$H$100)/2000,IF(G47="",1,G47)*H47/2000),"N/A") -> 0 | L47: 0 | M47: N/A | N47: N/A
A48: 46 | B48: P-403-8.1-c | C48: Asphalt Surface Course (Gradation 1, PG 76-22) | D48: FAA Flexible Pavements | E48: Virgin | F48: N/A | I48: 100 | J48: P-403-8.1-cN/A | K48: =IFERROR(_xlfn.SWITCH(F48,2,SUMPRODUCT(IF($B$3:$B$100=B48,1,0),IF($F$3:$F$100<=F48,1,0),$G$3:$G$100,$H$3:$H$100)/2000,3,SUMPRODUCT(IF($B$3:$B$100=B48,1,0),IF($F$3:$F$100<=F48,1,0),$G$3:$G$100,$H$3:$H$100)/2000,IF(G48="",1,G48)*H48/2000),"N/A") -> 0 | L48: 0 | M48: N/A | N48: N/A
A49: 47 | B49: P-403-8.1-d | C49: Asphalt Surface Course (Gradation 2, PG 64-22) | D49: FAA Flexible Pavements | E49: Virgin | F49: N/A | I49: 100 | J49: P-403-8.1-dN/A | K49: =IFERROR(_xlfn.SWITCH(F49,2,SUMPRODUCT(IF($B$3:$B$100=B49,1,0),IF($F$3:$F$100<=F49,1,0),$G$3:$G$100,$H$3:$H$100)/2000,3,SUMPRODUCT(IF($B$3:$B$100=B49,1,0),IF($F$3:$F$100<=F49,1,0),$G$3:$G$100,$H$3:$H$100)/2000,IF(G49="",1,G49)*H49/2000),"N/A") -> 0 | L49: 0 | M49: N/A | N49: N/A
A50: 48 | B50: P-403-8.1-e | C50: Asphalt Surface Course (Gradation 2, PG 70-22) | D50: FAA Flexible Pavements | E50: Virgin | F50: N/A | I50: 100 | J50: P-403-8.1-eN/A | K50: =IFERROR(_xlfn.SWITCH(F50,2,SUMPRODUCT(IF($B$3:$B$100=B50,1,0),IF($F$3:$F$100<=F50,1,0),$G$3:$G$100,$H$3:$H$100)/2000,3,SUMPRODUCT(IF($B$3:$B$100=B50,1,0),IF($F$3:$F$100<=F50,1,0),$G$3:$G$100,$H$3:$H$100)/2000,IF(G50="",1,G50)*H50/2000),"N/A") -> 0 | L50: 0 | M50: N/A | N50: N/A
A51: 49 | B51: P-403-8.1-f | C51: Asphalt Surface Course (Gradation 2, PG 76-22) | D51: FAA Flexible Pavements | E51: Virgin | F51: N/A | I51: 100 | J51: P-403-8.1-fN/A | K51: =IFERROR(_xlfn.SWITCH(F51,2,SUMPRODUCT(IF($B$3:$B$100=B51,1,0),IF($F$3:$F$100<=F51,1,0),$G$3:$G$100,$H$3:$H$100)/2000,3,SUMPRODUCT(IF($B$3:$B$100=B51,1,0),IF($F$3:$F$100<=F51,1,0),$G$3:$G$100,$H$3:$H$100)/2000,IF(G51="",1,G51)*H51/2000),"N/A") -> 0 | L51: 0 | M51: N/A | N51: N/A
A52: 50 | B52: P-403-8.1-g | C52: Asphalt Surface Course (Gradation 2, PG 82-22) | D52: FAA Flexible Pavements | E52: Virgin | F52: N/A | I52: 100 | J52: P-403-8.1-gN/A | K52: =IFERROR(_xlfn.SWITCH(F52,2,SUMPRODUCT(IF($B$3:$B$100=B52,1,0),IF($F$3:$F$100<=F52,1,0),$G$3:$G$100,$H$3:$H$100)/2000,3,SUMPRODUCT(IF($B$3:$B$100=B52,1,0),IF($F$3:$F$100<=F52,1,0),$G$3:$G$100,$H$3:$H$100)/2000,IF(G52="",1,G52)*H52/2000),"N/A") -> 0 | L52: 0 | M52: N/A | N52: N/A
A53: 51 | B53: P-403-8.1-h | C53: Asphalt Surface Course (Desc) | D53: FAA Flexible Pavements | E53: Virgin | F53: N/A | I53: 100 | J53: P-403-8.1-hN/A | K53: =IFERROR(_xlfn.SWITCH(F53,2,SUMPRODUCT(IF($B$3:$B$100=B53,1,0),IF($F$3:$F$100<=F53,1,0),$G$3:$G$100,$H$3:$H$100)/2000,3,SUMPRODUCT(IF($B$3:$B$100=B53,1,0),IF($F$3:$F$100<=F53,1,0),$G$3:$G$100,$H$3:$H$100)/2000,IF(G53="",1,G53)*H53/2000),"N/A") -> 0 | L53: 0 | M53: N/A | N53: N/A
A54: 52 | B54: P-403-8.1-i | C54: Asphalt Surface Course (Desc.) | D54: FAA Flexible Pavements | E54: Virgin | F54: N/A | I54: 100 | J54: P-403-8.1-iN/A | K54: =IFERROR(_xlfn.SWITCH(F54,2,SUMPRODUCT(IF($B$3:$B$100=B54,1,0),IF($F$3:$F$100<=F54,1,0),$G$3:$G$100,$H$3:$H$100)/2000,3,SUMPRODUCT(IF($B$3:$B$100=B54,1,0),IF($F$3:$F$100<=F54,1,0),$G$3:$G$100,$H$3:$H$100)/2000,IF(G54="",1,G54)*H54/2000),"N/A") -> 0 | L54: 0 | M54: N/A | N54: N/A
A55: 53 | B55: P-403-8.2-a | C55: Asphalt Base Course (Gradation 1, PG 64-22) | D55: FAA Flexible Pavements | E55: Virgin | F55: N/A | I55: 100 | J55: P-403-8.2-aN/A | K55: =IFERROR(_xlfn.SWITCH(F55,2,SUMPRODUCT(IF($B$3:$B$100=B55,1,0),IF($F$3:$F$100<=F55,1,0),$G$3:$G$100,$H$3:$H$100)/2000,3,SUMPRODUCT(IF($B$3:$B$100=B55,1,0),IF($F$3:$F$100<=F55,1,0),$G$3:$G$100,$H$3:$H$100)/2000,IF(G55="",1,G55)*H55/2000),"N/A") -> 0 | L55: 0 | M55: N/A | N55: N/A
A56: 54 | B56: P-403-8.2-b | C56: Asphalt Base Course (Gradation 1, PG 70-22) | D56: FAA Flexible Pavements | E56: Virgin | F56: N/A | I56: 100 | J56: P-403-8.2-bN/A | K56: =IFERROR(_xlfn.SWITCH(F56,2,SUMPRODUCT(IF($B$3:$B$100=B56,1,0),IF($F$3:$F$100<=F56,1,0),$G$3:$G$100,$H$3:$H$100)/2000,3,SUMPRODUCT(IF($B$3:$B$100=B56,1,0),IF($F$3:$F$100<=F56,1,0),$G$3:$G$100,$H$3:$H$100)/2000,IF(G56="",1,G56)*H56/2000),"N/A") -> 0 | L56: 0 | M56: N/A | N56: N/A
A57: 55 | B57: P-403-8.2-c | C57: Asphalt Base Course (Gradation 1, PG 76-22) | D57: FAA Flexible Pavements | E57: Virgin | F57: N/A | I57: 100 | J57: P-403-8.2-cN/A | K57: =IFERROR(_xlfn.SWITCH(F57,2,SUMPRODUCT(IF($B$3:$B$100=B57,1,0),IF($F$3:$F$100<=F57,1,0),$G$3:$G$100,$H$3:$H$100)/2000,3,SUMPRODUCT(IF($B$3:$B$100=B57,1,0),IF($F$3:$F$100<=F57,1,0),$G$3:$G$100,$H$3:$H$100)/2000,IF(G57="",1,G57)*H57/2000),"N/A") -> 0 | L57: 0 | M57: N/A | N57: N/A
A58: 56 | B58: P-403-8.2-d | C58: Asphalt Base Course (Gradation 2, PG 64-22) | D58: FAA Flexible Pavements | E58: Virgin | F58: N/A | I58: 100 | J58: P-403-8.2-dN/A | K58: =IFERROR(_xlfn.SWITCH(F58,2,SUMPRODUCT(IF($B$3:$B$100=B58,1,0),IF($F$3:$F$100<=F58,1,0),$G$3:$G$100,$H$3:$H$100)/2000,3,SUMPRODUCT(IF($B$3:$B$100=B58,1,0),IF($F$3:$F$100<=F58,1,0),$G$3:$G$100,$H$3:$H$100)/2000,IF(G58="",1,G58)*H58/2000),"N/A") -> 0 | L58: 0 | M58: N/A | N58: N/A
A59: 57 | B59: P-403-8.2-e | C59: Asphalt Base Course (Gradation 2, PG 70-22) | D59: FAA Flexible Pavements | E59: Virgin | F59: N/A | I59: 100 | J59: P-403-8.2-eN/A | K59: =IFERROR(_xlfn.SWITCH(F59,2,SUMPRODUCT(IF($B$3:$B$100=B59,1,0),IF($F$3:$F$100<=F59,1,0),$G$3:$G$100,$H$3:$H$100)/2000,3,SUMPRODUCT(IF($B$3:$B$100=B59,1,0),IF($F$3:$F$100<=F59,1,0),$G$3:$G$100,$H$3:$H$100)/2000,IF(G59="",1,G59)*H59/2000),"N/A") -> 0 | L59: 0 | M59: N/A | N59: N/A
A60: 58 | B60: P-403-8.2-f | C60: Asphalt Base Course (Gradation 2, PG 76-22) | D60: FAA Flexible Pavements | E60: Virgin | F60: N/A | I60: 100 | J60: P-403-8.2-fN/A | K60: =IFERROR(_xlfn.SWITCH(F60,2,SUMPRODUCT(IF($B$3:$B$100=B60,1,0),IF($F$3:$F$100<=F60,1,0),$G$3:$G$100,$H$3:$H$100)/2000,3,SUMPRODUCT(IF($B$3:$B$100=B60,1,0),IF($F$3:$F$100<=F60,1,0),$G$3:$G$100,$H$3:$H$100)/2000,IF(G60="",1,G60)*H60/2000),"N/A") -> 0 | L60: 0 | M60: N/A | N60: N/A
A61: 59 | B61: P-403-8.2-g | C61: Asphalt Base Course (Gradation 2, PG 82-22) | D61: FAA Flexible Pavements | E61: Virgin | F61: N/A | I61: 100 | J61: P-403-8.2-gN/A | K61: =IFERROR(_xlfn.SWITCH(F61,2,SUMPRODUCT(IF($B$3:$B$100=B61,1,0),IF($F$3:$F$100<=F61,1,0),$G$3:$G$100,$H$3:$H$100)/2000,3,SUMPRODUCT(IF($B$3:$B$100=B61,1,0),IF($F$3:$F$100<=F61,1,0),$G$3:$G$100,$H$3:$H$100)/2000,IF(G61="",1,G61)*H61/2000),"N/A") -> 0 | L61: 0 | M61: N/A | N61: N/A
A62: 60 | B62: P-403-8.2-h | C62: Asphalt Base Course (Desc.) | D62: FAA Flexible Pavements | E62: Virgin | F62: N/A | I62: 100 | J62: P-403-8.2-hN/A | K62: =IFERROR(_xlfn.SWITCH(F62,2,SUMPRODUCT(IF($B$3:$B$100=B62,1,0),IF($F$3:$F$100<=F62,1,0),$G$3:$G$100,$H$3:$H$100)/2000,3,SUMPRODUCT(IF($B$3:$B$100=B62,1,0),IF($F$3:$F$100<=F62,1,0),$G$3:$G$100,$H$3:$H$100)/2000,IF(G62="",1,G62)*H62/2000),"N/A") -> 0 | L62: 0 | M62: N/A | N62: N/A
A63: 61 | B63: P-403-8.2-i | C63: Asphalt Base Course (Desc.) | D63: FAA Flexible Pavements | E63: Virgin | F63: N/A | I63: 100 | J63: P-403-8.2-iN/A | K63: =IFERROR(_xlfn.SWITCH(F63,2,SUMPRODUCT(IF($B$3:$B$100=B63,1,0),IF($F$3:$F$100<=F63,1,0),$G$3:$G$100,$H$3:$H$100)/2000,3,SUMPRODUCT(IF($B$3:$B$100=B63,1,0),IF($F$3:$F$100<=F63,1,0),$G$3:$G$100,$H$3:$H$100)/2000,IF(G63="",1,G63)*H63/2000),"N/A") -> 0 | L63: 0 | M63: N/A | N63: N/A
A64: 62 | B64: P-403-8.3-a | C64: Asphalt Binder Course (Gradation 1, PG 64-22) | D64: FAA Flexible Pavements | E64: Virgin | F64: N/A | I64: 100 | J64: P-403-8.3-aN/A | K64: =IFERROR(_xlfn.SWITCH(F64,2,SUMPRODUCT(IF($B$3:$B$100=B64,1,0),IF($F$3:$F$100<=F64,1,0),$G$3:$G$100,$H$3:$H$100)/2000,3,SUMPRODUCT(IF($B$3:$B$100=B64,1,0),IF($F$3:$F$100<=F64,1,0),$G$3:$G$100,$H$3:$H$100)/2000,IF(G64="",1,G64)*H64/2000),"N/A") -> 0 | L64: 0 | M64: N/A | N64: N/A
A65: 63 | B65: P-403-8.3-b | C65: Asphalt Binder Course (Gradation 1, PG 70-22) | D65: FAA Flexible Pavements | E65: Virgin | F65: N/A | I65: 100 | J65: P-403-8.3-bN/A | K65: =IFERROR(_xlfn.SWITCH(F65,2,SUMPRODUCT(IF($B$3:$B$100=B65,1,0),IF($F$3:$F$100<=F65,1,0),$G$3:$G$100,$H$3:$H$100)/2000,3,SUMPRODUCT(IF($B$3:$B$100=B65,1,0),IF($F$3:$F$100<=F65,1,0),$G$3:$G$100,$H$3:$H$100)/2000,IF(G65="",1,G65)*H65/2000),"N/A") -> 0 | L65: 0 | M65: N/A | N65: N/A
A66: 64 | B66: P-403-8.3-c | C66: Asphalt Binder Course (Gradation 1, PG 76-22) | D66: FAA Flexible Pavements | E66: Virgin | F66: N/A | I66: 100 | J66: P-403-8.3-cN/A | K66: =IFERROR(_xlfn.SWITCH(F66,2,SUMPRODUCT(IF($B$3:$B$100=B66,1,0),IF($F$3:$F$100<=F66,1,0),$G$3:$G$100,$H$3:$H$100)/2000,3,SUMPRODUCT(IF($B$3:$B$100=B66,1,0),IF($F$3:$F$100<=F66,1,0),$G$3:$G$100,$H$3:$H$100)/2000,IF(G66="",1,G66)*H66/2000),"N/A") -> 0 | L66: 0 | M66: N/A | N66: N/A
A67: 65 | B67: P-403-8.3-d | C67: Asphalt Binder Course (Gradation 2, PG 64-22) | D67: FAA Flexible Pavements | E67: Virgin | F67: N/A | I67: 100 | J67: P-403-8.3-dN/A | K67: =IFERROR(_xlfn.SWITCH(F67,2,SUMPRODUCT(IF($B$3:$B$100=B67,1,0),IF($F$3:$F$100<=F67,1,0),$G$3:$G$100,$H$3:$H$100)/2000,3,SUMPRODUCT(IF($B$3:$B$100=B67,1,0),IF($F$3:$F$100<=F67,1,0),$G$3:$G$100,$H$3:$H$100)/2000,IF(G67="",1,G67)*H67/2000),"N/A") -> 0 | L67: 0 | M67: N/A | N67: N/A
A68: 66 | B68: P-403-8.3-e | C68: Asphalt Binder Course (Gradation 2, PG 70-22) | D68: FAA Flexible Pavements | E68: Virgin | F68: N/A | I68: 100 | J68: P-403-8.3-eN/A | K68: =IFERROR(_xlfn.SWITCH(F68,2,SUMPRODUCT(IF($B$3:$B$100=B68,1,0),IF($F$3:$F$100<=F68,1,0),$G$3:$G$100,$H$3:$H$100)/2000,3,SUMPRODUCT(IF($B$3:$B$100=B68,1,0),IF($F$3:$F$100<=F68,1,0),$G$3:$G$100,$H$3:$H$100)/2000,IF(G68="",1,G68)*H68/2000),"N/A") -> 0 | L68: 0 | M68: N/A | N68: N/A
A69: 67 | B69: P-403-8.3-f | C69: Asphalt Binder Course (Gradation 2, PG 76-22) | D69: FAA Flexible Pavements | E69: Virgin | F69: N/A | I69: 100 | J69: P-403-8.3-fN/A | K69: =IFERROR(_xlfn.SWITCH(F69,2,SUMPRODUCT(IF($B$3:$B$100=B69,1,0),IF($F$3:$F$100<=F69,1,0),$G$3:$G$100,$H$3:$H$100)/2000,3,SUMPRODUCT(IF($B$3:$B$100=B69,1,0),IF($F$3:$F$100<=F69,1,0),$G$3:$G$100,$H$3:$H$100)/2000,IF(G69="",1,G69)*H69/2000),"N/A") -> 0 | L69: =IFERROR(H69/2000,"N/A") -> 0 | M69: N/A | N69: N/A
A70: 68 | B70: P-403-8.3-g | C70: Asphalt Binder Course (Gradation 2, PG 82-22) | D70: FAA Flexible Pavements | E70: Virgin | F70: N/A | I70: 100 | J70: P-403-8.3-gN/A | K70: =IFERROR(_xlfn.SWITCH(F70,2,SUMPRODUCT(IF($B$3:$B$100=B70,1,0),IF($F$3:$F$100<=F70,1,0),$G$3:$G$100,$H$3:$H$100)/2000,3,SUMPRODUCT(IF($B$3:$B$100=B70,1,0),IF($F$3:$F$100<=F70,1,0),$G$3:$G$100,$H$3:$H$100)/2000,IF(G70="",1,G70)*H70/2000),"N/A") -> 0 | L70: 0 | M70: N/A | N70: N/A
A71: 69 | B71: P-403-8.3-h | C71: Asphalt Binder Course (Desc.) | D71: FAA Flexible Pavements | E71: Virgin | F71: N/A | I71: 100 | J71: P-403-8.3-hN/A | K71: =IFERROR(_xlfn.SWITCH(F71,2,SUMPRODUCT(IF($B$3:$B$100=B71,1,0),IF($F$3:$F$100<=F71,1,0),$G$3:$G$100,$H$3:$H$100)/2000,3,SUMPRODUCT(IF($B$3:$B$100=B71,1,0),IF($F$3:$F$100<=F71,1,0),$G$3:$G$100,$H$3:$H$100)/2000,IF(G71="",1,G71)*H71/2000),"N/A") -> 0 | L71: 0 | M71: N/A | N71: N/A
A72: 70 | B72: P-403-8.3-i | C72: Asphalt Binder Course (Desc.) | D72: FAA Flexible Pavements | E72: Virgin | F72: N/A | I72: 100 | J72: P-403-8.3-iN/A | K72: =IFERROR(_xlfn.SWITCH(F72,2,SUMPRODUCT(IF($B$3:$B$100=B72,1,0),IF($F$3:$F$100<=F72,1,0),$G$3:$G$100,$H$3:$H$100)/2000,3,SUMPRODUCT(IF($B$3:$B$100=B72,1,0),IF($F$3:$F$100<=F72,1,0),$G$3:$G$100,$H$3:$H$100)/2000,IF(G72="",1,G72)*H72/2000),"N/A") -> 0 | L72: 0 | M72: N/A | N72: N/A
A73: 71 | B73: P-403-8.4-a | C73: Asphalt Levelling Course (Thickness 1, Gradation 1, Binder Grade 1) | D73: FAA Flexible Pavements | E73: Virgin | F73: N/A | I73: 100 | J73: P-403-8.4-aN/A | K73: =IFERROR(_xlfn.SWITCH(F73,2,SUMPRODUCT(IF($B$3:$B$100=B73,1,0),IF($F$3:$F$100<=F73,1,0),$G$3:$G$100,$H$3:$H$100)/2000,3,SUMPRODUCT(IF($B$3:$B$100=B73,1,0),IF($F$3:$F$100<=F73,1,0),$G$3:$G$100,$H$3:$H$100)/2000,IF(G73="",1,G73)*H73/2000),"N/A") -> 0 | L73: 0 | M73: N/A | N73: N/A
A74: 72 | B74: P-404-8.1-a | C74: Fuel Resistant Asphalt Mix Pavement Surface Course | D74: FAA Flexible Pavements | E74: Virgin | F74: N/A | I74: 100 | J74: P-404-8.1-aN/A | K74: =IFERROR(_xlfn.SWITCH(F74,2,SUMPRODUCT(IF($B$3:$B$100=B74,1,0),IF($F$3:$F$100<=F74,1,0),$G$3:$G$100,$H$3:$H$100)/2000,3,SUMPRODUCT(IF($B$3:$B$100=B74,1,0),IF($F$3:$F$100<=F74,1,0),$G$3:$G$100,$H$3:$H$100)/2000,IF(G74="",1,G74)*H74/2000),"N/A") -> 0 | L74: 0 | M74: N/A | N74: N/A
A75: 73 | B75: TNP-401-8.1-a | C75: Asphalt Surface Course (TDOT D Mix, PG 64-22) | D75: FAA Flexible Pavements | E75: Virgin | F75: N/A | I75: 100 | J75: TNP-401-8.1-aN/A | K75: =IFERROR(_xlfn.SWITCH(F75,2,SUMPRODUCT(IF($B$3:$B$100=B75,1,0),IF($F$3:$F$100<=F75,1,0),$G$3:$G$100,$H$3:$H$100)/2000,3,SUMPRODUCT(IF($B$3:$B$100=B75,1,0),IF($F$3:$F$100<=F75,1,0),$G$3:$G$100,$H$3:$H$100)/2000,IF(G75="",1,G75)*H75/2000),"N/A") -> 0 | L75: 0 | M75: N/A | N75: N/A
A76: 74 | B76: TNP-401-8.1-b | C76: Asphalt Surface Course (TDOT D Mix, PG 70-22) | D76: FAA Flexible Pavements | E76: Virgin | F76: N/A | I76: 100 | J76: TNP-401-8.1-bN/A | K76: =IFERROR(_xlfn.SWITCH(F76,2,SUMPRODUCT(IF($B$3:$B$100=B76,1,0),IF($F$3:$F$100<=F76,1,0),$G$3:$G$100,$H$3:$H$100)/2000,3,SUMPRODUCT(IF($B$3:$B$100=B76,1,0),IF($F$3:$F$100<=F76,1,0),$G$3:$G$100,$H$3:$H$100)/2000,IF(G76="",1,G76)*H76/2000),"N/A") -> 0 | L76: 0 | M76: N/A | N76: N/A
A77: 75 | B77: TNP-401-8.1-c | C77: Asphalt Surface Course (TDOT D Mix, PG 76-22) | D77: FAA Flexible Pavements | E77: Virgin | F77: N/A | I77: 100 | J77: TNP-401-8.1-cN/A | K77: =IFERROR(_xlfn.SWITCH(F77,2,SUMPRODUCT(IF($B$3:$B$100=B77,1,0),IF($F$3:$F$100<=F77,1,0),$G$3:$G$100,$H$3:$H$100)/2000,3,SUMPRODUCT(IF($B$3:$B$100=B77,1,0),IF($F$3:$F$100<=F77,1,0),$G$3:$G$100,$H$3:$H$100)/2000,IF(G77="",1,G77)*H77/2000),"N/A") -> 0 | L77: 0 | M77: N/A | N77: N/A
A78: 76 | B78: TNP-401-8.1-d | C78: Asphalt Surface Course (TDOT D Mix, PG 82-22) | D78: FAA Flexible Pavements | E78: Virgin | F78: N/A | I78: 100 | J78: TNP-401-8.1-dN/A | K78: =IFERROR(_xlfn.SWITCH(F78,2,SUMPRODUCT(IF($B$3:$B$100=B78,1,0),IF($F$3:$F$100<=F78,1,0),$G$3:$G$100,$H$3:$H$100)/2000,3,SUMPRODUCT(IF($B$3:$B$100=B78,1,0),IF($F$3:$F$100<=F78,1,0),$G$3:$G$100,$H$3:$H$100)/2000,IF(G78="",1,G78)*H78/2000),"N/A") -> 0 | L78: 0 | M78: N/A | N78: N/A
A79: 77 | B79: TNP-401-8.1-e | C79: Asphalt Surface Course (Desc.) | D79: FAA Flexible Pavements | E79: Virgin | F79: N/A | I79: 100 | J79: TNP-401-8.1-eN/A | K79: =IFERROR(_xlfn.SWITCH(F79,2,SUMPRODUCT(IF($B$3:$B$100=B79,1,0),IF($F$3:$F$100<=F79,1,0),$G$3:$G$100,$H$3:$H$100)/2000,3,SUMPRODUCT(IF($B$3:$B$100=B79,1,0),IF($F$3:$F$100<=F79,1,0),$G$3:$G$100,$H$3:$H$100)/2000,IF(G79="",1,G79)*H79/2000),"N/A") -> 0 | L79: 0 | M79: N/A | N79: N/A
A80: 78 | B80: TNP-401-8.2-a | C80: Asphalt Binder Course (TDOT BM2 Mix, PG 64-22) | D80: FAA Flexible Pavements | E80: Virgin | F80: N/A | I80: 100 | J80: TNP-401-8.2-aN/A | K80: =IFERROR(_xlfn.SWITCH(F80,2,SUMPRODUCT(IF($B$3:$B$100=B80,1,0),IF($F$3:$F$100<=F80,1,0),$G$3:$G$100,$H$3:$H$100)/2000,3,SUMPRODUCT(IF($B$3:$B$100=B80,1,0),IF($F$3:$F$100<=F80,1,0),$G$3:$G$100,$H$3:$H$100)/2000,IF(G80="",1,G80)*H80/2000),"N/A") -> 0 | L80: 0 | M80: N/A | N80: N/A
A81: 79 | B81: TNP-401-8.2-b | C81: Asphalt Binder Course (TDOT BM2 Mix, PG 70-22) | D81: FAA Flexible Pavements | E81: Virgin | F81: N/A | I81: 100 | J81: TNP-401-8.2-bN/A | K81: =IFERROR(_xlfn.SWITCH(F81,2,SUMPRODUCT(IF($B$3:$B$100=B81,1,0),IF($F$3:$F$100<=F81,1,0),$G$3:$G$100,$H$3:$H$100)/2000,3,SUMPRODUCT(IF($B$3:$B$100=B81,1,0),IF($F$3:$F$100<=F81,1,0),$G$3:$G$100,$H$3:$H$100)/2000,IF(G81="",1,G81)*H81/2000),"N/A") -> 0 | L81: 0 | M81: N/A | N81: N/A
A82: 80 | B82: TNP-401-8.2-c | C82: Asphalt Binder Course (TDOT BM2 Mix, PG 76-22) | D82: FAA Flexible Pavements | E82: Virgin | F82: N/A | I82: 100 | J82: TNP-401-8.2-cN/A | K82: =IFERROR(_xlfn.SWITCH(F82,2,SUMPRODUCT(IF($B$3:$B$100=B82,1,0),IF($F$3:$F$100<=F82,1,0),$G$3:$G$100,$H$3:$H$100)/2000,3,SUMPRODUCT(IF($B$3:$B$100=B82,1,0),IF($F$3:$F$100<=F82,1,0),$G$3:$G$100,$H$3:$H$100)/2000,IF(G82="",1,G82)*H82/2000),"N/A") -> 0 | L82: 0 | M82: N/A | N82: N/A
A83: 81 | B83: TNP-401-8.2-d | C83: Asphalt Binder Course (TDOT BM2 Mix, PG 82-22) | D83: FAA Flexible Pavements | E83: Virgin | F83: N/A | I83: 100 | J83: TNP-401-8.2-dN/A | K83: =IFERROR(_xlfn.SWITCH(F83,2,SUMPRODUCT(IF($B$3:$B$100=B83,1,0),IF($F$3:$F$100<=F83,1,0),$G$3:$G$100,$H$3:$H$100)/2000,3,SUMPRODUCT(IF($B$3:$B$100=B83,1,0),IF($F$3:$F$100<=F83,1,0),$G$3:$G$100,$H$3:$H$100)/2000,IF(G83="",1,G83)*H83/2000),"N/A") -> 0 | L83: 0 | M83: N/A | N83: N/A
A84: 82 | B84: TNP-401-8.2-e | C84: Asphalt Binder Course (Desc.) | D84: FAA Flexible Pavements | E84: Virgin | F84: N/A | I84: 100 | J84: TNP-401-8.2-eN/A | K84: =IFERROR(_xlfn.SWITCH(F84,2,SUMPRODUCT(IF($B$3:$B$100=B84,1,0),IF($F$3:$F$100<=F84,1,0),$G$3:$G$100,$H$3:$H$100)/2000,3,SUMPRODUCT(IF($B$3:$B$100=B84,1,0),IF($F$3:$F$100<=F84,1,0),$G$3:$G$100,$H$3:$H$100)/2000,IF(G84="",1,G84)*H84/2000),"N/A") -> 0 | L84: 0 | M84: N/A | N84: N/A
A85: 83 | B85: TNP-401-8.2-g | C85: Asphalt Binder Course (TDOT BM2 Mix, PG 64-22) | D85: FAA Flexible Pavements | E85: Virgin | F85: N/A | I85: 100 | J85: TNP-401-8.2-gN/A | K85: =IFERROR(_xlfn.SWITCH(F85,2,SUMPRODUCT(IF($B$3:$B$100=B85,1,0),IF($F$3:$F$100<=F85,1,0),$G$3:$G$100,$H$3:$H$100)/2000,3,SUMPRODUCT(IF($B$3:$B$100=B85,1,0),IF($F$3:$F$100<=F85,1,0),$G$3:$G$100,$H$3:$H$100)/2000,IF(G85="",1,G85)*H85/2000),"N/A") -> 0 | L85: 0 | M85: N/A | N85: N/A
A86: 84 | B86: TNP-209-5.1-a | C86: Crushed Aggregate Base Course Type A Grading D | D86: Fuel Adjustment | E86: N/A | F86: N/A | G86: N/A | H86: N/A | I86: N/A | J86: TNP-209-5.1-aN/A | K86: =IFERROR(_xlfn.SWITCH(F86,2,SUMPRODUCT(IF($B$3:$B$100=B86,1,0),IF($F$3:$F$100<=F86,1,0),$G$3:$G$100,$H$3:$H$100)/2000,3,SUMPRODUCT(IF($B$3:$B$100=B86,1,0),IF($F$3:$F$100<=F86,1,0),$G$3:$G$100,$H$3:$H$100)/2000,IF(G86="",1,G86)*H86/2000),"N/A") -> N/A | L86: N/A | M86: 0.79 | N86: Ton
A87: 85 | B87: TNP-209-5.1-b | C87: Crushed Aggregate Base Course FAA P-209 Grading | D87: Fuel Adjustment | E87: N/A | F87: N/A | G87: N/A | H87: N/A | I87: N/A | J87: TNP-209-5.1-bN/A | K87: =IFERROR(_xlfn.SWITCH(F87,2,SUMPRODUCT(IF($B$3:$B$100=B87,1,0),IF($F$3:$F$100<=F87,1,0),$G$3:$G$100,$H$3:$H$100)/2000,3,SUMPRODUCT(IF($B$3:$B$100=B87,1,0),IF($F$3:$F$100<=F87,1,0),$G$3:$G$100,$H$3:$H$100)/2000,IF(G87="",1,G87)*H87/2000),"N/A") -> N/A | L87: N/A | M87: 0.79 | N87: Ton
A88: 86 | B88: P-207-5.1-a | C88: In-Place Full Depth Reclamation (FDR) Recycled Asphalt Aggregate Base Course | D88: Fuel Adjustment | E88: N/A | F88: N/A | G88: N/A | H88: N/A | I88: N/A | J88: P-207-5.1-aN/A | K88: =IFERROR(_xlfn.SWITCH(F88,2,SUMPRODUCT(IF($B$3:$B$100=B88,1,0),IF($F$3:$F$100<=F88,1,0),$G$3:$G$100,$H$3:$H$100)/2000,3,SUMPRODUCT(IF($B$3:$B$100=B88,1,0),IF($F$3:$F$100<=F88,1,0),$G$3:$G$100,$H$3:$H$100)/2000,IF(G88="",1,G88)*H88/2000),"N/A") -> N/A | L88: N/A | M88: 0.1 | N88: Square Yard
A89: 87 | B89: P-207-5.1-b | C89: 12" Depth Fdr Cement Treated Base | D89: Fuel Adjustment | E89: N/A | F89: N/A | G89: N/A | H89: N/A | I89: N/A | J89: =_xlfn.CONCAT(B89,F89) -> P-207-5.1-bN/A | K89: =IFERROR(_xlfn.SWITCH(F89,2,SUMPRODUCT(IF($B$3:$B$100=B89,1,0),IF($F$3:$F$100<=F89,1,0),$G$3:$G$100,$H$3:$H$100)/2000,3,SUMPRODUCT(IF($B$3:$B$100=B89,1,0),IF($F$3:$F$100<=F89,1,0),$G$3:$G$100,$H$3:$H$100)/2000,IF(G89="",1,G89)*H89/2000),"N/A") -> N/A | L89: =IFERROR(H89/2000,"N/A") -> N/A | M89: 0.1 | N89: Square Yard
A90: 88 | B90: P-207-5.1-c | C90: In-Place Full Depth Recycled (FDR) Asphalt Aggregate Base Course (12 Inch Min. Pulverization Depth, Excavation to Grade, 5 Inch Min. FDR Layer Depth) for | D90: Fuel Adjustment | E90: N/A | F90: N/A | G90: N/A | H90: N/A | I90: N/A | J90: P-207-5.1-cN/A | K90: =IFERROR(_xlfn.SWITCH(F90,2,SUMPRODUCT(IF($B$3:$B$100=B90,1,0),IF($F$3:$F$100<=F90,1,0),$G$3:$G$100,$H$3:$H$100)/2000,3,SUMPRODUCT(IF($B$3:$B$100=B90,1,0),IF($F$3:$F$100<=F90,1,0),$G$3:$G$100,$H$3:$H$100)/2000,IF(G90="",1,G90)*H90/2000),"N/A") -> N/A | L90: N/A | M90: 0.1 | N90: Square Yard
A91: 89 | B91: P-207-5.1-d | C91: In-Place Full Depth Reclamation (FDR) Recycled Asphalt Aggregate Base Course (5" - 12" Depth) | D91: Fuel Adjustment | E91: N/A | F91: N/A | G91: N/A | H91: N/A | I91: N/A | J91: P-207-5.1-dN/A | K91: =IFERROR(_xlfn.SWITCH(F91,2,SUMPRODUCT(IF($B$3:$B$100=B91,1,0),IF($F$3:$F$100<=F91,1,0),$G$3:$G$100,$H$3:$H$100)/2000,3,SUMPRODUCT(IF($B$3:$B$100=B91,1,0),IF($F$3:$F$100<=F91,1,0),$G$3:$G$100,$H$3:$H$100)/2000,IF(G91="",1,G91)*H91/2000),"N/A") -> N/A | L91: N/A | M91: 0.1 | N91: Square Yard
A92: 90 | B92: P-207-5.1-e | C92: In-Place Full Depth Reclamation (FDR) Recycled Asphalt Aggregate Base Course (8" - 14" Depth) | D92: Fuel Adjustment | E92: N/A | F92: N/A | G92: N/A | H92: N/A | I92: N/A | J92: P-207-5.1-eN/A | K92: =IFERROR(_xlfn.SWITCH(F92,2,SUMPRODUCT(IF($B$3:$B$100=B92,1,0),IF($F$3:$F$100<=F92,1,0),$G$3:$G$100,$H$3:$H$100)/2000,3,SUMPRODUCT(IF($B$3:$B$100=B92,1,0),IF($F$3:$F$100<=F92,1,0),$G$3:$G$100,$H$3:$H$100)/2000,IF(G92="",1,G92)*H92/2000),"N/A") -> N/A | L92: N/A | M92: 0.1 | N92: Square Yard
A93: 91 | B93: P-207-5.1-f | C93: In-Place Full Depth Reclamation (FDR) Asphalt Aggregate Base Course (16 Inch Min. Pulverization Depth, Excavated to Grade, 12 Inch Min. Mix Depth) | D93: Fuel Adjustment | E93: N/A | F93: N/A | G93: N/A | H93: N/A | I93: N/A | J93: P-207-5.1-fN/A | K93: =IFERROR(_xlfn.SWITCH(F93,2,SUMPRODUCT(IF($B$3:$B$100=B93,1,0),IF($F$3:$F$100<=F93,1,0),$G$3:$G$100,$H$3:$H$100)/2000,3,SUMPRODUCT(IF($B$3:$B$100=B93,1,0),IF($F$3:$F$100<=F93,1,0),$G$3:$G$100,$H$3:$H$100)/2000,IF(G93="",1,G93)*H93/2000),"N/A") -> N/A | L93: N/A | M93: 0.1 | N93: Square Yard
A94: 92 | B94: P-207-5.1-g | C94: In-Place Full Depth Recycled (FDR) Asphalt Aggregate Base Course (12 Inch Min. Pulverization Depth, Excavation to Grade, 7 Inch Min. FDR Layer Depth) for | D94: Fuel Adjustment | E94: N/A | F94: N/A | G94: N/A | H94: N/A | I94: N/A | J94: P-207-5.1-gN/A | K94: =IFERROR(_xlfn.SWITCH(F94,2,SUMPRODUCT(IF($B$3:$B$100=B94,1,0),IF($F$3:$F$100<=F94,1,0),$G$3:$G$100,$H$3:$H$100)/2000,3,SUMPRODUCT(IF($B$3:$B$100=B94,1,0),IF($F$3:$F$100<=F94,1,0),$G$3:$G$100,$H$3:$H$100)/2000,IF(G94="",1,G94)*H94/2000),"N/A") -> N/A | L94: N/A | M94: 0.1 | N94: Square Yard
A95: 93 | B95: P-207-5.2-a | C95: Cement (Full Depth Reclamation) | D95: Fuel Adjustment | E95: N/A | F95: N/A | G95: N/A | H95: N/A | I95: N/A | J95: P-207-5.2-aN/A | K95: =IFERROR(_xlfn.SWITCH(F95,2,SUMPRODUCT(IF($B$3:$B$100=B95,1,0),IF($F$3:$F$100<=F95,1,0),$G$3:$G$100,$H$3:$H$100)/2000,3,SUMPRODUCT(IF($B$3:$B$100=B95,1,0),IF($F$3:$F$100<=F95,1,0),$G$3:$G$100,$H$3:$H$100)/2000,IF(G95="",1,G95)*H95/2000),"N/A") -> N/A | L95: N/A | M95: 0.1 | N95: Square Yard
A96: 94 | B96: P-207-5.2-b | C96: Corrective Aggregate (Full Depth Reclamation) | D96: Fuel Adjustment | E96: N/A | F96: N/A | G96: N/A | H96: N/A | I96: N/A | J96: P-207-5.2-bN/A | K96: =IFERROR(_xlfn.SWITCH(F96,2,SUMPRODUCT(IF($B$3:$B$100=B96,1,0),IF($F$3:$F$100<=F96,1,0),$G$3:$G$100,$H$3:$H$100)/2000,3,SUMPRODUCT(IF($B$3:$B$100=B96,1,0),IF($F$3:$F$100<=F96,1,0),$G$3:$G$100,$H$3:$H$100)/2000,IF(G96="",1,G96)*H96/2000),"N/A") -> N/A | L96: N/A | M96: 0.1 | N96: Square Yard
A97: 95 | B97: P-207-5.2-c | C97: Corrective Aggregate (Full Depth Reclamation) | D97: Fuel Adjustment | E97: N/A | F97: N/A | G97: N/A | H97: N/A | I97: N/A | J97: P-207-5.2-cN/A | K97: =IFERROR(_xlfn.SWITCH(F97,2,SUMPRODUCT(IF($B$3:$B$100=B97,1,0),IF($F$3:$F$100<=F97,1,0),$G$3:$G$100,$H$3:$H$100)/2000,3,SUMPRODUCT(IF($B$3:$B$100=B97,1,0),IF($F$3:$F$100<=F97,1,0),$G$3:$G$100,$H$3:$H$100)/2000,IF(G97="",1,G97)*H97/2000),"N/A") -> N/A | L97: N/A | M97: 0.1 | N97: Square Yard
A98: 96 | B98: P-207-5.2-d | C98: Stockpiled FDR Base Course Material (Hauled Offsite) | D98: Fuel Adjustment | E98: N/A | F98: N/A | G98: N/A | H98: N/A | I98: N/A | J98: P-207-5.2-dN/A | K98: =IFERROR(_xlfn.SWITCH(F98,2,SUMPRODUCT(IF($B$3:$B$100=B98,1,0),IF($F$3:$F$100<=F98,1,0),$G$3:$G$100,$H$3:$H$100)/2000,3,SUMPRODUCT(IF($B$3:$B$100=B98,1,0),IF($F$3:$F$100<=F98,1,0),$G$3:$G$100,$H$3:$H$100)/2000,IF(G98="",1,G98)*H98/2000),"N/A") -> N/A | L98: N/A | M98: 0.1 | N98: Square Yard
A99: 97 | B99: P-208-5.1-a | C99: Aggregate Base Course | D99: Fuel Adjustment | E99: N/A | F99: N/A | G99: N/A | H99: N/A | I99: N/A | J99: P-208-5.1-aN/A | K99: =IFERROR(_xlfn.SWITCH(F99,2,SUMPRODUCT(IF($B$3:$B$100=B99,1,0),IF($F$3:$F$100<=F99,1,0),$G$3:$G$100,$H$3:$H$100)/2000,3,SUMPRODUCT(IF($B$3:$B$100=B99,1,0),IF($F$3:$F$100<=F99,1,0),$G$3:$G$100,$H$3:$H$100)/2000,IF(G99="",1,G99)*H99/2000),"N/A") -> N/A | L99: N/A | M99: 0.1 | N99: Square Yard
A100: 98 | B100: P-208-5.1-b | C100: Aggregate Base Course | D100: Fuel Adjustment | E100: N/A | F100: N/A | G100: N/A | H100: N/A | I100: N/A | J100: P-208-5.1-bN/A | K100: =IFERROR(_xlfn.SWITCH(F100,2,SUMPRODUCT(IF($B$3:$B$100=B100,1,0),IF($F$3:$F$100<=F100,1,0),$G$3:$G$100,$H$3:$H$100)/2000,3,SUMPRODUCT(IF($B$3:$B$100=B100,1,0),IF($F$3:$F$100<=F100,1,0),$G$3:$G$100,$H$3:$H$100)/2000,IF(G100="",1,G100)*H100/2000),"N/A") -> N/A | L100: N/A | M100: 0.1 | N100: Square Yard
A101: 99 | B101: P-209-5.1-a | C101: Crushed Aggregate Base Course (6" Depth) | D101: Fuel Adjustment | E101: N/A | F101: N/A | G101: N/A | H101: N/A | I101: N/A | K101: =IFERROR(_xlfn.SWITCH(F101,2,SUMPRODUCT(IF($B$3:$B$100=B101,1,0),IF($F$3:$F$100<=F101,1,0),$G$3:$G$100,$H$3:$H$100)/2000,3,SUMPRODUCT(IF($B$3:$B$100=B101,1,0),IF($F$3:$F$100<=F101,1,0),$G$3:$G$100,$H$3:$H$100)/2000,IF(G101="",1,G101)*H101/2000),"N/A") -> N/A | L101: =IFERROR(H101/2000,"N/A") -> N/A | M101: 0.1 | N101: Square Yard
A102: 100 | B102: P-209-5.1-b | C102: Crushed Aggregate Base Course (6" Depth) (For Poor Subgrade Areas) | D102: Fuel Adjustment | E102: N/A | F102: N/A | G102: N/A | H102: N/A | I102: N/A | K102: =IFERROR(_xlfn.SWITCH(F102,2,SUMPRODUCT(IF($B$3:$B$100=B102,1,0),IF($F$3:$F$100<=F102,1,0),$G$3:$G$100,$H$3:$H$100)/2000,3,SUMPRODUCT(IF($B$3:$B$100=B102,1,0),IF($F$3:$F$100<=F102,1,0),$G$3:$G$100,$H$3:$H$100)/2000,IF(G102="",1,G102)*H102/2000),"N/A") -> N/A | L102: N/A | M102: 0.1 | N102: Square Yard
A103: 101 | B103: P-209-5.1-c | C103: Crushed Aggregate Base Course Full Strength (12.5 in) | D103: Fuel Adjustment | E103: N/A | F103: N/A | G103: N/A | H103: N/A | I103: N/A | K103: =IFERROR(_xlfn.SWITCH(F103,2,SUMPRODUCT(IF($B$3:$B$100=B103,1,0),IF($F$3:$F$100<=F103,1,0),$G$3:$G$100,$H$3:$H$100)/2000,3,SUMPRODUCT(IF($B$3:$B$100=B103,1,0),IF($F$3:$F$100<=F103,1,0),$G$3:$G$100,$H$3:$H$100)/2000,IF(G103="",1,G103)*H103/2000),"N/A") -> N/A | L103: N/A | M103: 0.1 | N103: Square Yard
A104: 102 | B104: P-209-5.1-d | C104: Crushed Aggregate Base Course | D104: Fuel Adjustment | E104: N/A | F104: N/A | G104: N/A | H104: N/A | I104: N/A | K104: =IFERROR(_xlfn.SWITCH(F104,2,SUMPRODUCT(IF($B$3:$B$100=B104,1,0),IF($F$3:$F$100<=F104,1,0),$G$3:$G$100,$H$3:$H$100)/2000,3,SUMPRODUCT(IF($B$3:$B$100=B104,1,0),IF($F$3:$F$100<=F104,1,0),$G$3:$G$100,$H$3:$H$100)/2000,IF(G104="",1,G104)*H104/2000),"N/A") -> N/A | L104: N/A | M104: 0.25 | N104: Cubic Yard
A105: 103 | B105: P-209-5.1-e | C105: Crushed Aggregate Base Course | D105: Fuel Adjustment | E105: N/A | F105: N/A | G105: N/A | H105: N/A | I105: N/A | K105: =IFERROR(_xlfn.SWITCH(F105,2,SUMPRODUCT(IF($B$3:$B$100=B105,1,0),IF($F$3:$F$100<=F105,1,0),$G$3:$G$100,$H$3:$H$100)/2000,3,SUMPRODUCT(IF($B$3:$B$100=B105,1,0),IF($F$3:$F$100<=F105,1,0),$G$3:$G$100,$H$3:$H$100)/2000,IF(G105="",1,G105)*H105/2000),"N/A") -> N/A | L105: N/A | M105: 0.79 | N105: Ton
A106: 104 | B106: P-210-5.1-a | C106: Caliche Base Course | D106: Fuel Adjustment | E106: N/A | F106: N/A | G106: N/A | H106: N/A | I106: N/A | K106: =IFERROR(_xlfn.SWITCH(F106,2,SUMPRODUCT(IF($B$3:$B$100=B106,1,0),IF($F$3:$F$100<=F106,1,0),$G$3:$G$100,$H$3:$H$100)/2000,3,SUMPRODUCT(IF($B$3:$B$100=B106,1,0),IF($F$3:$F$100<=F106,1,0),$G$3:$G$100,$H$3:$H$100)/2000,IF(G106="",1,G106)*H106/2000),"N/A") -> N/A | L106: N/A | M106: 0.25 | N106: Cubic Yard
A107: 105 | B107: P-210-5.1-b | C107: Caliche Base Course | D107: Fuel Adjustment | E107: N/A | F107: N/A | G107: N/A | H107: N/A | I107: N/A | K107: =IFERROR(_xlfn.SWITCH(F107,2,SUMPRODUCT(IF($B$3:$B$100=B107,1,0),IF($F$3:$F$100<=F107,1,0),$G$3:$G$100,$H$3:$H$100)/2000,3,SUMPRODUCT(IF($B$3:$B$100=B107,1,0),IF($F$3:$F$100<=F107,1,0),$G$3:$G$100,$H$3:$H$100)/2000,IF(G107="",1,G107)*H107/2000),"N/A") -> N/A | L107: N/A | M107: 0.1 | N107: Square Yard
A108: 106 | B108: P-211-5.1-a | C108: Lime Rock Base Course | D108: Fuel Adjustment | E108: N/A | F108: N/A | G108: N/A | H108: N/A | I108: N/A | K108: =IFERROR(_xlfn.SWITCH(F108,2,SUMPRODUCT(IF($B$3:$B$100=B108,1,0),IF($F$3:$F$100<=F108,1,0),$G$3:$G$100,$H$3:$H$100)/2000,3,SUMPRODUCT(IF($B$3:$B$100=B108,1,0),IF($F$3:$F$100<=F108,1,0),$G$3:$G$100,$H$3:$H$100)/2000,IF(G108="",1,G108)*H108/2000),"N/A") -> N/A | L108: N/A | M108: 0.25 | N108: Cubic Yard
A109: 107 | B109: P-211-5.1-b | C109: Lime Rock Base Course | D109: Fuel Adjustment | E109: N/A | F109: N/A | G109: N/A | H109: N/A | I109: N/A | K109: =IFERROR(_xlfn.SWITCH(F109,2,SUMPRODUCT(IF($B$3:$B$100=B109,1,0),IF($F$3:$F$100<=F109,1,0),$G$3:$G$100,$H$3:$H$100)/2000,3,SUMPRODUCT(IF($B$3:$B$100=B109,1,0),IF($F$3:$F$100<=F109,1,0),$G$3:$G$100,$H$3:$H$100)/2000,IF(G109="",1,G109)*H109/2000),"N/A") -> N/A | L109: N/A | M109: 0.1 | N109: Square Yard
A110: 108 | B110: P-213-5.1-a | C110: Sand-Clay Base Course | D110: Fuel Adjustment | E110: N/A | F110: N/A | G110: N/A | H110: N/A | I110: N/A | K110: =IFERROR(_xlfn.SWITCH(F110,2,SUMPRODUCT(IF($B$3:$B$100=B110,1,0),IF($F$3:$F$100<=F110,1,0),$G$3:$G$100,$H$3:$H$100)/2000,3,SUMPRODUCT(IF($B$3:$B$100=B110,1,0),IF($F$3:$F$100<=F110,1,0),$G$3:$G$100,$H$3:$H$100)/2000,IF(G110="",1,G110)*H110/2000),"N/A") -> N/A | L110: N/A | M110: 0.25 | N110: Cubic Yard
A111: 109 | B111: P-213-5.1-b | C111: Sand-Clay Base Course | D111: Fuel Adjustment | E111: N/A | F111: N/A | G111: N/A | H111: N/A | I111: N/A | K111: =IFERROR(_xlfn.SWITCH(F111,2,SUMPRODUCT(IF($B$3:$B$100=B111,1,0),IF($F$3:$F$100<=F111,1,0),$G$3:$G$100,$H$3:$H$100)/2000,3,SUMPRODUCT(IF($B$3:$B$100=B111,1,0),IF($F$3:$F$100<=F111,1,0),$G$3:$G$100,$H$3:$H$100)/2000,IF(G111="",1,G111)*H111/2000),"N/A") -> N/A | L111: N/A | M111: 0.1 | N111: Square Yard
A112: 110 | B112: P-217-5.1-a | C112: Soil Aggregate Base Course | D112: Fuel Adjustment | E112: N/A | F112: N/A | G112: N/A | H112: N/A | I112: N/A | K112: =IFERROR(_xlfn.SWITCH(F112,2,SUMPRODUCT(IF($B$3:$B$100=B112,1,0),IF($F$3:$F$100<=F112,1,0),$G$3:$G$100,$H$3:$H$100)/2000,3,SUMPRODUCT(IF($B$3:$B$100=B112,1,0),IF($F$3:$F$100<=F112,1,0),$G$3:$G$100,$H$3:$H$100)/2000,IF(G112="",1,G112)*H112/2000),"N/A") -> N/A | L112: N/A | M112: 0.25 | N112: Cubic Yard
A113: 111 | B113: P-217-5.1-b | C113: Soil Aggregate Base Course | D113: Fuel Adjustment | E113: N/A | F113: N/A | G113: N/A | H113: N/A | I113: N/A | K113: =IFERROR(_xlfn.SWITCH(F113,2,SUMPRODUCT(IF($B$3:$B$100=B113,1,0),IF($F$3:$F$100<=F113,1,0),$G$3:$G$100,$H$3:$H$100)/2000,3,SUMPRODUCT(IF($B$3:$B$100=B113,1,0),IF($F$3:$F$100<=F113,1,0),$G$3:$G$100,$H$3:$H$100)/2000,IF(G113="",1,G113)*H113/2000),"N/A") -> N/A | L113: N/A | M113: 0.1 | N113: Square Yard
A114: 112 | B114: P-217-5.2-a | C114: Stabilizer Aggregate | D114: Fuel Adjustment | E114: N/A | F114: N/A | G114: N/A | H114: N/A | I114: N/A | K114: =IFERROR(_xlfn.SWITCH(F114,2,SUMPRODUCT(IF($B$3:$B$100=B114,1,0),IF($F$3:$F$100<=F114,1,0),$G$3:$G$100,$H$3:$H$100)/2000,3,SUMPRODUCT(IF($B$3:$B$100=B114,1,0),IF($F$3:$F$100<=F114,1,0),$G$3:$G$100,$H$3:$H$100)/2000,IF(G114="",1,G114)*H114/2000),"N/A") -> N/A | L114: =IFERROR(H114/2000,"N/A") -> N/A | M114: 0.25 | N114: Cubic Yard
A115: 113 | B115: P-217-5.2-b | C115: Stabilizer Aggregate | D115: Fuel Adjustment | E115: N/A | F115: N/A | G115: N/A | H115: N/A | I115: N/A | K115: =IFERROR(_xlfn.SWITCH(F115,2,SUMPRODUCT(IF($B$3:$B$100=B115,1,0),IF($F$3:$F$100<=F115,1,0),$G$3:$G$100,$H$3:$H$100)/2000,3,SUMPRODUCT(IF($B$3:$B$100=B115,1,0),IF($F$3:$F$100<=F115,1,0),$G$3:$G$100,$H$3:$H$100)/2000,IF(G115="",1,G115)*H115/2000),"N/A") -> N/A | L115: N/A | M115: 0.1 | N115: Square Yard
A116: 114 | B116: P-217-5.3-a | C116: Conditioning Operation | D116: Fuel Adjustment | E116: N/A | F116: N/A | G116: N/A | H116: N/A | I116: N/A | K116: =IFERROR(_xlfn.SWITCH(F116,2,SUMPRODUCT(IF($B$3:$B$100=B116,1,0),IF($F$3:$F$100<=F116,1,0),$G$3:$G$100,$H$3:$H$100)/2000,3,SUMPRODUCT(IF($B$3:$B$100=B116,1,0),IF($F$3:$F$100<=F116,1,0),$G$3:$G$100,$H$3:$H$100)/2000,IF(G116="",1,G116)*H116/2000),"N/A") -> N/A | L116: N/A | M116: 0.1 | N116: Square Yard
A117: 115 | B117: P-219-5.1-a | C117: Recycled Concrete Aggregate Base Course | D117: Fuel Adjustment | E117: N/A | F117: N/A | G117: N/A | H117: N/A | I117: N/A | K117: =IFERROR(_xlfn.SWITCH(F117,2,SUMPRODUCT(IF($B$3:$B$100=B117,1,0),IF($F$3:$F$100<=F117,1,0),$G$3:$G$100,$H$3:$H$100)/2000,3,SUMPRODUCT(IF($B$3:$B$100=B117,1,0),IF($F$3:$F$100<=F117,1,0),$G$3:$G$100,$H$3:$H$100)/2000,IF(G117="",1,G117)*H117/2000),"N/A") -> N/A | L117: N/A | M117: 0.1 | N117: Square Yard
A118: 116 | B118: P-220-6.1-a | C118: Cement treated soil Base Course | D118: Fuel Adjustment | E118: N/A | F118: N/A | G118: N/A | H118: N/A | I118: N/A | K118: =IFERROR(_xlfn.SWITCH(F118,2,SUMPRODUCT(IF($B$3:$B$100=B118,1,0),IF($F$3:$F$100<=F118,1,0),$G$3:$G$100,$H$3:$H$100)/2000,3,SUMPRODUCT(IF($B$3:$B$100=B118,1,0),IF($F$3:$F$100<=F118,1,0),$G$3:$G$100,$H$3:$H$100)/2000,IF(G118="",1,G118)*H118/2000),"N/A") -> N/A | L118: N/A | M118: 0.1 | N118: Square Yard
A119: 117 | B119: P-220-6.2-a | C119: Cement (Treated soil Base Course) | D119: Fuel Adjustment | E119: N/A | F119: N/A | G119: N/A | H119: N/A | I119: N/A | K119: =IFERROR(_xlfn.SWITCH(F119,2,SUMPRODUCT(IF($B$3:$B$100=B119,1,0),IF($F$3:$F$100<=F119,1,0),$G$3:$G$100,$H$3:$H$100)/2000,3,SUMPRODUCT(IF($B$3:$B$100=B119,1,0),IF($F$3:$F$100<=F119,1,0),$G$3:$G$100,$H$3:$H$100)/2000,IF(G119="",1,G119)*H119/2000),"N/A") -> N/A | L119: N/A | M119: 0.79 | N119: Ton
A120: 118 | B120: P-304-8.1-a | C120: Cement-treated base course | D120: Fuel Adjustment | E120: N/A | F120: N/A | G120: N/A | H120: N/A | I120: N/A | K120: =IFERROR(_xlfn.SWITCH(F120,2,SUMPRODUCT(IF($B$3:$B$100=B120,1,0),IF($F$3:$F$100<=F120,1,0),$G$3:$G$100,$H$3:$H$100)/2000,3,SUMPRODUCT(IF($B$3:$B$100=B120,1,0),IF($F$3:$F$100<=F120,1,0),$G$3:$G$100,$H$3:$H$100)/2000,IF(G120="",1,G120)*H120/2000),"N/A") -> N/A | L120: N/A | M120: 0.1 | N120: Square Yard
A121: 119 | B121: P-306-8.1-a | C121: Lean concrete base course | D121: Fuel Adjustment | E121: N/A | F121: N/A | G121: N/A | H121: N/A | I121: N/A | K121: =IFERROR(_xlfn.SWITCH(F121,2,SUMPRODUCT(IF($B$3:$B$100=B121,1,0),IF($F$3:$F$100<=F121,1,0),$G$3:$G$100,$H$3:$H$100)/2000,3,SUMPRODUCT(IF($B$3:$B$100=B121,1,0),IF($F$3:$F$100<=F121,1,0),$G$3:$G$100,$H$3:$H$100)/2000,IF(G121="",1,G121)*H121/2000),"N/A") -> N/A | L121: N/A | M121: 0.1 | N121: Square Yard
A122: 120 | B122: P-501-8.1-a | C122: Concrete Pavement (Plain) | D122: Fuel Adjustment | E122: N/A | F122: N/A | G122: N/A | H122: N/A | I122: N/A | K122: =IFERROR(_xlfn.SWITCH(F122,2,SUMPRODUCT(IF($B$3:$B$100=B122,1,0),IF($F$3:$F$100<=F122,1,0),$G$3:$G$100,$H$3:$H$100)/2000,3,SUMPRODUCT(IF($B$3:$B$100=B122,1,0),IF($F$3:$F$100<=F122,1,0),$G$3:$G$100,$H$3:$H$100)/2000,IF(G122="",1,G122)*H122/2000),"N/A") -> N/A | L122: =IFERROR(H122/2000,"N/A") -> N/A | M122: 0.9 | N122: Cubic Yard
A123: 121 | B123: P-501-8.1-b | C123: Concrete Pavement (Reinforced) | D123: Fuel Adjustment | E123: N/A | F123: N/A | G123: N/A | H123: N/A | I123: N/A | K123: =IFERROR(_xlfn.SWITCH(F123,2,SUMPRODUCT(IF($B$3:$B$100=B123,1,0),IF($F$3:$F$100<=F123,1,0),$G$3:$G$100,$H$3:$H$100)/2000,3,SUMPRODUCT(IF($B$3:$B$100=B123,1,0),IF($F$3:$F$100<=F123,1,0),$G$3:$G$100,$H$3:$H$100)/2000,IF(G123="",1,G123)*H123/2000),"N/A") -> N/A | L123: N/A | M123: 0.9 | N123: Cubic Yard
A124: 122 | B124: P-501-8.2-a | C124: Concrete Pavement (Plain, Thickness 1) | D124: Fuel Adjustment | E124: N/A | F124: N/A | G124: N/A | H124: N/A | I124: N/A | K124: =IFERROR(_xlfn.SWITCH(F124,2,SUMPRODUCT(IF($B$3:$B$100=B124,1,0),IF($F$3:$F$100<=F124,1,0),$G$3:$G$100,$H$3:$H$100)/2000,3,SUMPRODUCT(IF($B$3:$B$100=B124,1,0),IF($F$3:$F$100<=F124,1,0),$G$3:$G$100,$H$3:$H$100)/2000,IF(G124="",1,G124)*H124/2000),"N/A") -> N/A | L124: N/A | M124: 0.25 | N124: Square Yard
A125: 123 | B125: P-501-8.2-b | C125: Concrete Pavement (Reinforced, Thickness 1) | D125: Fuel Adjustment | E125: N/A | F125: N/A | G125: N/A | H125: N/A | I125: N/A | K125: =IFERROR(_xlfn.SWITCH(F125,2,SUMPRODUCT(IF($B$3:$B$100=B125,1,0),IF($F$3:$F$100<=F125,1,0),$G$3:$G$100,$H$3:$H$100)/2000,3,SUMPRODUCT(IF($B$3:$B$100=B125,1,0),IF($F$3:$F$100<=F125,1,0),$G$3:$G$100,$H$3:$H$100)/2000,IF(G125="",1,G125)*H125/2000),"N/A") -> N/A | L125: N/A | M125: 0.25 | N125: Square Yard
A126: 124 | B126: P-501-8.2-c | C126: Concrete Pavement (Plain, 5 in. minimum) | D126: Fuel Adjustment | E126: N/A | F126: N/A | G126: N/A | H126: N/A | I126: N/A | K126: =IFERROR(_xlfn.SWITCH(F126,2,SUMPRODUCT(IF($B$3:$B$100=B126,1,0),IF($F$3:$F$100<=F126,1,0),$G$3:$G$100,$H$3:$H$100)/2000,3,SUMPRODUCT(IF($B$3:$B$100=B126,1,0),IF($F$3:$F$100<=F126,1,0),$G$3:$G$100,$H$3:$H$100)/2000,IF(G126="",1,G126)*H126/2000),"N/A") -> N/A | L126: N/A | M126: 0.25 | N126: Square Yard
A127: 125 | B127: P-501-8.2-d | C127: Concrete Pavement (Plain, 7 in. minimum) | D127: Fuel Adjustment | E127: N/A | F127: N/A | G127: N/A | H127: N/A | I127: N/A | K127: =IFERROR(_xlfn.SWITCH(F127,2,SUMPRODUCT(IF($B$3:$B$100=B127,1,0),IF($F$3:$F$100<=F127,1,0),$G$3:$G$100,$H$3:$H$100)/2000,3,SUMPRODUCT(IF($B$3:$B$100=B127,1,0),IF($F$3:$F$100<=F127,1,0),$G$3:$G$100,$H$3:$H$100)/2000,IF(G127="",1,G127)*H127/2000),"N/A") -> N/A | L127: N/A | M127: 0.25 | N127: Square Yard
A128: 126 | B128: P-501-8.2-e | C128: Concrete Pavement (Plain, 6 in. Thickness) | D128: Fuel Adjustment | E128: N/A | F128: N/A | G128: N/A | H128: N/A | I128: N/A | K128: =IFERROR(_xlfn.SWITCH(F128,2,SUMPRODUCT(IF($B$3:$B$100=B128,1,0),IF($F$3:$F$100<=F128,1,0),$G$3:$G$100,$H$3:$H$100)/2000,3,SUMPRODUCT(IF($B$3:$B$100=B128,1,0),IF($F$3:$F$100<=F128,1,0),$G$3:$G$100,$H$3:$H$100)/2000,IF(G128="",1,G128)*H128/2000),"N/A") -> N/A | L128: N/A | M128: 0.25 | N128: Square Yard
A129: 127 | B129: P-501-8.2-f | C129: Concrete Pavement (Plain, 8 in. Thickness) | D129: Fuel Adjustment | E129: N/A | F129: N/A | G129: N/A | H129: N/A | I129: N/A | K129: =IFERROR(_xlfn.SWITCH(F129,2,SUMPRODUCT(IF($B$3:$B$100=B129,1,0),IF($F$3:$F$100<=F129,1,0),$G$3:$G$100,$H$3:$H$100)/2000,3,SUMPRODUCT(IF($B$3:$B$100=B129,1,0),IF($F$3:$F$100<=F129,1,0),$G$3:$G$100,$H$3:$H$100)/2000,IF(G129="",1,G129)*H129/2000),"N/A") -> N/A | L129: N/A | M129: 0.25 | N129: Square Yard
A130: 128 | B130: P-501-8.2-g | C130: Concrete Pavement (Plain, 10 in. Thickness) | D130: Fuel Adjustment | E130: N/A | F130: N/A | G130: N/A | H130: N/A | I130: N/A | K130: =IFERROR(_xlfn.SWITCH(F130,2,SUMPRODUCT(IF($B$3:$B$100=B130,1,0),IF($F$3:$F$100<=F130,1,0),$G$3:$G$100,$H$3:$H$100)/2000,3,SUMPRODUCT(IF($B$3:$B$100=B130,1,0),IF($F$3:$F$100<=F130,1,0),$G$3:$G$100,$H$3:$H$100)/2000,IF(G130="",1,G130)*H130/2000),"N/A") -> N/A | L130: N/A | M130: 0.25 | N130: Square Yard
A131: 129 | B131: P-501-8.2-h | C131: Concrete Pavement (Plain, 12 in. Thickness) | D131: Fuel Adjustment | E131: N/A | F131: N/A | G131: N/A | H131: N/A | I131: N/A | K131: =IFERROR(_xlfn.SWITCH(F131,2,SUMPRODUCT(IF($B$3:$B$100=B131,1,0),IF($F$3:$F$100<=F131,1,0),$G$3:$G$100,$H$3:$H$100)/2000,3,SUMPRODUCT(IF($B$3:$B$100=B131,1,0),IF($F$3:$F$100<=F131,1,0),$G$3:$G$100,$H$3:$H$100)/2000,IF(G131="",1,G131)*H131/2000),"N/A") -> N/A | L131: N/A | M131: 0.3 | N131: Square Yard
A132: 130 | B132: P-154-5.1-a | C132: Subbase Course | D132: Fuel Adjustment | E132: N/A | F132: N/A | G132: N/A | H132: N/A | I132: N/A | K132: =IFERROR(_xlfn.SWITCH(F132,2,SUMPRODUCT(IF($B$3:$B$100=B132,1,0),IF($F$3:$F$100<=F132,1,0),$G$3:$G$100,$H$3:$H$100)/2000,3,SUMPRODUCT(IF($B$3:$B$100=B132,1,0),IF($F$3:$F$100<=F132,1,0),$G$3:$G$100,$H$3:$H$100)/2000,IF(G132="",1,G132)*H132/2000),"N/A") -> N/A | L132: =IFERROR(H132/2000,"N/A") -> N/A | M132: 0.25 | N132: Cubic Yard
A133: 131 | B133: P-154-5.1-b | C133: Subbase Course | D133: Fuel Adjustment | E133: N/A | F133: N/A | G133: N/A | H133: N/A | I133: N/A | K133: =IFERROR(_xlfn.SWITCH(F133,2,SUMPRODUCT(IF($B$3:$B$100=B133,1,0),IF($F$3:$F$100<=F133,1,0),$G$3:$G$100,$H$3:$H$100)/2000,3,SUMPRODUCT(IF($B$3:$B$100=B133,1,0),IF($F$3:$F$100<=F133,1,0),$G$3:$G$100,$H$3:$H$100)/2000,IF(G133="",1,G133)*H133/2000),"N/A") -> N/A | L133: N/A | M133: 0.1 | N133: Square Yard
A134: 132 | B134: P-155-8.1-a | C134: Lime Treated subgrade | D134: Fuel Adjustment | E134: N/A | F134: N/A | G134: N/A | H134: N/A | I134: N/A | K134: =IFERROR(_xlfn.SWITCH(F134,2,SUMPRODUCT(IF($B$3:$B$100=B134,1,0),IF($F$3:$F$100<=F134,1,0),$G$3:$G$100,$H$3:$H$100)/2000,3,SUMPRODUCT(IF($B$3:$B$100=B134,1,0),IF($F$3:$F$100<=F134,1,0),$G$3:$G$100,$H$3:$H$100)/2000,IF(G134="",1,G134)*H134/2000),"N/A") -> N/A | L134: N/A | M134: 0.1 | N134: Square Yard
A135: 133 | B135: P-156-8.1-a | C135: Cement treated subgrade | D135: Fuel Adjustment | E135: N/A | F135: N/A | G135: N/A | H135: N/A | I135: N/A | K135: =IFERROR(_xlfn.SWITCH(F135,2,SUMPRODUCT(IF($B$3:$B$100=B135,1,0),IF($F$3:$F$100<=F135,1,0),$G$3:$G$100,$H$3:$H$100)/2000,3,SUMPRODUCT(IF($B$3:$B$100=B135,1,0),IF($F$3:$F$100<=F135,1,0),$G$3:$G$100,$H$3:$H$100)/2000,IF(G135="",1,G135)*H135/2000),"N/A") -> N/A | L135: N/A | M135: 0.1 | N135: Square Yard
A136: 134 | B136: P-157-8.1-a | C136: Kiln dust treated subgrade | D136: Fuel Adjustment | E136: N/A | F136: N/A | G136: N/A | H136: N/A | I136: N/A | K136: =IFERROR(_xlfn.SWITCH(F136,2,SUMPRODUCT(IF($B$3:$B$100=B136,1,0),IF($F$3:$F$100<=F136,1,0),$G$3:$G$100,$H$3:$H$100)/2000,3,SUMPRODUCT(IF($B$3:$B$100=B136,1,0),IF($F$3:$F$100<=F136,1,0),$G$3:$G$100,$H$3:$H$100)/2000,IF(G136="",1,G136)*H136/2000),"N/A") -> N/A | L136: N/A | M136: 0.1 | N136: Square Yard
A137: 135 | B137: P-158-8.1-a | C137: Fly ash treated subgrade | D137: Fuel Adjustment | E137: N/A | F137: N/A | G137: N/A | H137: N/A | I137: N/A | K137: =IFERROR(_xlfn.SWITCH(F137,2,SUMPRODUCT(IF($B$3:$B$100=B137,1,0),IF($F$3:$F$100<=F137,1,0),$G$3:$G$100,$H$3:$H$100)/2000,3,SUMPRODUCT(IF($B$3:$B$100=B137,1,0),IF($F$3:$F$100<=F137,1,0),$G$3:$G$100,$H$3:$H$100)/2000,IF(G137="",1,G137)*H137/2000),"N/A") -> N/A | L137: N/A | M137: 0.1 | N137: Square Yard
A138: 136 | B138: P-152-4.1-a | C138: Unclassified Excavation | D138: Fuel Adjustment | E138: N/A | F138: N/A | G138: N/A | H138: N/A | I138: N/A | K138: =IFERROR(_xlfn.SWITCH(F138,2,SUMPRODUCT(IF($B$3:$B$100=B138,1,0),IF($F$3:$F$100<=F138,1,0),$G$3:$G$100,$H$3:$H$100)/2000,3,SUMPRODUCT(IF($B$3:$B$100=B138,1,0),IF($F$3:$F$100<=F138,1,0),$G$3:$G$100,$H$3:$H$100)/2000,IF(G138="",1,G138)*H138/2000),"N/A") -> N/A | L138: =IFERROR(H138/2000,"N/A") -> N/A | M138: 0.25 | N138: Cubic Yard
A139: 137 | B139: P-152-4.1-b | C139: Rock Excavation | D139: Fuel Adjustment | E139: N/A | F139: N/A | G139: N/A | H139: N/A | I139: N/A | K139: =IFERROR(_xlfn.SWITCH(F139,2,SUMPRODUCT(IF($B$3:$B$100=B139,1,0),IF($F$3:$F$100<=F139,1,0),$G$3:$G$100,$H$3:$H$100)/2000,3,SUMPRODUCT(IF($B$3:$B$100=B139,1,0),IF($F$3:$F$100<=F139,1,0),$G$3:$G$100,$H$3:$H$100)/2000,IF(G139="",1,G139)*H139/2000),"N/A") -> N/A | L139: N/A | M139: 0.25 | N139: Cubic Yard
A140: 138 | B140: P-152-4.1-c | C140: Muck Excavation | D140: Fuel Adjustment | E140: N/A | F140: N/A | G140: N/A | H140: N/A | I140: N/A | K140: =IFERROR(_xlfn.SWITCH(F140,2,SUMPRODUCT(IF($B$3:$B$100=B140,1,0),IF($F$3:$F$100<=F140,1,0),$G$3:$G$100,$H$3:$H$100)/2000,3,SUMPRODUCT(IF($B$3:$B$100=B140,1,0),IF($F$3:$F$100<=F140,1,0),$G$3:$G$100,$H$3:$H$100)/2000,IF(G140="",1,G140)*H140/2000),"N/A") -> N/A | L140: N/A | M140: 0.25 | N140: Cubic Yard
A141: 139 | B141: P-152-4.1-d | C141: Borrow Excavation | D141: Fuel Adjustment | E141: N/A | F141: N/A | G141: N/A | H141: N/A | I141: N/A | K141: =IFERROR(_xlfn.SWITCH(F141,2,SUMPRODUCT(IF($B$3:$B$100=B141,1,0),IF($F$3:$F$100<=F141,1,0),$G$3:$G$100,$H$3:$H$100)/2000,3,SUMPRODUCT(IF($B$3:$B$100=B141,1,0),IF($F$3:$F$100<=F141,1,0),$G$3:$G$100,$H$3:$H$100)/2000,IF(G141="",1,G141)*H141/2000),"N/A") -> N/A | L141: N/A | M141: 0.25 | N141: Cubic Yard
A142: 140 | B142: P-152-4.1-e | C142: Drainage Excavation | D142: Fuel Adjustment | E142: N/A | F142: N/A | G142: N/A | H142: N/A | I142: N/A | K142: =IFERROR(_xlfn.SWITCH(F142,2,SUMPRODUCT(IF($B$3:$B$100=B142,1,0),IF($F$3:$F$100<=F142,1,0),$G$3:$G$100,$H$3:$H$100)/2000,3,SUMPRODUCT(IF($B$3:$B$100=B142,1,0),IF($F$3:$F$100<=F142,1,0),$G$3:$G$100,$H$3:$H$100)/2000,IF(G142="",1,G142)*H142/2000),"N/A") -> N/A | L142: N/A | M142: 0.25 | N142: Cubic Yard
A143: 141 | B143: P-152-4.2-a | C143: Embankment in Place | D143: Fuel Adjustment | E143: N/A | F143: N/A | G143: N/A | H143: N/A | I143: N/A | K143: =IFERROR(_xlfn.SWITCH(F143,2,SUMPRODUCT(IF($B$3:$B$100=B143,1,0),IF($F$3:$F$100<=F143,1,0),$G$3:$G$100,$H$3:$H$100)/2000,3,SUMPRODUCT(IF($B$3:$B$100=B143,1,0),IF($F$3:$F$100<=F143,1,0),$G$3:$G$100,$H$3:$H$100)/2000,IF(G143="",1,G143)*H143/2000),"N/A") -> N/A | L143: N/A | M143: 0.25 | N143: Cubic Yard
A144: 142 | B144: P-152-4.2-b | C144: Embankment in Place (Shot Rock) | D144: Fuel Adjustment | E144: N/A | F144: N/A | G144: N/A | H144: N/A | I144: N/A | K144: =IFERROR(_xlfn.SWITCH(F144,2,SUMPRODUCT(IF($B$3:$B$100=B144,1,0),IF($F$3:$F$100<=F144,1,0),$G$3:$G$100,$H$3:$H$100)/2000,3,SUMPRODUCT(IF($B$3:$B$100=B144,1,0),IF($F$3:$F$100<=F144,1,0),$G$3:$G$100,$H$3:$H$100)/2000,IF(G144="",1,G144)*H144/2000),"N/A") -> N/A | L144: N/A | M144: 0.11 | N144: Ton
A145: 143 | B145: P-401-8.1-a | C145: Asphalt Surface Course (Gradation 1, PG 64-22) | D145: Fuel Adjustment | E145: N/A | F145: N/A | G145: N/A | H145: N/A | I145: N/A | K145: =IFERROR(_xlfn.SWITCH(F145,2,SUMPRODUCT(IF($B$3:$B$100=B145,1,0),IF($F$3:$F$100<=F145,1,0),$G$3:$G$100,$H$3:$H$100)/2000,3,SUMPRODUCT(IF($B$3:$B$100=B145,1,0),IF($F$3:$F$100<=F145,1,0),$G$3:$G$100,$H$3:$H$100)/2000,IF(G145="",1,G145)*H145/2000),"N/A") -> N/A | L145: =IFERROR(H145/2000,"N/A") -> N/A | M145: 2.98 | N145: Ton
A146: 144 | B146: P-401-8.1-b | C146: Asphalt Surface Course (Gradation 1, PG 70-22) | D146: Fuel Adjustment | E146: N/A | F146: N/A | G146: N/A | H146: N/A | I146: N/A | K146: =IFERROR(_xlfn.SWITCH(F146,2,SUMPRODUCT(IF($B$3:$B$100=B146,1,0),IF($F$3:$F$100<=F146,1,0),$G$3:$G$100,$H$3:$H$100)/2000,3,SUMPRODUCT(IF($B$3:$B$100=B146,1,0),IF($F$3:$F$100<=F146,1,0),$G$3:$G$100,$H$3:$H$100)/2000,IF(G146="",1,G146)*H146/2000),"N/A") -> N/A | L146: N/A | M146: 2.98 | N146: Ton
A147: 145 | B147: P-401-8.1-c | C147: Asphalt Surface Course (Gradation 1, PG 76-22) | D147: Fuel Adjustment | E147: N/A | F147: N/A | G147: N/A | H147: N/A | I147: N/A | K147: =IFERROR(_xlfn.SWITCH(F147,2,SUMPRODUCT(IF($B$3:$B$100=B147,1,0),IF($F$3:$F$100<=F147,1,0),$G$3:$G$100,$H$3:$H$100)/2000,3,SUMPRODUCT(IF($B$3:$B$100=B147,1,0),IF($F$3:$F$100<=F147,1,0),$G$3:$G$100,$H$3:$H$100)/2000,IF(G147="",1,G147)*H147/2000),"N/A") -> N/A | L147: N/A | M147: 2.98 | N147: Ton
A148: 146 | B148: P-401-8.1-d | C148: Asphalt Surface Course (Gradation 2, PG 64-22) | D148: Fuel Adjustment | E148: N/A | F148: N/A | G148: N/A | H148: N/A | I148: N/A | K148: =IFERROR(_xlfn.SWITCH(F148,2,SUMPRODUCT(IF($B$3:$B$100=B148,1,0),IF($F$3:$F$100<=F148,1,0),$G$3:$G$100,$H$3:$H$100)/2000,3,SUMPRODUCT(IF($B$3:$B$100=B148,1,0),IF($F$3:$F$100<=F148,1,0),$G$3:$G$100,$H$3:$H$100)/2000,IF(G148="",1,G148)*H148/2000),"N/A") -> N/A | L148: N/A | M148: 2.98 | N148: Ton
A149: 147 | B149: P-401-8.1-e | C149: Asphalt Surface Course (Gradation 2, PG 70-22) | D149: Fuel Adjustment | E149: N/A | F149: N/A | G149: N/A | H149: N/A | I149: N/A | K149: =IFERROR(_xlfn.SWITCH(F149,2,SUMPRODUCT(IF($B$3:$B$100=B149,1,0),IF($F$3:$F$100<=F149,1,0),$G$3:$G$100,$H$3:$H$100)/2000,3,SUMPRODUCT(IF($B$3:$B$100=B149,1,0),IF($F$3:$F$100<=F149,1,0),$G$3:$G$100,$H$3:$H$100)/2000,IF(G149="",1,G149)*H149/2000),"N/A") -> N/A | L149: N/A | M149: 2.98 | N149: Ton
A150: 148 | B150: P-401-8.1-f | C150: Asphalt Surface Course (Gradation 2, PG 76-22) | D150: Fuel Adjustment | E150: N/A | F150: N/A | G150: N/A | H150: N/A | I150: N/A | K150: =IFERROR(_xlfn.SWITCH(F150,2,SUMPRODUCT(IF($B$3:$B$100=B150,1,0),IF($F$3:$F$100<=F150,1,0),$G$3:$G$100,$H$3:$H$100)/2000,3,SUMPRODUCT(IF($B$3:$B$100=B150,1,0),IF($F$3:$F$100<=F150,1,0),$G$3:$G$100,$H$3:$H$100)/2000,IF(G150="",1,G150)*H150/2000),"N/A") -> N/A | L150: N/A | M150: 2.98 | N150: Ton
A151: 149 | B151: P-401-8.1-g | C151: Asphalt Surface Course (Gradation 2, PG 82-22) | D151: Fuel Adjustment | E151: N/A | F151: N/A | G151: N/A | H151: N/A | I151: N/A | K151: =IFERROR(_xlfn.SWITCH(F151,2,SUMPRODUCT(IF($B$3:$B$100=B151,1,0),IF($F$3:$F$100<=F151,1,0),$G$3:$G$100,$H$3:$H$100)/2000,3,SUMPRODUCT(IF($B$3:$B$100=B151,1,0),IF($F$3:$F$100<=F151,1,0),$G$3:$G$100,$H$3:$H$100)/2000,IF(G151="",1,G151)*H151/2000),"N/A") -> N/A | L151: N/A | M151: 2.98 | N151: Ton
A152: 150 | B152: P-401-8.1-h | C152: Asphalt Surface Course (Desc.) | D152: Fuel Adjustment | E152: N/A | F152: N/A | G152: N/A | H152: N/A | I152: N/A | K152: =IFERROR(_xlfn.SWITCH(F152,2,SUMPRODUCT(IF($B$3:$B$100=B152,1,0),IF($F$3:$F$100<=F152,1,0),$G$3:$G$100,$H$3:$H$100)/2000,3,SUMPRODUCT(IF($B$3:$B$100=B152,1,0),IF($F$3:$F$100<=F152,1,0),$G$3:$G$100,$H$3:$H$100)/2000,IF(G152="",1,G152)*H152/2000),"N/A") -> N/A | L152: N/A | M152: 2.98 | N152: Ton
A153: 151 | B153: P-401-8.2-a | C153: Asphalt Base Course (Thickness 1, Gradation 1, Binder Grade 1) | D153: Fuel Adjustment | E153: N/A | F153: N/A | G153: N/A | H153: N/A | I153: N/A | K153: =IFERROR(_xlfn.SWITCH(F153,2,SUMPRODUCT(IF($B$3:$B$100=B153,1,0),IF($F$3:$F$100<=F153,1,0),$G$3:$G$100,$H$3:$H$100)/2000,3,SUMPRODUCT(IF($B$3:$B$100=B153,1,0),IF($F$3:$F$100<=F153,1,0),$G$3:$G$100,$H$3:$H$100)/2000,IF(G153="",1,G153)*H153/2000),"N/A") -> N/A | L153: N/A | M153: 2.98 | N153: Ton
A154: 152 | B154: P-401-8.3-a | C154: Asphalt Binder Course (Thickness 1, Gradation 1, Binder Grade 1) | D154: Fuel Adjustment | E154: N/A | F154: N/A | G154: N/A | H154: N/A | I154: N/A | K154: =IFERROR(_xlfn.SWITCH(F154,2,SUMPRODUCT(IF($B$3:$B$100=B154,1,0),IF($F$3:$F$100<=F154,1,0),$G$3:$G$100,$H$3:$H$100)/2000,3,SUMPRODUCT(IF($B$3:$B$100=B154,1,0),IF($F$3:$F$100<=F154,1,0),$G$3:$G$100,$H$3:$H$100)/2000,IF(G154="",1,G154)*H154/2000),"N/A") -> N/A | L154: N/A | M154: 2.98 | N154: Ton
A155: 153 | B155: P-401-8.4-a | C155: Asphalt Levelling Course (Thickness 1, Gradation 1, Binder Grade 1) | D155: Fuel Adjustment | E155: N/A | F155: N/A | G155: N/A | H155: N/A | I155: N/A | K155: =IFERROR(_xlfn.SWITCH(F155,2,SUMPRODUCT(IF($B$3:$B$100=B155,1,0),IF($F$3:$F$100<=F155,1,0),$G$3:$G$100,$H$3:$H$100)/2000,3,SUMPRODUCT(IF($B$3:$B$100=B155,1,0),IF($F$3:$F$100<=F155,1,0),$G$3:$G$100,$H$3:$H$100)/2000,IF(G155="",1,G155)*H155/2000),"N/A") -> N/A | L155: N/A | M155: 2.98 | N155: Ton
A156: 154 | B156: P-403-8.1-a | C156: Asphalt Surface Course (Gradation 1, PG 64-22) | D156: Fuel Adjustment | E156: N/A | F156: N/A | G156: N/A | H156: N/A | I156: N/A | K156: =IFERROR(_xlfn.SWITCH(F156,2,SUMPRODUCT(IF($B$3:$B$100=B156,1,0),IF($F$3:$F$100<=F156,1,0),$G$3:$G$100,$H$3:$H$100)/2000,3,SUMPRODUCT(IF($B$3:$B$100=B156,1,0),IF($F$3:$F$100<=F156,1,0),$G$3:$G$100,$H$3:$H$100)/2000,IF(G156="",1,G156)*H156/2000),"N/A") -> N/A | L156: N/A | M156: 2.98 | N156: Ton
A157: 155 | B157: P-403-8.1-b | C157: Asphalt Surface Course (Gradation 1, PG 70-22) | D157: Fuel Adjustment | E157: N/A | F157: N/A | G157: N/A | H157: N/A | I157: N/A | K157: =IFERROR(_xlfn.SWITCH(F157,2,SUMPRODUCT(IF($B$3:$B$100=B157,1,0),IF($F$3:$F$100<=F157,1,0),$G$3:$G$100,$H$3:$H$100)/2000,3,SUMPRODUCT(IF($B$3:$B$100=B157,1,0),IF($F$3:$F$100<=F157,1,0),$G$3:$G$100,$H$3:$H$100)/2000,IF(G157="",1,G157)*H157/2000),"N/A") -> N/A | L157: N/A | M157: 2.98 | N157: Ton
A158: 156 | B158: P-403-8.1-c | C158: Asphalt Surface Course (Gradation 1, PG 76-22) | D158: Fuel Adjustment | E158: N/A | F158: N/A | G158: N/A | H158: N/A | I158: N/A | K158: =IFERROR(_xlfn.SWITCH(F158,2,SUMPRODUCT(IF($B$3:$B$100=B158,1,0),IF($F$3:$F$100<=F158,1,0),$G$3:$G$100,$H$3:$H$100)/2000,3,SUMPRODUCT(IF($B$3:$B$100=B158,1,0),IF($F$3:$F$100<=F158,1,0),$G$3:$G$100,$H$3:$H$100)/2000,IF(G158="",1,G158)*H158/2000),"N/A") -> N/A | L158: N/A | M158: 2.98 | N158: Ton
A159: 157 | B159: P-403-8.1-d | C159: Asphalt Surface Course (Gradation 2, PG 64-22) | D159: Fuel Adjustment | E159: N/A | F159: N/A | G159: N/A | H159: N/A | I159: N/A | K159: =IFERROR(_xlfn.SWITCH(F159,2,SUMPRODUCT(IF($B$3:$B$100=B159,1,0),IF($F$3:$F$100<=F159,1,0),$G$3:$G$100,$H$3:$H$100)/2000,3,SUMPRODUCT(IF($B$3:$B$100=B159,1,0),IF($F$3:$F$100<=F159,1,0),$G$3:$G$100,$H$3:$H$100)/2000,IF(G159="",1,G159)*H159/2000),"N/A") -> N/A | L159: N/A | M159: 2.98 | N159: Ton
A160: 158 | B160: P-403-8.1-e | C160: Asphalt Surface Course (Gradation 2, PG 70-22) | D160: Fuel Adjustment | E160: N/A | F160: N/A | G160: N/A | H160: N/A | I160: N/A | K160: =IFERROR(_xlfn.SWITCH(F160,2,SUMPRODUCT(IF($B$3:$B$100=B160,1,0),IF($F$3:$F$100<=F160,1,0),$G$3:$G$100,$H$3:$H$100)/2000,3,SUMPRODUCT(IF($B$3:$B$100=B160,1,0),IF($F$3:$F$100<=F160,1,0),$G$3:$G$100,$H$3:$H$100)/2000,IF(G160="",1,G160)*H160/2000),"N/A") -> N/A | L160: N/A | M160: 2.98 | N160: Ton
A161: 159 | B161: P-403-8.1-f | C161: Asphalt Surface Course (Gradation 2, PG 76-22) | D161: Fuel Adjustment | E161: N/A | F161: N/A | G161: N/A | H161: N/A | I161: N/A | K161: =IFERROR(_xlfn.SWITCH(F161,2,SUMPRODUCT(IF($B$3:$B$100=B161,1,0),IF($F$3:$F$100<=F161,1,0),$G$3:$G$100,$H$3:$H$100)/2000,3,SUMPRODUCT(IF($B$3:$B$100=B161,1,0),IF($F$3:$F$100<=F161,1,0),$G$3:$G$100,$H$3:$H$100)/2000,IF(G161="",1,G161)*H161/2000),"N/A") -> N/A | L161: N/A | M161: 2.98 | N161: Ton
A162: 160 | B162: P-403-8.1-g | C162: Asphalt Surface Course (Gradation 2, PG 82-22) | D162: Fuel Adjustment | E162: N/A | F162: N/A | G162: N/A | H162: N/A | I162: N/A | K162: =IFERROR(_xlfn.SWITCH(F162,2,SUMPRODUCT(IF($B$3:$B$100=B162,1,0),IF($F$3:$F$100<=F162,1,0),$G$3:$G$100,$H$3:$H$100)/2000,3,SUMPRODUCT(IF($B$3:$B$100=B162,1,0),IF($F$3:$F$100<=F162,1,0),$G$3:$G$100,$H$3:$H$100)/2000,IF(G162="",1,G162)*H162/2000),"N/A") -> N/A | L162: N/A | M162: 2.98 | N162: Ton
A163: 161 | B163: P-403-8.1-h | C163: Asphalt Surface Course (Desc) | D163: Fuel Adjustment | E163: N/A | F163: N/A | G163: N/A | H163: N/A | I163: N/A | K163: =IFERROR(_xlfn.SWITCH(F163,2,SUMPRODUCT(IF($B$3:$B$100=B163,1,0),IF($F$3:$F$100<=F163,1,0),$G$3:$G$100,$H$3:$H$100)/2000,3,SUMPRODUCT(IF($B$3:$B$100=B163,1,0),IF($F$3:$F$100<=F163,1,0),$G$3:$G$100,$H$3:$H$100)/2000,IF(G163="",1,G163)*H163/2000),"N/A") -> N/A | L163: N/A | M163: 2.98 | N163: Ton
A164: 162 | B164: P-403-8.1-i | C164: Asphalt Surface Course (Desc.) | D164: Fuel Adjustment | E164: N/A | F164: N/A | G164: N/A | H164: N/A | I164: N/A | K164: =IFERROR(_xlfn.SWITCH(F164,2,SUMPRODUCT(IF($B$3:$B$100=B164,1,0),IF($F$3:$F$100<=F164,1,0),$G$3:$G$100,$H$3:$H$100)/2000,3,SUMPRODUCT(IF($B$3:$B$100=B164,1,0),IF($F$3:$F$100<=F164,1,0),$G$3:$G$100,$H$3:$H$100)/2000,IF(G164="",1,G164)*H164/2000),"N/A") -> N/A | L164: N/A | M164: 2.98 | N164: Ton
A165: 163 | B165: P-403-8.2-a | C165: Asphalt Base Course (Gradation 1, PG 64-22) | D165: Fuel Adjustment | E165: N/A | F165: N/A | G165: N/A | H165: N/A | I165: N/A | K165: =IFERROR(_xlfn.SWITCH(F165,2,SUMPRODUCT(IF($B$3:$B$100=B165,1,0),IF($F$3:$F$100<=F165,1,0),$G$3:$G$100,$H$3:$H$100)/2000,3,SUMPRODUCT(IF($B$3:$B$100=B165,1,0),IF($F$3:$F$100<=F165,1,0),$G$3:$G$100,$H$3:$H$100)/2000,IF(G165="",1,G165)*H165/2000),"N/A") -> N/A | L165: N/A | M165: 2.98 | N165: Ton
A166: 164 | B166: P-403-8.2-b | C166: Asphalt Base Course (Gradation 1, PG 70-22) | D166: Fuel Adjustment | E166: N/A | F166: N/A | G166: N/A | H166: N/A | I166: N/A | K166: =IFERROR(_xlfn.SWITCH(F166,2,SUMPRODUCT(IF($B$3:$B$100=B166,1,0),IF($F$3:$F$100<=F166,1,0),$G$3:$G$100,$H$3:$H$100)/2000,3,SUMPRODUCT(IF($B$3:$B$100=B166,1,0),IF($F$3:$F$100<=F166,1,0),$G$3:$G$100,$H$3:$H$100)/2000,IF(G166="",1,G166)*H166/2000),"N/A") -> N/A | L166: N/A | M166: 2.98 | N166: Ton
A167: 165 | B167: P-403-8.2-c | C167: Asphalt Base Course (Gradation 1, PG 76-22) | D167: Fuel Adjustment | E167: N/A | F167: N/A | G167: N/A | H167: N/A | I167: N/A | K167: =IFERROR(_xlfn.SWITCH(F167,2,SUMPRODUCT(IF($B$3:$B$100=B167,1,0),IF($F$3:$F$100<=F167,1,0),$G$3:$G$100,$H$3:$H$100)/2000,3,SUMPRODUCT(IF($B$3:$B$100=B167,1,0),IF($F$3:$F$100<=F167,1,0),$G$3:$G$100,$H$3:$H$100)/2000,IF(G167="",1,G167)*H167/2000),"N/A") -> N/A | L167: N/A | M167: 2.98 | N167: Ton
A168: 166 | B168: P-403-8.2-d | C168: Asphalt Base Course (Gradation 2, PG 64-22) | D168: Fuel Adjustment | E168: N/A | F168: N/A | G168: N/A | H168: N/A | I168: N/A | K168: =IFERROR(_xlfn.SWITCH(F168,2,SUMPRODUCT(IF($B$3:$B$100=B168,1,0),IF($F$3:$F$100<=F168,1,0),$G$3:$G$100,$H$3:$H$100)/2000,3,SUMPRODUCT(IF($B$3:$B$100=B168,1,0),IF($F$3:$F$100<=F168,1,0),$G$3:$G$100,$H$3:$H$100)/2000,IF(G168="",1,G168)*H168/2000),"N/A") -> N/A | L168: N/A | M168: 2.98 | N168: Ton
A169: 167 | B169: P-403-8.2-e | C169: Asphalt Base Course (Gradation 2, PG 70-22) | D169: Fuel Adjustment | E169: N/A | F169: N/A | G169: N/A | H169: N/A | I169: N/A | K169: =IFERROR(_xlfn.SWITCH(F169,2,SUMPRODUCT(IF($B$3:$B$100=B169,1,0),IF($F$3:$F$100<=F169,1,0),$G$3:$G$100,$H$3:$H$100)/2000,3,SUMPRODUCT(IF($B$3:$B$100=B169,1,0),IF($F$3:$F$100<=F169,1,0),$G$3:$G$100,$H$3:$H$100)/2000,IF(G169="",1,G169)*H169/2000),"N/A") -> N/A | L169: N/A | M169: 2.98 | N169: Ton
A170: 168 | B170: P-403-8.2-f | C170: Asphalt Base Course (Gradation 2, PG 76-22) | D170: Fuel Adjustment | E170: N/A | F170: N/A | G170: N/A | H170: N/A | I170: N/A | K170: =IFERROR(_xlfn.SWITCH(F170,2,SUMPRODUCT(IF($B$3:$B$100=B170,1,0),IF($F$3:$F$100<=F170,1,0),$G$3:$G$100,$H$3:$H$100)/2000,3,SUMPRODUCT(IF($B$3:$B$100=B170,1,0),IF($F$3:$F$100<=F170,1,0),$G$3:$G$100,$H$3:$H$100)/2000,IF(G170="",1,G170)*H170/2000),"N/A") -> N/A | L170: N/A | M170: 2.98 | N170: Ton
A171: 169 | B171: P-403-8.2-g | C171: Asphalt Base Course (Gradation 2, PG 82-22) | D171: Fuel Adjustment | E171: N/A | F171: N/A | G171: N/A | H171: N/A | I171: N/A | K171: =IFERROR(_xlfn.SWITCH(F171,2,SUMPRODUCT(IF($B$3:$B$100=B171,1,0),IF($F$3:$F$100<=F171,1,0),$G$3:$G$100,$H$3:$H$100)/2000,3,SUMPRODUCT(IF($B$3:$B$100=B171,1,0),IF($F$3:$F$100<=F171,1,0),$G$3:$G$100,$H$3:$H$100)/2000,IF(G171="",1,G171)*H171/2000),"N/A") -> N/A | L171: N/A | M171: 2.98 | N171: Ton
A172: 170 | B172: P-403-8.2-h | C172: Asphalt Base Course (Desc.) | D172: Fuel Adjustment | E172: N/A | F172: N/A | G172: N/A | H172: N/A | I172: N/A | K172: =IFERROR(_xlfn.SWITCH(F172,2,SUMPRODUCT(IF($B$3:$B$100=B172,1,0),IF($F$3:$F$100<=F172,1,0),$G$3:$G$100,$H$3:$H$100)/2000,3,SUMPRODUCT(IF($B$3:$B$100=B172,1,0),IF($F$3:$F$100<=F172,1,0),$G$3:$G$100,$H$3:$H$100)/2000,IF(G172="",1,G172)*H172/2000),"N/A") -> N/A | L172: N/A | M172: 2.98 | N172: Ton
A173: 171 | B173: P-403-8.2-i | C173: Asphalt Base Course (Desc.) | D173: Fuel Adjustment | E173: N/A | F173: N/A | G173: N/A | H173: N/A | I173: N/A | K173: =IFERROR(_xlfn.SWITCH(F173,2,SUMPRODUCT(IF($B$3:$B$100=B173,1,0),IF($F$3:$F$100<=F173,1,0),$G$3:$G$100,$H$3:$H$100)/2000,3,SUMPRODUCT(IF($B$3:$B$100=B173,1,0),IF($F$3:$F$100<=F173,1,0),$G$3:$G$100,$H$3:$H$100)/2000,IF(G173="",1,G173)*H173/2000),"N/A") -> N/A | L173: N/A | M173: 2.98 | N173: Ton
A174: 172 | B174: P-403-8.3-a | C174: Asphalt Binder Course (Gradation 1, PG 64-22) | D174: Fuel Adjustment | E174: N/A | F174: N/A | G174: N/A | H174: N/A | I174: N/A | K174: =IFERROR(_xlfn.SWITCH(F174,2,SUMPRODUCT(IF($B$3:$B$100=B174,1,0),IF($F$3:$F$100<=F174,1,0),$G$3:$G$100,$H$3:$H$100)/2000,3,SUMPRODUCT(IF($B$3:$B$100=B174,1,0),IF($F$3:$F$100<=F174,1,0),$G$3:$G$100,$H$3:$H$100)/2000,IF(G174="",1,G174)*H174/2000),"N/A") -> N/A | L174: N/A | M174: 2.98 | N174: Ton
A175: 173 | B175: P-403-8.3-b | C175: Asphalt Binder Course (Gradation 1, PG 70-22) | D175: Fuel Adjustment | E175: N/A | F175: N/A | G175: N/A | H175: N/A | I175: N/A | K175: =IFERROR(_xlfn.SWITCH(F175,2,SUMPRODUCT(IF($B$3:$B$100=B175,1,0),IF($F$3:$F$100<=F175,1,0),$G$3:$G$100,$H$3:$H$100)/2000,3,SUMPRODUCT(IF($B$3:$B$100=B175,1,0),IF($F$3:$F$100<=F175,1,0),$G$3:$G$100,$H$3:$H$100)/2000,IF(G175="",1,G175)*H175/2000),"N/A") -> N/A | L175: N/A | M175: 2.98 | N175: Ton
A176: 174 | B176: P-403-8.3-c | C176: Asphalt Binder Course (Gradation 1, PG 76-22) | D176: Fuel Adjustment | E176: N/A | F176: N/A | G176: N/A | H176: N/A | I176: N/A | K176: =IFERROR(_xlfn.SWITCH(F176,2,SUMPRODUCT(IF($B$3:$B$100=B176,1,0),IF($F$3:$F$100<=F176,1,0),$G$3:$G$100,$H$3:$H$100)/2000,3,SUMPRODUCT(IF($B$3:$B$100=B176,1,0),IF($F$3:$F$100<=F176,1,0),$G$3:$G$100,$H$3:$H$100)/2000,IF(G176="",1,G176)*H176/2000),"N/A") -> N/A | L176: N/A | M176: 2.98 | N176: Ton
A177: 175 | B177: P-403-8.3-d | C177: Asphalt Binder Course (Gradation 2, PG 64-22) | D177: Fuel Adjustment | E177: N/A | F177: N/A | G177: N/A | H177: N/A | I177: N/A | K177: =IFERROR(_xlfn.SWITCH(F177,2,SUMPRODUCT(IF($B$3:$B$100=B177,1,0),IF($F$3:$F$100<=F177,1,0),$G$3:$G$100,$H$3:$H$100)/2000,3,SUMPRODUCT(IF($B$3:$B$100=B177,1,0),IF($F$3:$F$100<=F177,1,0),$G$3:$G$100,$H$3:$H$100)/2000,IF(G177="",1,G177)*H177/2000),"N/A") -> N/A | L177: N/A | M177: 2.98 | N177: Ton
A178: 176 | B178: P-403-8.3-e | C178: Asphalt Binder Course (Gradation 2, PG 70-22) | D178: Fuel Adjustment | E178: N/A | F178: N/A | G178: N/A | H178: N/A | I178: N/A | K178: =IFERROR(_xlfn.SWITCH(F178,2,SUMPRODUCT(IF($B$3:$B$100=B178,1,0),IF($F$3:$F$100<=F178,1,0),$G$3:$G$100,$H$3:$H$100)/2000,3,SUMPRODUCT(IF($B$3:$B$100=B178,1,0),IF($F$3:$F$100<=F178,1,0),$G$3:$G$100,$H$3:$H$100)/2000,IF(G178="",1,G178)*H178/2000),"N/A") -> N/A | L178: N/A | M178: 2.98 | N178: Ton
A179: 177 | B179: P-403-8.3-f | C179: Asphalt Binder Course (Gradation 2, PG 76-22) | D179: Fuel Adjustment | E179: N/A | F179: N/A | G179: N/A | H179: N/A | I179: N/A | K179: =IFERROR(_xlfn.SWITCH(F179,2,SUMPRODUCT(IF($B$3:$B$100=B179,1,0),IF($F$3:$F$100<=F179,1,0),$G$3:$G$100,$H$3:$H$100)/2000,3,SUMPRODUCT(IF($B$3:$B$100=B179,1,0),IF($F$3:$F$100<=F179,1,0),$G$3:$G$100,$H$3:$H$100)/2000,IF(G179="",1,G179)*H179/2000),"N/A") -> N/A | L179: N/A | M179: 2.98 | N179: Ton
A180: 178 | B180: P-403-8.3-g | C180: Asphalt Binder Course (Gradation 2, PG 82-22) | D180: Fuel Adjustment | E180: N/A | F180: N/A | G180: N/A | H180: N/A | I180: N/A | K180: =IFERROR(_xlfn.SWITCH(F180,2,SUMPRODUCT(IF($B$3:$B$100=B180,1,0),IF($F$3:$F$100<=F180,1,0),$G$3:$G$100,$H$3:$H$100)/2000,3,SUMPRODUCT(IF($B$3:$B$100=B180,1,0),IF($F$3:$F$100<=F180,1,0),$G$3:$G$100,$H$3:$H$100)/2000,IF(G180="",1,G180)*H180/2000),"N/A") -> N/A | L180: N/A | M180: 2.98 | N180: Ton
A181: 179 | B181: P-403-8.3-h | C181: Asphalt Binder Course (Desc.) | D181: Fuel Adjustment | E181: N/A | F181: N/A | G181: N/A | H181: N/A | I181: N/A | K181: =IFERROR(_xlfn.SWITCH(F181,2,SUMPRODUCT(IF($B$3:$B$100=B181,1,0),IF($F$3:$F$100<=F181,1,0),$G$3:$G$100,$H$3:$H$100)/2000,3,SUMPRODUCT(IF($B$3:$B$100=B181,1,0),IF($F$3:$F$100<=F181,1,0),$G$3:$G$100,$H$3:$H$100)/2000,IF(G181="",1,G181)*H181/2000),"N/A") -> N/A | L181: N/A | M181: 2.98 | N181: Ton
A182: 180 | B182: P-403-8.3-i | C182: Asphalt Binder Course (Desc.) | D182: Fuel Adjustment | E182: N/A | F182: N/A | G182: N/A | H182: N/A | I182: N/A | K182: =IFERROR(_xlfn.SWITCH(F182,2,SUMPRODUCT(IF($B$3:$B$100=B182,1,0),IF($F$3:$F$100<=F182,1,0),$G$3:$G$100,$H$3:$H$100)/2000,3,SUMPRODUCT(IF($B$3:$B$100=B182,1,0),IF($F$3:$F$100<=F182,1,0),$G$3:$G$100,$H$3:$H$100)/2000,IF(G182="",1,G182)*H182/2000),"N/A") -> N/A | L182: N/A | M182: 2.98 | N182: Ton
A183: 181 | B183: P-403-8.4-a | C183: Asphalt Levelling Course (Thickness 1, Gradation 1, Binder Grade 1) | D183: Fuel Adjustment | E183: N/A | F183: N/A | G183: N/A | H183: N/A | I183: N/A | K183: =IFERROR(_xlfn.SWITCH(F183,2,SUMPRODUCT(IF($B$3:$B$100=B183,1,0),IF($F$3:$F$100<=F183,1,0),$G$3:$G$100,$H$3:$H$100)/2000,3,SUMPRODUCT(IF($B$3:$B$100=B183,1,0),IF($F$3:$F$100<=F183,1,0),$G$3:$G$100,$H$3:$H$100)/2000,IF(G183="",1,G183)*H183/2000),"N/A") -> N/A | L183: N/A | M183: 2.98 | N183: Ton
A184: 182 | B184: P-404-8.1-a | C184: Fuel Resistant Asphalt Mix Pavement Surface Course | D184: Fuel Adjustment | E184: N/A | F184: N/A | G184: N/A | H184: N/A | I184: N/A | K184: =IFERROR(_xlfn.SWITCH(F184,2,SUMPRODUCT(IF($B$3:$B$100=B184,1,0),IF($F$3:$F$100<=F184,1,0),$G$3:$G$100,$H$3:$H$100)/2000,3,SUMPRODUCT(IF($B$3:$B$100=B184,1,0),IF($F$3:$F$100<=F184,1,0),$G$3:$G$100,$H$3:$H$100)/2000,IF(G184="",1,G184)*H184/2000),"N/A") -> N/A | L184: N/A | M184: 2.98 | N184: Ton
A185: 183 | B185: TNP-401-8.1-a | C185: Asphalt Surface Course (TDOT D Mix, PG 64-22) | D185: Fuel Adjustment | E185: N/A | F185: N/A | G185: N/A | H185: N/A | I185: N/A | K185: =IFERROR(_xlfn.SWITCH(F185,2,SUMPRODUCT(IF($B$3:$B$100=B185,1,0),IF($F$3:$F$100<=F185,1,0),$G$3:$G$100,$H$3:$H$100)/2000,3,SUMPRODUCT(IF($B$3:$B$100=B185,1,0),IF($F$3:$F$100<=F185,1,0),$G$3:$G$100,$H$3:$H$100)/2000,IF(G185="",1,G185)*H185/2000),"N/A") -> N/A | L185: N/A | M185: 2.98 | N185: Ton
A186: 184 | B186: TNP-401-8.1-b | C186: Asphalt Surface Course (TDOT D Mix, PG 70-22) | D186: Fuel Adjustment | E186: N/A | F186: N/A | G186: N/A | H186: N/A | I186: N/A | K186: =IFERROR(_xlfn.SWITCH(F186,2,SUMPRODUCT(IF($B$3:$B$100=B186,1,0),IF($F$3:$F$100<=F186,1,0),$G$3:$G$100,$H$3:$H$100)/2000,3,SUMPRODUCT(IF($B$3:$B$100=B186,1,0),IF($F$3:$F$100<=F186,1,0),$G$3:$G$100,$H$3:$H$100)/2000,IF(G186="",1,G186)*H186/2000),"N/A") -> N/A | L186: N/A | M186: 2.98 | N186: Ton
A187: 185 | B187: TNP-401-8.1-c | C187: Asphalt Surface Course (TDOT D Mix, PG 76-22) | D187: Fuel Adjustment | E187: N/A | F187: N/A | G187: N/A | H187: N/A | I187: N/A | K187: =IFERROR(_xlfn.SWITCH(F187,2,SUMPRODUCT(IF($B$3:$B$100=B187,1,0),IF($F$3:$F$100<=F187,1,0),$G$3:$G$100,$H$3:$H$100)/2000,3,SUMPRODUCT(IF($B$3:$B$100=B187,1,0),IF($F$3:$F$100<=F187,1,0),$G$3:$G$100,$H$3:$H$100)/2000,IF(G187="",1,G187)*H187/2000),"N/A") -> N/A | L187: N/A | M187: 2.98 | N187: Ton
A188: 186 | B188: TNP-401-8.1-d | C188: Asphalt Surface Course (TDOT D Mix, PG 82-22) | D188: Fuel Adjustment | E188: N/A | F188: N/A | G188: N/A | H188: N/A | I188: N/A | K188: =IFERROR(_xlfn.SWITCH(F188,2,SUMPRODUCT(IF($B$3:$B$100=B188,1,0),IF($F$3:$F$100<=F188,1,0),$G$3:$G$100,$H$3:$H$100)/2000,3,SUMPRODUCT(IF($B$3:$B$100=B188,1,0),IF($F$3:$F$100<=F188,1,0),$G$3:$G$100,$H$3:$H$100)/2000,IF(G188="",1,G188)*H188/2000),"N/A") -> N/A | L188: N/A | M188: 2.98 | N188: Ton
A189: 187 | B189: TNP-401-8.1-e | C189: Asphalt Surface Course (Desc.) | D189: Fuel Adjustment | E189: N/A | F189: N/A | G189: N/A | H189: N/A | I189: N/A | K189: =IFERROR(_xlfn.SWITCH(F189,2,SUMPRODUCT(IF($B$3:$B$100=B189,1,0),IF($F$3:$F$100<=F189,1,0),$G$3:$G$100,$H$3:$H$100)/2000,3,SUMPRODUCT(IF($B$3:$B$100=B189,1,0),IF($F$3:$F$100<=F189,1,0),$G$3:$G$100,$H$3:$H$100)/2000,IF(G189="",1,G189)*H189/2000),"N/A") -> N/A | L189: N/A | M189: 2.98 | N189: Ton
A190: 188 | B190: TNP-401-8.2-a | C190: Asphalt Binder Course (TDOT BM2 Mix, PG 64-22) | D190: Fuel Adjustment | E190: N/A | F190: N/A | G190: N/A | H190: N/A | I190: N/A | K190: =IFERROR(_xlfn.SWITCH(F190,2,SUMPRODUCT(IF($B$3:$B$100=B190,1,0),IF($F$3:$F$100<=F190,1,0),$G$3:$G$100,$H$3:$H$100)/2000,3,SUMPRODUCT(IF($B$3:$B$100=B190,1,0),IF($F$3:$F$100<=F190,1,0),$G$3:$G$100,$H$3:$H$100)/2000,IF(G190="",1,G190)*H190/2000),"N/A") -> N/A | L190: N/A | M190: 2.98 | N190: Ton
A191: 189 | B191: TNP-401-8.2-b | C191: Asphalt Binder Course (TDOT BM2 Mix, PG 70-22) | D191: Fuel Adjustment | E191: N/A | F191: N/A | G191: N/A | H191: N/A | I191: N/A | K191: =IFERROR(_xlfn.SWITCH(F191,2,SUMPRODUCT(IF($B$3:$B$100=B191,1,0),IF($F$3:$F$100<=F191,1,0),$G$3:$G$100,$H$3:$H$100)/2000,3,SUMPRODUCT(IF($B$3:$B$100=B191,1,0),IF($F$3:$F$100<=F191,1,0),$G$3:$G$100,$H$3:$H$100)/2000,IF(G191="",1,G191)*H191/2000),"N/A") -> N/A | L191: N/A | M191: 2.98 | N191: Ton
A192: 190 | B192: TNP-401-8.2-c | C192: Asphalt Binder Course (TDOT BM2 Mix, PG 76-22) | D192: Fuel Adjustment | E192: N/A | F192: N/A | G192: N/A | H192: N/A | I192: N/A | K192: =IFERROR(_xlfn.SWITCH(F192,2,SUMPRODUCT(IF($B$3:$B$100=B192,1,0),IF($F$3:$F$100<=F192,1,0),$G$3:$G$100,$H$3:$H$100)/2000,3,SUMPRODUCT(IF($B$3:$B$100=B192,1,0),IF($F$3:$F$100<=F192,1,0),$G$3:$G$100,$H$3:$H$100)/2000,IF(G192="",1,G192)*H192/2000),"N/A") -> N/A | L192: N/A | M192: 2.98 | N192: Ton
A193: 191 | B193: TNP-401-8.2-d | C193: Asphalt Binder Course (TDOT BM2 Mix, PG 82-22) | D193: Fuel Adjustment | E193: N/A | F193: N/A | G193: N/A | H193: N/A | I193: N/A | K193: =IFERROR(_xlfn.SWITCH(F193,2,SUMPRODUCT(IF($B$3:$B$100=B193,1,0),IF($F$3:$F$100<=F193,1,0),$G$3:$G$100,$H$3:$H$100)/2000,3,SUMPRODUCT(IF($B$3:$B$100=B193,1,0),IF($F$3:$F$100<=F193,1,0),$G$3:$G$100,$H$3:$H$100)/2000,IF(G193="",1,G193)*H193/2000),"N/A") -> N/A | L193: N/A | M193: 2.98 | N193: Ton
A194: 192 | B194: TNP-401-8.2-e | C194: Asphalt Binder Course (Desc.) | D194: Fuel Adjustment | E194: N/A | F194: N/A | G194: N/A | H194: N/A | I194: N/A | K194: =IFERROR(_xlfn.SWITCH(F194,2,SUMPRODUCT(IF($B$3:$B$100=B194,1,0),IF($F$3:$F$100<=F194,1,0),$G$3:$G$100,$H$3:$H$100)/2000,3,SUMPRODUCT(IF($B$3:$B$100=B194,1,0),IF($F$3:$F$100<=F194,1,0),$G$3:$G$100,$H$3:$H$100)/2000,IF(G194="",1,G194)*H194/2000),"N/A") -> N/A | L194: N/A | M194: 2.98 | N194: Ton
A195: 193 | B195: TNP-401-8.2-g | C195: Asphalt Binder Course (TDOT BM2 Mix, PG 64-22) | D195: Fuel Adjustment | E195: N/A | F195: N/A | G195: N/A | H195: N/A | I195: N/A | K195: =IFERROR(_xlfn.SWITCH(F195,2,SUMPRODUCT(IF($B$3:$B$100=B195,1,0),IF($F$3:$F$100<=F195,1,0),$G$3:$G$100,$H$3:$H$100)/2000,3,SUMPRODUCT(IF($B$3:$B$100=B195,1,0),IF($F$3:$F$100<=F195,1,0),$G$3:$G$100,$H$3:$H$100)/2000,IF(G195="",1,G195)*H195/2000),"N/A") -> N/A | L195: N/A | M195: 2.98 | N195: Ton
A196: 194 | B196: P-153-6.1-a | C196: Controlled low-strength material (CLSM) | D196: Fuel Adjustment | E196: N/A | F196: N/A | G196: N/A | H196: N/A | I196: N/A | K196: =IFERROR(_xlfn.SWITCH(F196,2,SUMPRODUCT(IF($B$3:$B$100=B196,1,0),IF($F$3:$F$100<=F196,1,0),$G$3:$G$100,$H$3:$H$100)/2000,3,SUMPRODUCT(IF($B$3:$B$100=B196,1,0),IF($F$3:$F$100<=F196,1,0),$G$3:$G$100,$H$3:$H$100)/2000,IF(G196="",1,G196)*H196/2000),"N/A") -> N/A | L196: =IFERROR(H196/2000,"N/A") -> N/A | M196: 0.25 | N196: Cubic Yard
A197: 195 | B197: P-609-5.2-d | C197: Emulsified Asphalt, Type 1 Chip Seal | D197: FAA Surface Treatments | E197: Virgin | F197: N/A | G197: 0.45 | H197: 9 | I197: 69 | J197: 0.002025 | K197: =IFERROR(_xlfn.SWITCH(F197,2,SUMPRODUCT(IF($B$3:$B$100=B197,1,0),IF($F$3:$F$100<=F197,1,0),$G$3:$G$100,$H$3:$H$100)/2000,3,SUMPRODUCT(IF($B$3:$B$100=B197,1,0),IF($F$3:$F$100<=F197,1,0),$G$3:$G$100,$H$3:$H$100)/2000,IF(G197="",1,G197)*H197/2000),"N/A") -> 0.002025 | L197: 0.0045 | M197: N/A | N197: N/A
A198: 196 | B198: P-609-5.2-e | C198: Emulsified Asphalt, Type 2 Chip Seal | D198: FAA Surface Treatments | E198: Virgin | F198: N/A | G198: 0.28 | H198: 9 | I198: 69 | J198: 0.00126 | K198: =IFERROR(_xlfn.SWITCH(F198,2,SUMPRODUCT(IF($B$3:$B$100=B198,1,0),IF($F$3:$F$100<=F198,1,0),$G$3:$G$100,$H$3:$H$100)/2000,3,SUMPRODUCT(IF($B$3:$B$100=B198,1,0),IF($F$3:$F$100<=F198,1,0),$G$3:$G$100,$H$3:$H$100)/2000,IF(G198="",1,G198)*H198/2000),"N/A") -> 0.00126 | L198: 0.0045 | M198: N/A | N198: N/A
A199: 197 | B199: P-609-5.2-f | C199: Emulsified Asphalt, Type 3 Chip Seal | D199: FAA Surface Treatments | E199: Virgin | F199: N/A | G199: 0.18 | H199: 9 | I199: 69 | J199: 0.00081 | K199: =IFERROR(_xlfn.SWITCH(F199,2,SUMPRODUCT(IF($B$3:$B$100=B199,1,0),IF($F$3:$F$100<=F199,1,0),$G$3:$G$100,$H$3:$H$100)/2000,3,SUMPRODUCT(IF($B$3:$B$100=B199,1,0),IF($F$3:$F$100<=F199,1,0),$G$3:$G$100,$H$3:$H$100)/2000,IF(G199="",1,G199)*H199/2000),"N/A") -> 0.00081 | L199: =IFERROR(H199/2000,"N/A") -> 0.0045 | M199: N/A | N199: N/A
K200: =IFERROR(_xlfn.SWITCH(F200,2,SUMPRODUCT(IF($B$3:$B$100=B200,1,0),IF($F$3:$F$100<=F200,1,0),$G$3:$G$100,$H$3:$H$100)/2000,3,SUMPRODUCT(IF($B$3:$B$100=B200,1,0),IF($F$3:$F$100<=F200,1,0),$G$3:$G$100,$H$3:$H$100)/2000,IF(G200="",1,G200)*H200/2000),"N/A") -> 0 | L200: 0
... 1231 more rows

Sheet Fuel Index Calculations
C2: TAD Fuel Price Adjustment Spreadsheet
B3: Project Information | G3: Fuel Index
B4: Project Title | D4: ='Project Information'!E5 -> 0 | G4: Base Bidding Date | I4: ='Project Information'!$E$12 -> 00:00:00
B5: TAD Proj. No. | D5: ='Project Information'!E6 -> 0 | G5: Fuel Price (Fp) | I5: ='Project Information'!$E$14 -> 0
B6: Airport ID | D6: ='Project Information'!E7 -> 0 | G6: Bidding Index (Ib) | I6: ='Project Information'!$E$13 -> 0
B7: Airport Name | D7: ='Project Information'!E8 -> 0 | G7: Date Calculation Performed (i.e., Current Date)
B8: County | D8: ='Project Information'!E9 -> 0 | G8: Fuel Index (Ic) for Fuel Index Month
B9: Region | D9: ='Project Information'!E10 -> 0 | G9: Pay Estimate Number
B10: Prime Contractor | D10: ='Project Information'!E11 -> 0 | G10: Percent Change | I10: =IF(I8=0,0,(I8/I6-1)) -> 0
C14: Fuel Index Month
C15: Total Fuel Payment Adjustment (Paid using item TNP-109-8.1a) | F15: =K43 -> 0
C16: Computed by
B19: Payment Adjustment | K19: s | L19: PA1 =[Ic-Ib]x T
B23: Item Number | C23: Item Descriptions | G23: Fuel Factor | H23: Unit of Measure | I23: Quantity | J23: Fe | K23: Fuel Adjustment, $
C24: =_xlfn.IFNA(INDEX('Item Lists'!$C$3:$C$491,MATCH(1,(B24='Item Lists'!$B$3:$B$491)*("N/A"='Item Lists'!$E$3:$E$491),0)),"") ->  | G24: =_xlfn.IFNA(INDEX('Item Lists'!$M$3:$M$491,MATCH(1,(B24='Item Lists'!$B$3:$B$491)*("N/A"='Item Lists'!$E$3:$E$491),0)),"") ->  | H24: =_xlfn.IFNA(INDEX('Item Lists'!$N$3:$N$491,MATCH(1,(B24='Item Lists'!$B$3:$B$491)*("N/A"='Item Lists'!$E$3:$E$491),0)),"") ->  | J24: =IFERROR($G24*$I24,0) -> 0 | K24: =IFERROR(IF(ABS($I$10)<0.05,0,IF(ABS($I$10)>=0.05,(($I$8/$I$6-1)*J24*$I$5))),0) -> 0
C25: =_xlfn.IFNA(INDEX('Item Lists'!$C$3:$C$491,MATCH(1,(B25='Item Lists'!$B$3:$B$491)*("N/A"='Item Lists'!$E$3:$E$491),0)),"") ->  | G25: =_xlfn.IFNA(INDEX('Item Lists'!$M$3:$M$491,MATCH(1,(B25='Item Lists'!$B$3:$B$491)*("N/A"='Item Lists'!$E$3:$E$491),0)),"") ->  | H25: =_xlfn.IFNA(INDEX('Item Lists'!$N$3:$N$491,MATCH(1,(B25='Item Lists'!$B$3:$B$491)*("N/A"='Item Lists'!$E$3:$E$491),0)),"") ->  | J25: =IFERROR($G25*$I25,0) -> 0 | K25: =IFERROR(IF(ABS($I$10)<0.05,0,IF(ABS($I$10)>=0.05,(($I$8/$I$6-1)*J25*$I$5))),0) -> 0
C26: =_xlfn.IFNA(INDEX('Item Lists'!$C$3:$C$491,MATCH(1,(B26='Item Lists'!$B$3:$B$491)*("N/A"='Item Lists'!$E$3:$E$491),0)),"") ->  | G26: =_xlfn.IFNA(INDEX('Item Lists'!$M$3:$M$491,MATCH(1,(B26='Item Lists'!$B$3:$B$491)*("N/A"='Item Lists'!$E$3:$E$491),0)),"") ->  | H26: =_xlfn.IFNA(INDEX('Item Lists'!$N$3:$N$491,MATCH(1,(B26='Item Lists'!$B$3:$B$491)*("N/A"='Item Lists'!$E$3:$E$491),0)),"") ->  | J26: 0 | K26: 0
C27: =_xlfn.IFNA(INDEX('Item Lists'!$C$3:$C$491,MATCH(1,(B27='Item Lists'!$B$3:$B$491)*("N/A"='Item Lists'!$E$3:$E$491),0)),"") ->  | G27: =_xlfn.IFNA(INDEX('Item Lists'!$M$3:$M$491,MATCH(1,(B27='Item Lists'!$B$3:$B$491)*("N/A"='Item Lists'!$E$3:$E$491),0)),"") ->  | H27: =_xlfn.IFNA(INDEX('Item Lists'!$N$3:$N$491,MATCH(1,(B27='Item Lists'!$B$3:$B$491)*("N/A"='Item Lists'!$E$3:$E$491),0)),"") ->  | J27: 0 | K27: 0
C28: =_xlfn.IFNA(INDEX('Item Lists'!$C$3:$C$491,MATCH(1,(B28='Item Lists'!$B$3:$B$491)*("N/A"='Item Lists'!$E$3:$E$491),0)),"") ->  | G28: =_xlfn.IFNA(INDEX('Item Lists'!$M$3:$M$491,MATCH(1,(B28='Item Lists'!$B$3:$B$491)*("N/A"='Item Lists'!$E$3:$E$491),0)),"") ->  | H28: =_xlfn.IFNA(INDEX('Item Lists'!$N$3:$N$491,MATCH(1,(B28='Item Lists'!$B$3:$B$491)*("N/A"='Item Lists'!$E$3:$E$491),0)),"") ->  | J28: 0 | K28: 0
C29: =_xlfn.IFNA(INDEX('Item Lists'!$C$3:$C$491,MATCH(1,(B29='Item Lists'!$B$3:$B$491)*("N/A"='Item Lists'!$E$3:$E$491),0)),"") ->  | G29: =_xlfn.IFNA(INDEX('Item Lists'!$M$3:$M$491,MATCH(1,(B29='Item Lists'!$B$3:$B$491)*("N/A"='Item Lists'!$E$3:$E$491),0)),"") ->  | H29: =_xlfn.IFNA(INDEX('Item Lists'!$N$3:$N$491,MATCH(1,(B29='Item Lists'!$B$3:$B$491)*("N/A"='Item Lists'!$E$3:$E$491),0)),"") ->  | J29: 0 | K29: 0
C30: =_xlfn.IFNA(INDEX('Item Lists'!$C$3:$C$491,MATCH(1,(B30='Item Lists'!$B$3:$B$491)*("N/A"='Item Lists'!$E$3:$E$491),0)),"") ->  | G30: =_xlfn.IFNA(INDEX('Item Lists'!$M$3:$M$491,MATCH(1,(B30='Item Lists'!$B$3:$B$491)*("N/A"='Item Lists'!$E$3:$E$491),0)),"") ->  | H30: =_xlfn.IFNA(INDEX('Item Lists'!$N$3:$N$491,MATCH(1,(B30='Item Lists'!$B$3:$B$491)*("N/A"='Item Lists'!$E$3:$E$491),0)),"") ->  | J30: 0 | K30: 0
C31: =_xlfn.IFNA(INDEX('Item Lists'!$C$3:$C$491,MATCH(1,(B31='Item Lists'!$B$3:$B$491)*("N/A"='Item Lists'!$E$3:$E$491),0)),"") ->  | G31: =_xlfn.IFNA(INDEX('Item Lists'!$M$3:$M$491,MATCH(1,(B31='Item Lists'!$B$3:$B$491)*("N/A"='Item Lists'!$E$3:$E$491),0)),"") ->  | H31: =_xlfn.IFNA(INDEX('Item Lists'!$N$3:$N$491,MATCH(1,(B31='Item Lists'!$B$3:$B$491)*("N/A"='Item Lists'!$E$3:$E$491),0)),"") ->  | J31: 0 | K31: 0
C32: =_xlfn.IFNA(INDEX('Item Lists'!$C$3:$C$491,MATCH(1,(B32='Item Lists'!$B$3:$B$491)*("N/A"='Item Lists'!$E$3:$E$491),0)),"") ->  | G32: =_xlfn.IFNA(INDEX('Item Lists'!$M$3:$M$491,MATCH(1,(B32='Item Lists'!$B$3:$B$491)*("N/A"='Item Lists'!$E$3:$E$491),0)),"") ->  | H32: =_xlfn.IFNA(INDEX('Item Lists'!$N$3:$N$491,MATCH(1,(B32='Item Lists'!$B$3:$B$491)*("N/A"='Item Lists'!$E$3:$E$491),0)),"") ->  | J32: 0 | K32: 0
C33: =_xlfn.IFNA(INDEX('Item Lists'!$C$3:$C$491,MATCH(1,(B33='Item Lists'!$B$3:$B$491)*("N/A"='Item Lists'!$E$3:$E$491),0)),"") ->  | G33: =_xlfn.IFNA(INDEX('Item Lists'!$M$3:$M$491,MATCH(1,(B33='Item Lists'!$B$3:$B$491)*("N/A"='Item Lists'!$E$3:$E$491),0)),"") ->  | H33: =_xlfn.IFNA(INDEX('Item Lists'!$N$3:$N$491,MATCH(1,(B33='Item Lists'!$B$3:$B$491)*("N/A"='Item Lists'!$E$3:$E$491),0)),"") ->  | J33: 0 | K33: 0
C34: =_xlfn.IFNA(INDEX('Item Lists'!$C$3:$C$491,MATCH(1,(B34='Item Lists'!$B$3:$B$491)*("N/A"='Item Lists'!$E$3:$E$491),0)),"") ->  | G34: =_xlfn.IFNA(INDEX('Item Lists'!$M$3:$M$491,MATCH(1,(B34='Item Lists'!$B$3:$B$491)*("N/A"='Item Lists'!$E$3:$E$491),0)),"") ->  | H34: =_xlfn.IFNA(INDEX('Item Lists'!$N$3:$N$491,MATCH(1,(B34='Item Lists'!$B$3:$B$491)*("N/A"='Item Lists'!$E$3:$E$491),0)),"") ->  | J34: 0 | K34: 0
C35: =_xlfn.IFNA(INDEX('Item Lists'!$C$3:$C$491,MATCH(1,(B35='Item Lists'!$B$3:$B$491)*("N/A"='Item Lists'!$E$3:$E$491),0)),"") ->  | G35: =_xlfn.IFNA(INDEX('Item Lists'!$M$3:$M$491,MATCH(1,(B35='Item Lists'!$B$3:$B$491)*("N/A"='Item Lists'!$E$3:$E$491),0)),"") ->  | H35: =_xlfn.IFNA(INDEX('Item Lists'!$N$3:$N$491,MATCH(1,(B35='Item Lists'!$B$3:$B$491)*("N/A"='Item Lists'!$E$3:$E$491),0)),"") ->  | J35: 0 | K35: 0
C36: =_xlfn.IFNA(INDEX('Item Lists'!$C$3:$C$491,MATCH(1,(B36='Item Lists'!$B$3:$B$491)*("N/A"='Item Lists'!$E$3:$E$491),0)),"") ->  | G36: =_xlfn.IFNA(INDEX('Item Lists'!$M$3:$M$491,MATCH(1,(B36='Item Lists'!$B$3:$B$491)*("N/A"='Item Lists'!$E$3:$E$491),0)),"") ->  | H36: =_xlfn.IFNA(INDEX('Item Lists'!$N$3:$N$491,MATCH(1,(B36='Item Lists'!$B$3:$B$491)*("N/A"='Item Lists'!$E$3:$E$491),0)),"") ->  | J36: 0 | K36: 0
C37: =_xlfn.IFNA(INDEX('Item Lists'!$C$3:$C$491,MATCH(1,(B37='Item Lists'!$B$3:$B$491)*("N/A"='Item Lists'!$E$3:$E$491),0)),"") ->  | G37: =_xlfn.IFNA(INDEX('Item Lists'!$M$3:$M$491,MATCH(1,(B37='Item Lists'!$B$3:$B$491)*("N/A"='Item Lists'!$E$3:$E$491),0)),"") ->  | H37: =_xlfn.IFNA(INDEX('Item Lists'!$N$3:$N$491,MATCH(1,(B37='Item Lists'!$B$3:$B$491)*("N/A"='Item Lists'!$E$3:$E$491),0)),"") ->  | J37: 0 | K37: 0
C38: =_xlfn.IFNA(INDEX('Item Lists'!$C$3:$C$491,MATCH(1,(B38='Item Lists'!$B$3:$B$491)*("N/A"='Item Lists'!$E$3:$E$491),0)),"") ->  | G38: =_xlfn.IFNA(INDEX('Item Lists'!$M$3:$M$491,MATCH(1,(B38='Item Lists'!$B$3:$B$491)*("N/A"='Item Lists'!$E$3:$E$491),0)),"") ->  | H38: =_xlfn.IFNA(INDEX('Item Lists'!$N$3:$N$491,MATCH(1,(B38='Item Lists'!$B$3:$B$491)*("N/A"='Item Lists'!$E$3:$E$491),0)),"") ->  | J38: 0 | K38: 0
C39: =_xlfn.IFNA(INDEX('Item Lists'!$C$3:$C$491,MATCH(1,(B39='Item Lists'!$B$3:$B$491)*("N/A"='Item Lists'!$E$3:$E$491),0)),"") ->  | G39: =_xlfn.IFNA(INDEX('Item Lists'!$M$3:$M$491,MATCH(1,(B39='Item Lists'!$B$3:$B$491)*("N/A"='Item Lists'!$E$3:$E$491),0)),"") ->  | H39: =_xlfn.IFNA(INDEX('Item Lists'!$N$3:$N$491,MATCH(1,(B39='Item Lists'!$B$3:$B$491)*("N/A"='Item Lists'!$E$3:$E$491),0)),"") ->  | J39: 0 | K39: 0
C40: =_xlfn.IFNA(INDEX('Item Lists'!$C$3:$C$491,MATCH(1,(B40='Item Lists'!$B$3:$B$491)*("N/A"='Item Lists'!$E$3:$E$491),0)),"") ->  | G40: =_xlfn.IFNA(INDEX('Item Lists'!$M$3:$M$491,MATCH(1,(B40='Item Lists'!$B$3:$B$491)*("N/A"='Item Lists'!$E$3:$E$491),0)),"") ->  | H40: =_xlfn.IFNA(INDEX('Item Lists'!$N$3:$N$491,MATCH(1,(B40='Item Lists'!$B$3:$B$491)*("N/A"='Item Lists'!$E$3:$E$491),0)),"") ->  | J40: 0 | K40: 0
C41: =_xlfn.IFNA(INDEX('Item Lists'!$C$3:$C$491,MATCH(1,(B41='Item Lists'!$B$3:$B$491)*("N/A"='Item Lists'!$E$3:$E$491),0)),"") ->  | G41: =_xlfn.IFNA(INDEX('Item Lists'!$M$3:$M$491,MATCH(1,(B41='Item Lists'!$B$3:$B$491)*("N/A"='Item Lists'!$E$3:$E$491),0)),"") ->  | H41: =_xlfn.IFNA(INDEX('Item Lists'!$N$3:$N$491,MATCH(1,(B41='Item Lists'!$B$3:$B$491)*("N/A"='Item Lists'!$E$3:$E$491),0)),"") ->  | J41: 0 | K41: 0
C42: =_xlfn.IFNA(INDEX('Item Lists'!$C$3:$C$491,MATCH(1,(B42='Item Lists'!$B$3:$B$491)*("N/A"='Item Lists'!$E$3:$E$491),0)),"") ->  | G42: =_xlfn.IFNA(INDEX('Item Lists'!$M$3:$M$491,MATCH(1,(B42='Item Lists'!$B$3:$B$491)*("N/A"='Item Lists'!$E$3:$E$491),0)),"") ->  | H42: =_xlfn.IFNA(INDEX('Item Lists'!$N$3:$N$491,MATCH(1,(B42='Item Lists'!$B$3:$B$491)*("N/A"='Item Lists'!$E$3:$E$491),0)),"") ->  | J42: 0 | K42: 0
B43: Total Fuel Adjustment , $ | K43: =SUBTOTAL(109,$K$24:$K$42) -> 0

Sheet Bit Index Calculations
C2: TAD Bituminous Materials Adjustment Spreadsheet
B3: Project Information | G3: Bituminous Index
B4: Project Title | D4: ='Project Information'!E5 -> 0 | G4: Base Bidding Date | I4: ='Project Information'!E12 -> 00:00:00
B5: TAD Proj. No. | D5: ='Project Information'!E6 -> 0 | G5: Bidding Index (Ib) | I5: ='Project Information'!E15 -> 0
B6: Airport ID | D6: ='Project Information'!E7 -> 0 | G6: Date Calculation Performed (i.e., Current Date)
B7: Airport Name | D7: ='Project Information'!E8 -> 0 | G7: Bituminous Index (Ic) for Bituminous Index Month
B8: County | D8: ='Project Information'!E9 -> 0 | G8: Pay Estimate Number
B9: Region | D9: ='Project Information'!E10 -> 0 | G9: Percent Change | I9: =IF(I7=0,0,(I7/I5-1)) -> 0
B10: Prime Contractor | D10: ='Project Information'!E11 -> 0
C14: Bituminous Index Month
C15: Total Bituminous Payment Adjustment (Paid using item TNP-109-8.1b) | F15: =SUM('Bit Index Calculations'!$J$31,'Bit Index Calculations'!$J$45,'Bit Index Calculations'!$J$54,'Bit Index Calculations'!$J$64) -> 0
C16: Computed by
B19: Payment Adjustment 1 - Virgin Mix | K19: s | L19: PA1 =[Ic-Ib]x T
B21: Flexible Pavements (Virgin)
B23: Item Number | C23: Flexible Pavement Descriptions | G23: Mixture Materials, ton | H23: Mix Design AC, Percent | I23: Bituminous Material, ton | J23: Payment Adjustment, $
C24: =_xlfn.IFNA(INDEX('Item Lists'!$C$3:$C$491,MATCH(1,('Bit Index Calculations'!B24='Item Lists'!$B$3:$B$491)*("Virgin"='Item Lists'!$E$3:$E$491),0)),"") ->  | I24: =IFERROR('Bit Index Calculations'!$G24*'Bit Index Calculations'!$H24,0) -> 0 | J24: =IFERROR(IF(ABS($I$9)<0.05,0,IF(ABS($I$9)>=0.05,(($I$7-$I$5)*I24))),0) -> 0
C25: =_xlfn.IFNA(INDEX('Item Lists'!$C$3:$C$491,MATCH(1,('Bit Index Calculations'!B25='Item Lists'!$B$3:$B$491)*("Virgin"='Item Lists'!$E$3:$E$491),0)),"") ->  | I25: =IFERROR('Bit Index Calculations'!$G25*'Bit Index Calculations'!$H25,0) -> 0 | J25: =IFERROR(IF(ABS($I$9)<0.05,0,IF(ABS($I$9)>=0.05,(($I$7-$I$5)*I25))),0) -> 0
C26: =_xlfn.IFNA(INDEX('Item Lists'!$C$3:$C$491,MATCH(1,('Bit Index Calculations'!B26='Item Lists'!$B$3:$B$491)*("Virgin"='Item Lists'!$E$3:$E$491),0)),"") ->  | I26: =IFERROR('Bit Index Calculations'!$G26*'Bit Index Calculations'!$H26,0) -> 0 | J26: 0
C27: =_xlfn.IFNA(INDEX('Item Lists'!$C$3:$C$491,MATCH(1,('Bit Index Calculations'!B27='Item Lists'!$B$3:$B$491)*("Virgin"='Item Lists'!$E$3:$E$491),0)),"") ->  | I27: =IFERROR('Bit Index Calculations'!$G27*'Bit Index Calculations'!$H27,0) -> 0 | J27: 0
C28: =_xlfn.IFNA(INDEX('Item Lists'!$C$3:$C$491,MATCH(1,('Bit Index Calculations'!B28='Item Lists'!$B$3:$B$491)*("Virgin"='Item Lists'!$E$3:$E$491),0)),"") ->  | I28: =IFERROR('Bit Index Calculations'!$G28*'Bit Index Calculations'!$H28,0) -> 0 | J28: 0
C29: =_xlfn.IFNA(INDEX('Item Lists'!$C$3:$C$491,MATCH(1,('Bit Index Calculations'!B29='Item Lists'!$B$3:$B$491)*("Virgin"='Item Lists'!$E$3:$E$491),0)),"") ->  | I29: =IFERROR('Bit Index Calculations'!$G29*'Bit Index Calculations'!$H29,0) -> 0 | J29: 0
C30: =_xlfn.IFNA(INDEX('Item Lists'!$C$3:$C$491,MATCH(1,('Bit Index Calculations'!B30='Item Lists'!$B$3:$B$491)*("Virgin"='Item Lists'!$E$3:$E$491),0)),"") ->  | I30: =IFERROR('Bit Index Calculations'!$G30*'Bit Index Calculations'!$H30,0) -> 0 | J30: 0
B31: Subtotal | J31: =SUBTOTAL(109,'Bit Index Calculations'!$J$24:$J$30) -> 0
B34: Surface Treatments | G34: Current Date | H34: =I6 -> 00:00:00
B36: Item Number | C36: Surface Treatment Description | D36: Application Number based on Specification or Mix Measurement Type | E36: Unit of Measure | F36: Quantity | G36: Estimated Applied Material, ton | H36: Estimated Residue, Percent | I36: Estimated Bituminous Material, ton | J36: Payment Adjustment, $
C37: =_xlfn.IFNA(INDEX('Item Lists'!$C$3:$C$491,MATCH(1,('Bit Index Calculations'!B37='Item Lists'!$B$3:$B$491)*("Virgin"='Item Lists'!$E$3:$E$491),0)),"") ->  | G37: =_xlfn.IFNA(_xlfn.SWITCH('Bit Index Calculations'!$E37,"TONS",'Bit Index Calculations'!$F37,"SY",'Bit Index Calculations'!$F37*VLOOKUP(_xlfn.CONCAT('Bit Index Calculations'!$B37,'Bit Index Calculations'!$D37),'Item Lists'!$J$2:$K$491,2,FALSE),"GAL",'Bit Index Calculations'!$F37*VLOOKUP(_xlfn.CONCAT('Bit Index Calculations'!$B37,'Bit Index Calculations'!$D37),'Item Lists'!$J$2:$L$491,3,FALSE)),"") ->  | H37: =IFERROR(VLOOKUP(B37,'Item Lists'!$B$3:$I$1048576,8,FALSE)/100,0) -> 0 | I37: =IFERROR('Bit Index Calculations'!$G37*'Bit Index Calculations'!$H37,0) -> 0 | J37: =IFERROR(IF(ABS($I$9)<0.05,0,IF(ABS($I$9)>=0.05,(($I$7-$I$5)*I37))),0) -> 0
C38: =_xlfn.IFNA(INDEX('Item Lists'!$C$3:$C$491,MATCH(1,('Bit Index Calculations'!B38='Item Lists'!$B$3:$B$491)*("Virgin"='Item Lists'!$E$3:$E$491),0)),"") ->  | G38: =_xlfn.IFNA(_xlfn.SWITCH('Bit Index Calculations'!$E38,"TONS",'Bit Index Calculations'!$F38,"SY",'Bit Index Calculations'!$F38*VLOOKUP(_xlfn.CONCAT('Bit Index Calculations'!$B38,'Bit Index Calculations'!$D38),'Item Lists'!$J$2:$K$491,2,FALSE),"GAL",'Bit Index Calculations'!$F38*VLOOKUP(_xlfn.CONCAT('Bit Index Calculations'!$B38,'Bit Index Calculations'!$D38),'Item Lists'!$J$2:$L$491,3,FALSE)),"") ->  | H38: =IFERROR(VLOOKUP(B38,'Item Lists'!$B$3:$I$1048576,8,FALSE)/100,0) -> 0 | I38: =IFERROR('Bit Index Calculations'!$G38*'Bit Index Calculations'!$H38,0) -> 0 | J38: =IFERROR(IF(ABS($I$9)<0.05,0,IF(ABS($I$9)>=0.05,(($I$7-$I$5)*I38))),0) -> 0
C39: =_xlfn.IFNA(INDEX('Item Lists'!$C$3:$C$491,MATCH(1,('Bit Index Calculations'!B39='Item Lists'!$B$3:$B$491)*("Virgin"='Item Lists'!$E$3:$E$491),0)),"") ->  | G39: =_xlfn.IFNA(_xlfn.SWITCH('Bit Index Calculations'!$E39,"TONS",'Bit Index Calculations'!$F39,"SY",'Bit Index Calculations'!$F39*VLOOKUP(_xlfn.CONCAT('Bit Index Calculations'!$B39,'Bit Index Calculations'!$D39),'Item Lists'!$J$2:$K$491,2,FALSE),"GAL",'Bit Index Calculations'!$F39*VLOOKUP(_xlfn.CONCAT('Bit Index Calculations'!$B39,'Bit Index Calculations'!$D39),'Item Lists'!$J$2:$L$491,3,FALSE)),"") ->  | H39: =IFERROR(VLOOKUP(B39,'Item Lists'!$B$3:$I$1048576,8,FALSE)/100,0) -> 0 | I39: =IFERROR('Bit Index Calculations'!$G39*'Bit Index Calculations'!$H39,0) -> 0 | J39: 0
C40: =_xlfn.IFNA(INDEX('Item Lists'!$C$3:$C$491,MATCH(1,('Bit Index Calculations'!B40='Item Lists'!$B$3:$B$491)*("Virgin"='Item Lists'!$E$3:$E$491),0)),"") ->  | G40: =_xlfn.IFNA(_xlfn.SWITCH('Bit Index Calculations'!$E40,"TONS",'Bit Index Calculations'!$F40,"SY",'Bit Index Calculations'!$F40*VLOOKUP(_xlfn.CONCAT('Bit Index Calculations'!$B40,'Bit Index Calculations'!$D40),'Item Lists'!$J$2:$K$491,2,FALSE),"GAL",'Bit Index Calculations'!$F40*VLOOKUP(_xlfn.CONCAT('Bit Index Calculations'!$B40,'Bit Index Calculations'!$D40),'Item Lists'!$J$2:$L$491,3,FALSE)),"") ->  | H40: =IFERROR(VLOOKUP(B40,'Item Lists'!$B$3:$I$1048576,8,FALSE)/100,0) -> 0 | I40: =IFERROR('Bit Index Calculations'!$G40*'Bit Index Calculations'!$H40,0) -> 0 | J40: 0
C41: =_xlfn.IFNA(INDEX('Item Lists'!$C$3:$C$491,MATCH(1,('Bit Index Calculations'!B41='Item Lists'!$B$3:$B$491)*("Virgin"='Item Lists'!$E$3:$E$491),0)),"") ->  | G41: =_xlfn.IFNA(_xlfn.SWITCH('Bit Index Calculations'!$E41,"TONS",'Bit Index Calculations'!$F41,"SY",'Bit Index Calculations'!$F41*VLOOKUP(_xlfn.CONCAT('Bit Index Calculations'!$B41,'Bit Index Calculations'!$D41),'Item Lists'!$J$2:$K$491,2,FALSE),"GAL",'Bit Index Calculations'!$F41*VLOOKUP(_xlfn.CONCAT('Bit Index Calculations'!$B41,'Bit Index Calculations'!$D41),'Item Lists'!$J$2:$L$491,3,FALSE)),"") ->  | H41: =IFERROR(VLOOKUP(B41,'Item Lists'!$B$3:$I$1048576,8,FALSE)/100,0) -> 0 | I41: =IFERROR('Bit Index Calculations'!$G41*'Bit Index Calculations'!$H41,0) -> 0 | J41: 0
C42: =_xlfn.IFNA(INDEX('Item Lists'!$C$3:$C$491,MATCH(1,('Bit Index Calculations'!B42='Item Lists'!$B$3:$B$491)*("Virgin"='Item Lists'!$E$3:$E$491),0)),"") ->  | G42: =_xlfn.IFNA(_xlfn.SWITCH('Bit Index Calculations'!$E42,"TONS",'Bit Index Calculations'!$F42,"SY",'Bit Index Calculations'!$F42*VLOOKUP(_xlfn.CONCAT('Bit Index Calculations'!$B42,'Bit Index Calculations'!$D42),'Item Lists'!$J$2:$K$491,2,FALSE),"GAL",'Bit Index Calculations'!$F42*VLOOKUP(_xlfn.CONCAT('Bit Index Calculations'!$B42,'Bit Index Calculations'!$D42),'Item Lists'!$J$2:$L$491,3,FALSE)),"") ->  | H42: =IFERROR(VLOOKUP(B42,'Item Lists'!$B$3:$I$1048576,8,FALSE)/100,0) -> 0 | I42: =IFERROR('Bit Index Calculations'!$G42*'Bit Index Calculations'!$H42,0) -> 0 | J42: 0
C43: =_xlfn.IFNA(INDEX('Item Lists'!$C$3:$C$491,MATCH(1,('Bit Index Calculations'!B43='Item Lists'!$B$3:$B$491)*("Virgin"='Item Lists'!$E$3:$E$491),0)),"") ->  | G43: =_xlfn.IFNA(_xlfn.SWITCH('Bit Index Calculations'!$E43,"TONS",'Bit Index Calculations'!$F43,"SY",'Bit Index Calculations'!$F43*VLOOKUP(_xlfn.CONCAT('Bit Index Calculations'!$B43,'Bit Index Calculations'!$D43),'Item Lists'!$J$2:$K$491,2,FALSE),"GAL",'Bit Index Calculations'!$F43*VLOOKUP(_xlfn.CONCAT('Bit Index Calculations'!$B43,'Bit Index Calculations'!$D43),'Item Lists'!$J$2:$L$491,3,FALSE)),"") ->  | H43: =IFERROR(VLOOKUP(B43,'Item Lists'!$B$3:$I$1048576,8,FALSE)/100,0) -> 0 | I43: =IFERROR('Bit Index Calculations'!$G43*'Bit Index Calculations'!$H43,0) -> 0 | J43: 0
C44: =_xlfn.IFNA(INDEX('Item Lists'!$C$3:$C$491,MATCH(1,('Bit Index Calculations'!B44='Item Lists'!$B$3:$B$491)*("Virgin"='Item Lists'!$E$3:$E$491),0)),"") ->  | G44: =_xlfn.IFNA(_xlfn.SWITCH('Bit Index Calculations'!$E44,"TONS",'Bit Index Calculations'!$F44,"SY",'Bit Index Calculations'!$F44*VLOOKUP(_xlfn.CONCAT('Bit Index Calculations'!$B44,'Bit Index Calculations'!$D44),'Item Lists'!$J$2:$K$491,2,FALSE),"GAL",'Bit Index Calculations'!$F44*VLOOKUP(_xlfn.CONCAT('Bit Index Calculations'!$B44,'Bit Index Calculations'!$D44),'Item Lists'!$J$2:$L$491,3,FALSE)),"") ->  | H44: =IFERROR(VLOOKUP(B44,'Item Lists'!$B$3:$I$1048576,8,FALSE)/100,0) -> 0 | I44: =IFERROR('Bit Index Calculations'!$G44*'Bit Index Calculations'!$H44,0) -> 0 | J44: 0
B45: Subtotal | J45: =SUBTOTAL(109,'Bit Index Calculations'!$J$37:$J$44) -> 0
B47: Prime and Tack Coats
B49: Item Number | C49: Prime and Tack Coat Description | E49: Unit of Measure | F49: Quantity | G49: Materials, ton | H49: Asphalt Residue, Percent | I49: Bituminous Material, ton | J49: Payment Adjustment, $
C50: =_xlfn.IFNA(INDEX('Item Lists'!$C$3:$C$491,MATCH(1,('Bit Index Calculations'!B50='Item Lists'!$B$3:$B$491)*("Virgin"='Item Lists'!$E$3:$E$491),0)),"") ->  | G50: =_xlfn.IFNA(IF('Bit Index Calculations'!$E50="TONS",'Bit Index Calculations'!$F50,'Bit Index Calculations'!$F50*VLOOKUP(_xlfn.CONCAT('Bit Index Calculations'!$B50,"N/A"),'Item Lists'!$J$2:$K$491,2,FALSE)),0) -> 0 | H50: =IFERROR(VLOOKUP(B50,'Item Lists'!$B$3:$I$1048576,8,FALSE)/100,0) -> 0 | I50: =IFERROR('Bit Index Calculations'!$G50*'Bit Index Calculations'!$H50,0) -> 0 | J50: =IFERROR(IF(ABS($I$9)<0.05,0,IF(ABS($I$9)>=0.05,(($I$7-$I$5)*I50))),0) -> 0
C51: =_xlfn.IFNA(INDEX('Item Lists'!$C$3:$C$491,MATCH(1,('Bit Index Calculations'!B51='Item Lists'!$B$3:$B$491)*("Virgin"='Item Lists'!$E$3:$E$491),0)),"") ->  | G51: =_xlfn.IFNA(IF('Bit Index Calculations'!$E51="TONS",'Bit Index Calculations'!$F51,'Bit Index Calculations'!$F51*VLOOKUP(_xlfn.CONCAT('Bit Index Calculations'!$B51,"N/A"),'Item Lists'!$J$2:$K$491,2,FALSE)),0) -> 0 | H51: =IFERROR(VLOOKUP(B51,'Item Lists'!$B$3:$I$1048576,8,FALSE)/100,0) -> 0 | I51: =IFERROR('Bit Index Calculations'!$G51*'Bit Index Calculations'!$H51,0) -> 0 | J51: =IFERROR(IF(ABS($I$9)<0.05,0,IF(ABS($I$9)>=0.05,(($I$7-$I$5)*I51))),0) -> 0
C52: =_xlfn.IFNA(INDEX('Item Lists'!$C$3:$C$491,MATCH(1,('Bit Index Calculations'!B52='Item Lists'!$B$3:$B$491)*("Virgin"='Item Lists'!$E$3:$E$491),0)),"") ->  | G52: =_xlfn.IFNA(IF('Bit Index Calculations'!$E52="TONS",'Bit Index Calculations'!$F52,'Bit Index Calculations'!$F52*VLOOKUP(_xlfn.CONCAT('Bit Index Calculations'!$B52,"N/A"),'Item Lists'!$J$2:$K$491,2,FALSE)),0) -> 0 | H52: =IFERROR(VLOOKUP(B52,'Item Lists'!$B$3:$I$1048576,8,FALSE)/100,0) -> 0 | I52: =IFERROR('Bit Index Calculations'!$G52*'Bit Index Calculations'!$H52,0) -> 0 | J52: 0
C53: =_xlfn.IFNA(INDEX('Item Lists'!$C$3:$C$491,MATCH(1,('Bit Index Calculations'!B53='Item Lists'!$B$3:$B$491)*("Virgin"='Item Lists'!$E$3:$E$491),0)),"") ->  | G53: =_xlfn.IFNA(IF('Bit Index Calculations'!$E53="TONS",'Bit Index Calculations'!$F53,'Bit Index Calculations'!$F53*VLOOKUP(_xlfn.CONCAT('Bit Index Calculations'!$B53,"N/A"),'Item Lists'!$J$2:$K$491,2,FALSE)),0) -> 0 | H53: =IFERROR(VLOOKUP(B53,'Item Lists'!$B$3:$I$1048576,8,FALSE)/100,0) -> 0 | I53: =IFERROR('Bit Index Calculations'!$G53*'Bit Index Calculations'!$H53,0) -> 0 | J53: 0
B54: Subtotal | J54: =SUBTOTAL(109,'Bit Index Calculations'!$J$50:$J$53) -> 0
B56: Payment Adjustment - 2 - Recycled Mix
B58: Recycled Bituminous Material
B60: Item Number | C60: Description | G60: Mixture Materials, Ton | H60: Job-mix Formula AC (JA), Percent | I60: Reclaimed AC (RA) Mix Contribution, Percent | J60: Payment Adjustment, $
C61: =_xlfn.IFNA(INDEX('Item Lists'!$C$3:$C$491,MATCH(1,('Bit Index Calculations'!B61='Item Lists'!$B$3:$B$491)*("Recycled"='Item Lists'!$E$3:$E$491),0)),"") ->  | J61: =IFERROR(IF(ABS($I$9)<0.05,0,IF(ABS($I$9)>=0.05,((($I$7-$I$5)*(H61-I61)*G61)))),0) -> 0
C62: =_xlfn.IFNA(INDEX('Item Lists'!$C$3:$C$491,MATCH(1,('Bit Index Calculations'!B62='Item Lists'!$B$3:$B$491)*("Recycled"='Item Lists'!$E$3:$E$491),0)),"") ->  | J62: =IFERROR(IF(ABS($I$9)<0.05,0,IF(ABS($I$9)>=0.05,((($I$7-$I$5)*(H62-I62)*G62)))),0) -> 0
C63: =_xlfn.IFNA(INDEX('Item Lists'!$C$3:$C$491,MATCH(1,('Bit Index Calculations'!B63='Item Lists'!$B$3:$B$491)*("Recycled"='Item Lists'!$E$3:$E$491),0)),"") ->  | J63: 0
B64: Subtotal | J64: =SUBTOTAL(109,'Bit Index Calculations'!$J$61:$J$63) -> 0

Sheet Summary
A1: Bituminous Adjustment
A3: Months | B3: Monthly Payment Adjustment | C3: Computed by | E3: Bituminous Adjustment Running Total | G3: Items with payment adjustments [Item Number($ Adjustment)]
E4: =SUM(B$4:B$21) -> 0 | G4: 1 | H4: 2 | I4: 3 | J4: 4 | K4: 5 | L4: 6 | M4: 7 | N4: 8 | O4: 9 | P4: 10 | Q4: 11 | R4: 12 | S4: 13 | T4: 14 | U4: 15 | V4: 16 | W4: 17 | X4: 18 | Y4: 19 | Z4: 20
A25: Fuel Adjustment
A27: Months | B27: Monthly Payment Adjustment | C27: Computed by | E27: Fuel Adjustment Running Total | G27: Items with payment adjustments [Item Number($ Adjustment)]
E28: =SUM(B29:B51) -> 0 | G28: 1 | H28: 2 | I28: 3 | J28: 4 | K28: 5 | L28: 6 | M28: 7 | N28: 8 | O28: 9 | P28: 10 | Q28: 11 | R28: 12 | S28: 13 | T28: 14 | U28: 15 | V28: 16 | W28: 17 | X28: 18 | Y28: 19 | Z28: 20
E54: Total Adjustments
E55: =E28+E4 -> 0

Sheet Sheet1 (hidden)
AC1: AIRPORT LIST
B2: ITEM NUMBERS | H2: SURFACE TREATMENTS | AC2: Airport ID | AD2: Airport Name | AE2: County | AF2: Region
B3: Table 1 | C3: Table 3 | D3: Table 2 | E3: Table 4 | F3: Fuel Adjustment | H3: Row no | I3: FAA AC 150/5370-10H Flexible Pavement Descriptions | J3: NO OF COATS/ COAT TYPE
B4: Virgin | E4: Recycled | H4: 1 | I4: ='Bit Index Calculations'!C37 ->  | J4: =TRANSPOSE(_xlfn.UNIQUE(_xlfn._xlws.FILTER('Item Lists'!$F$3:$F$491,'Item Lists'!$C$3:$C$491=Sheet1!I4,"N/A"))) -> 0 | AC4: 0A3 | AD4: Smithville Municipal Airport | AE4: Dekalb | AF4: 2
B5: FAA Flexible Pavements | C5: FAA Surface Treatments | D5: FAA Prime and Tack Coats | E5: FAA Flexible Pavements | F5: Fuel Adjustment | H5: 2 | I5: ='Bit Index Calculations'!C38 ->  | J5: =TRANSPOSE(_xlfn.UNIQUE(_xlfn._xlws.FILTER('Item Lists'!$F$3:$F$491,('Item Lists'!$C$3:$C$491=Sheet1!I5)))) -> 0 | AC5: 0A9 | AD5: Elizabethton Municipal Airport | AE5: Carter | AF5: 1
B6: =_xlfn.UNIQUE(_xlfn._xlws.FILTER('Item Lists'!B3:B491,('Item Lists'!D3:D491=Sheet1!B5)*('Item Lists'!E3:E491=Sheet1!B4))) -> P-401-8.6-a | C6: =_xlfn.UNIQUE(_xlfn._xlws.FILTER('Item Lists'!B3:B491,('Item Lists'!D3:D491=Sheet1!C5)*('Item Lists'!E3:E491=Sheet1!B4))) -> P-608-8.1-a | D6: =_xlfn.UNIQUE(_xlfn._xlws.FILTER('Item Lists'!B3:B491,('Item Lists'!D3:D491=Sheet1!D5)*('Item Lists'!E3:E491=Sheet1!B4))) -> P-602-5.1-a | E6: =_xlfn.UNIQUE(_xlfn._xlws.FILTER('Item Lists'!B3:B491,('Item Lists'!D3:D491=Sheet1!E5)*('Item Lists'!E3:E491=Sheet1!E4))) -> P-401-8.7-a | F6: =_xlfn.UNIQUE(_xlfn._xlws.FILTER('Item Lists'!B3:B491,('Item Lists'!D3:D491=Sheet1!F5))) -> P-152-4.1-a | H6: 3 | I6: ='Bit Index Calculations'!C39 ->  | J6: =TRANSPOSE(_xlfn.UNIQUE(_xlfn._xlws.FILTER('Item Lists'!$F$3:$F$491,('Item Lists'!$C$3:$C$491=Sheet1!I6)))) -> 0 | AC6: 0M2 | AD6: State owned | AE6: Lake | AF6: 4
B7: P-401-8.1-a | C7: P-608-R-8.1-a | D7: P-603-5.1-a | F7: P-152-4.1-b | H7: 4 | I7: ='Bit Index Calculations'!C40 ->  | J7: =TRANSPOSE(_xlfn.UNIQUE(_xlfn._xlws.FILTER('Item Lists'!$F$3:$F$491,('Item Lists'!$C$3:$C$491=Sheet1!I7)))) -> 0 | AC7: 0M3 | AD7: John A. Baker Field | AE7: Lewis | AF7: 3
B8: P-401-8.1-b | C8: P-609-5.1-a | D8: P-602-5.1-b | F8: P-152-4.1-c | H8: 5 | I8: ='Bit Index Calculations'!C41 ->  | J8: =TRANSPOSE(_xlfn.UNIQUE(_xlfn._xlws.FILTER('Item Lists'!$F$3:$F$491,('Item Lists'!$C$3:$C$491=Sheet1!I8)))) -> 0 | AC8: 0M4 | AD8: Benton County Airport | AE8: Benton | AF8: 4
B9: P-401-8.1-c | C9: P-609-5.2-a | D9: P-603-5.1-b | F9: P-152-4.1-d | H9: 6 | I9: ='Bit Index Calculations'!C42 ->  | J9: =TRANSPOSE(_xlfn.UNIQUE(_xlfn._xlws.FILTER('Item Lists'!$F$3:$F$491,('Item Lists'!$C$3:$C$491=Sheet1!I9)))) -> 0 | AC9: 0M5 | AD9: Humphreys County Airport | AE9: Humphreys | AF9: 3
B10: P-401-8.1-d | C10: P-623-8.1-a | F10: P-152-4.1-e | H10: 7 | I10: ='Bit Index Calculations'!C43 ->  | J10: =TRANSPOSE(_xlfn.UNIQUE(_xlfn._xlws.FILTER('Item Lists'!$F$3:$F$491,('Item Lists'!$C$3:$C$491=Sheet1!I10)))) -> 0 | AC10: 1A0 | AD10: Dallas Bay Skypark | AE10: Hamilton | AF10: 2
B11: P-401-8.1-e | C11: P-626-6.1-a | F11: P-152-4.1-f | H11: 8 | I11: ='Bit Index Calculations'!C44 ->  | J11: =TRANSPOSE(_xlfn.UNIQUE(_xlfn._xlws.FILTER('Item Lists'!$F$3:$F$491,('Item Lists'!$C$3:$C$491=Sheet1!I11)))) -> 0 | AC11: 1A3 | AD11: Martin Campbell Field | AE11: Polk | AF11: 2
B12: P-401-8.1-f | C12: P-626-6.3-a | F12: P-152-4.2-a | H12: 9 | I12: ='Bit Index Calculations'!C45 -> 0 | J12: =TRANSPOSE(_xlfn.UNIQUE(_xlfn._xlws.FILTER('Item Lists'!$F$3:$F$491,('Item Lists'!$C$3:$C$491=Sheet1!I12)))) -> 0 | AC12: 1A7 | AD12: Jackson County Airport | AE12: Jackson | AF12: 2
B13: P-401-8.1-g | C13: P-626-6.1-b | F13: P-207-5.2-a | H13: 10 | I13: ='Bit Index Calculations'!C46 -> 0 | J13: =TRANSPOSE(_xlfn.UNIQUE(_xlfn._xlws.FILTER('Item Lists'!$F$3:$F$491,('Item Lists'!$C$3:$C$491=Sheet1!I13)))) -> 0 | AC13: 1M5 | AD13: Portland Municipal Airport | AE13: Sumner | AF13: 3
B14: P-401-8.1-h | C14: P-626-6.3-b | F14: P-307-7.1-a | H14: 11 | I14: ='Bit Index Calculations'!C47 -> 0 | J14: =TRANSPOSE(_xlfn.UNIQUE(_xlfn._xlws.FILTER('Item Lists'!$F$3:$F$491,('Item Lists'!$C$3:$C$491=Sheet1!I14)))) -> 0 | AC14: 2A0 | AD14: Mark Anton Airport | AE14: Rhea | AF14: 2
B15: P-401-8.2-a | C15: P-609-5.1-b | F15: P-501-8.1-a | H15: 12 | I15: ='Bit Index Calculations'!C48 -> 0 | J15: =TRANSPOSE(_xlfn.UNIQUE(_xlfn._xlws.FILTER('Item Lists'!$F$3:$F$491,('Item Lists'!$C$3:$C$491=Sheet1!I15)))) -> 0 | AC15: 2A1 | AD15: Jamestown Municipal Airport | AE15: Fentress | AF15: 2
B16: P-401-8.3-a | C16: P-609-5.2-b | F16: P-501-8.1-b | AC16: 2M2 | AD16: Lawrenceburg-Lawrence County Airport | AE16: Lawrence | AF16: 3
B17: P-401-8.4-a | C17: P-609-5.2-c | F17: P-152-4.3-a | J17: P-626 | AC17: 2M8 | AD17: Charles W. Baker Field | AE17: Shelby | AF17: 4
B18: P-403-8.1-a | C18: P-609-5.2-d | F18: TNP-209-5.1-a | H18: Row no | I18: FAA AC 150/5370-10H Flexible Pavement Descriptions | J18: Input unit | AC18: 3A2 | AD18: New Tazewell Municipal | AE18: Claiborne | AF18: 1
B19: P-403-8.1-b | C19: P-609-5.2-e | F19: TNP-209-5.1-b | H19: 1 | I19: ='Bit Index Calculations'!B37 -> 0 | J19: =TRANSPOSE(IF(LEFT(I19,5)=$J$17,$E$163:$E$164,$E$163:$E$165)) -> GAL | K19: TONS | L19: SY | AC19: 3M7 | AD19: Lafayette Municipal Airport | AE19: Macon | AF19: 3
B20: P-403-8.1-c | C20: P-609-5.2-f | F20: P-207-5.1-a | H20: 2 | I20: ='Bit Index Calculations'!B38 -> 0 | J20: =TRANSPOSE(IF(LEFT(I20,5)=$J$17,$E$163:$E$164,$E$163:$E$165)) -> GAL | K20: TONS | L20: SY | AC20: 54M | AD20: Wolf River | AE20: Fayette | AF20: 4
B21: P-403-8.1-d | F21: P-207-5.1-b | H21: 3 | I21: ='Bit Index Calculations'!B39 -> 0 | J21: =TRANSPOSE(IF(LEFT(I21,5)=$J$17,$E$163:$E$164,$E$163:$E$165)) -> GAL | K21: TONS | L21: SY | AC21: 6A4 | AD21: Johnson County Airport | AE21: Johnson | AF21: 3
B22: P-403-8.1-e | F22: P-207-5.1-c | H22: 4 | I22: ='Bit Index Calculations'!B40 -> 0 | J22: =TRANSPOSE(IF(LEFT(I22,5)=$J$17,$E$163:$E$164,$E$163:$E$165)) -> GAL | K22: TONS | L22: SY | AC22: 8A3 | AD22: Livingston Municipal Airport | AE22: Overton | AF22: 2
B23: P-403-8.1-f | F23: P-207-5.1-d | H23: 5 | I23: ='Bit Index Calculations'!B41 -> 0 | J23: =TRANSPOSE(IF(LEFT(I23,5)=$J$17,$E$163:$E$164,$E$163:$E$165)) -> GAL | K23: TONS | L23: SY | AC23: 92A | AD23: Chilhowee Gliderport | AE23: Polk | AF23: 2
B24: P-403-8.1-g | F24: P-207-5.1-e | H24: 6 | I24: ='Bit Index Calculations'!B42 -> 0 | J24: =TRANSPOSE(IF(LEFT(I24,5)=$J$17,$E$163:$E$164,$E$163:$E$165)) -> GAL | K24: TONS | L24: SY | AC24: APT | AD24: Marion County - Brown Field | AE24: Marion | AF24: 2
B25: P-403-8.1-h | F25: P-207-5.1-f | H25: 7 | I25: ='Bit Index Calculations'!B43 -> 0 | J25: =TRANSPOSE(IF(LEFT(I25,5)=$J$17,$E$163:$E$164,$E$163:$E$165)) -> GAL | K25: TONS | L25: SY | AC25: BGF | AD25: Winchester Municipal Airport | AE25: Franklin | AF25: 2
B26: P-403-8.1-i | F26: P-207-5.1-g | H26: 8 | I26: ='Bit Index Calculations'!B44 -> 0 | J26: =TRANSPOSE(IF(LEFT(I26,5)=$J$17,$E$163:$E$164,$E$163:$E$165)) -> GAL | K26: TONS | L26: SY | AC26: BNA | AD26: Nashville International Airport | AE26: Davidson | AF26: 3
B27: P-403-8.2-a | F27: P-207-5.2-b | H27: 9 | AC27: CHA | AD27: Chattanooga Metropolitan Airport (Lovell Field) | AE27: Hamilton | AF27: 2
B28: P-403-8.2-b | F28: P-207-5.2-c | H28: 10 | AC28: CKV | AD28: Clarksville Regional Airport | AE28: Montgomery | AF28: 3
B29: P-403-8.2-c | F29: P-207-5.2-d | H29: 11 | AC29: CSV | AD29: Crossville Memorial Airport (Whitson Field) | AE29: Cumberland | AF29: 2
B30: P-403-8.2-d | F30: P-208-5.1-a | H30: 12 | AC30: DKX | AD30: Downtown Island Airport | AE30: Knox | AF30: 1
B31: P-403-8.2-e | F31: P-208-5.1-b | AC31: DYR | AD31: Dyersburg Municipal Airport | AE31: Dyer | AF31: 4
B32: P-403-8.2-f | F32: P-209-5.1-a | AC32: FGU | AD32: Collegedale Municipal Airport | AE32: Hamilton | AF32: 2
B33: P-403-8.2-g | F33: P-209-5.1-b | AC33: FYE | AD33: Fayette County Airport | AE33: Fayette | AF33: 4
B34: P-403-8.2-h | F34: P-209-5.1-c | AC34: FYM | AD34: Fayetteville Municipal Airport | AE34: Lincoln | AF34: 3
B35: P-403-8.2-i | F35: P-209-5.1-d | AC35: GCY | AD35: Greeneville-Greene County Municipal Airport | AE35: Greene | AF35: 1
B36: P-403-8.3-a | F36: P-209-5.1-e | AC36: GHM | AD36: Centerville Municipal Airport | AE36: Hickman | AF36: 3
B37: P-403-8.3-b | F37: P-210-5.1-a | AC37: GKT | AD37: Gatlinburg-Pigeon Forge Airport | AE37: Sevier | AF37: 1
B38: P-403-8.3-c | F38: P-210-5.1-b | AC38: GZS | AD38: Abernathy Field | AE38: Giles | AF38: 3
B39: P-403-8.3-d | F39: P-211-5.1-a | AC39: HZD | AD39: Carroll County Airport | AE39: Carroll | AF39: 4
B40: P-403-8.3-e | F40: P-211-5.1-b | AC40: JAU | AD40: Campbell County Airport | AE40: Campbell | AF40: 1
B41: P-403-8.3-f | F41: P-213-5.1-a | AC41: JWN | AD41: John C. Tune Airport | AE41: Davidson | AF41: 1
B42: P-403-8.3-g | F42: P-213-5.1-b | AC42: LUG | AD42: Ellington Airport | AE42: Marshall | AF42: 3
B43: P-403-8.3-h | F43: P-217-5.1-a
B44: P-403-8.3-i | F44: P-217-5.1-b | AC44: M01 | AD44: General Dewitt Spain Airport | AE44: Shelby | AF44: 4
B45: P-403-8.4-a | F45: P-217-5.2-a | AC45: M02 | AD45: Dickson Municipal Airport | AE45: Dickson | AF45: 3
B46: P-404-8.1-a | F46: P-217-5.2-b | AC46: M04 | AD46: Covington Municipal Airport | AE46: Tipton | AF46: 4
B47: TNP-401-8.1-a | F47: P-217-5.3-a | AC47: M08 | AD47: William L.Whitehurst Field | AE47: Hardeman | AF47: 4
B48: TNP-401-8.1-b | F48: P-219-5.1-a | AC48: M15 | AD48: Perry County Airport | AE48: Perry | AF48: 3
B49: TNP-401-8.1-c | F49: P-220-6.1-a | AC49: M29 | AD49: Clifton Airport (Hassell Field) | AE49: Wayne | AF49: 3
B50: TNP-401-8.1-d | F50: P-220-6.2-a | AC50: M31 | AD50: Arnold Field | AE50: Lauderdale | AF50: 4
B51: TNP-401-8.1-e | F51: P-304-8.1-a | AC51: M53 | AD51: Humboldt Municipal Airport | AE51: Gibson | AF51: 4
B52: TNP-401-8.2-a | F52: P-306-8.1-a | AC52: M54 | AD52: Lebanon Municipal Airport | AE52: Wilson | AF52: 3
B53: TNP-401-8.2-b | F53: P-501-8.2-a | AC53: M91 | AD53: Springfield-Robertson County Airport | AE53: Robertson | AF53: 3
B54: TNP-401-8.2-c | F54: P-501-8.2-b | AC54: M93 | AD54: Houston County Airport | AE54: Houston | AF54: 3
B55: TNP-401-8.2-d | F55: P-501-8.2-c | AC55: MBT | AD55: Murfreesboro Municipal Airport | AE55: Rutherford | AF55: 3
B56: TNP-401-8.2-e | F56: P-501-8.2-d | AC56: MEM | AD56: Memphis International Airport | AE56: Shelby | AF56: 4
B57: TNP-401-8.2-g | F57: P-501-8.2-e | AC57: MKL | AD57: McKellar-Sipes Regional Airport | AE57: Madison | AF57: 4
F58: P-501-8.2-f | AC58: MMI | AD58: McMinn County airport | AE58: Mcminn | AF58: 2
F59: P-501-8.2-g | AC59: MNV | AD59: Monroe County Airport | AE59: Monroe | AF59: 1
F60: P-501-8.2-h | AC60: MOR | AD60: Moore-Murrell Field | AE60: Hamblen | AF60: 1
F61: P-154-5.1-a | AC61: MQY | AD61: Smyrna Airport | AE61: Rutherford | AF61: 3
F62: P-154-5.1-b | AC62: MRC | AD62: Maury County Regional Airport | AE62: Maury | AF62: 3
F63: P-155-8.1-a | AC63: NQA | AD63: Millington Regional Jetport | AE63: Shelby | AF63: 4
F64: P-156-8.1-a | AC64: PHT | AD64: Henry County Airport | AE64: Henry | AF64: 4
F65: P-157-8.1-a | AC65: PVE | AD65: Beech River Regional | AE65: Henderson | AF65: 4
F66: P-158-8.1-a | AC66: RKW | AD66: Rockwood Municipal Airport | AE66: Morgan | AF66: 1
F67: P-152-4.2-b | AC67: RNC | AD67: Warren County Memorial Airport | AE67: Warren | AF67: 2
F68: P-401-8.1-a | AC68: RVN | AD68: Hawkins County Airport | AE68: Hawkins | AF68: 1
F69: P-401-8.1-b | AC69: RZR | AD69: Cleveland Regional Jetport | AE69: Bradley | AF69: 2
F70: P-401-8.1-c | AC70: SCX | AD70: Scott Municipal Airport | AE70: Scott | AF70: 1
F71: P-401-8.1-d | AC71: SNH | AD71: Savannah-Hardin County Airport | AE71: Hardin | AF71: 4
F72: P-401-8.1-e | AC72: SRB | AD72: Upper Cumberland Regional Airport | AE72: White | AF72: 2
F73: P-401-8.1-f | AC73: SYI | AD73: Shelbyville Municipal Airport (Bomar Field) | AE73: Bedford | AF73: 3
F74: P-401-8.1-g | AC74: SZY | AD74: Robert Sibley Airport | AE74: Mcnairy | AF74: 4
F75: P-401-8.1-h | AC75: TGC | AD75: Gibson County Airport | AE75: Gibson | AF75: 4
F76: P-401-8.2-a | AC76: THA | AD76: Tullahoma Regional Airport | AE76: Coffee | AF76: 2
F77: P-401-8.3-a | AC77: TRI | AD77: Tri-Cities Regional Airport | AE77: Sullivan | AF77: 1
F78: P-401-8.4-a | AC78: TYS | AD78: McGhee Tyson Airport | AE78: Blount | AF78: 1
F79: P-403-8.1-a | AC79: UCY | AD79: Everett-Stewart Airport | AE79: Obion | AF79: 4
F80: P-403-8.1-b | AC80: UOS | AD80: University of the South-Franklin County Airport | AE80: Franklin | AF80: 2
F81: P-403-8.1-c | AC81: XNX | AD81: Music City Executive Airport | AE81: Sumner | AF81: 3
F82: P-403-8.1-d
F83: P-403-8.1-e
F84: P-403-8.1-f
F85: P-403-8.1-g
F86: P-403-8.1-h
F87: P-403-8.1-i
F88: P-403-8.2-a
F89: P-403-8.2-b
F90: P-403-8.2-c
F91: P-403-8.2-d
F92: P-403-8.2-e
F93: P-403-8.2-f
F94: P-403-8.2-g
F95: P-403-8.2-h
F96: P-403-8.2-i
F97: P-403-8.3-a
F98: P-403-8.3-b
F99: P-403-8.3-c
F100: P-403-8.3-d
F101: P-403-8.3-e
F102: P-403-8.3-f
F103: P-403-8.3-g
F104: P-403-8.3-h
F105: P-403-8.3-i
F106: P-403-8.4-a
F107: P-404-8.1-a
F108: TNP-401-8.1-a
F109: TNP-401-8.1-b
F110: TNP-401-8.1-c
F111: TNP-401-8.1-d
F112: TNP-401-8.1-e
F113: TNP-401-8.2-a
F114: TNP-401-8.2-b
F115: TNP-401-8.2-c
F116: TNP-401-8.2-d
F117: TNP-401-8.2-e
F118: TNP-401-8.2-g
F119: P-153-6.1-a
B161: User Form Choices
B162: Row Source | C162: Virgin/Recycled | D162: Coat Type | E162: Unit of Measure | F162: Fuel Units of Measure
B163: FAA Flexible Pavements | C163: Virgin | D163: 1 | E163: GAL | F163: Cubic Yard
B164: FAA Prime and Tack Coats | C164: Recycled | D164: 2 | E164: TONS | F164: Square Yard
B165: FAA Surface Treatments | C165: N/A | D165: 3 | E165: SY | F165: Ton
B166: Fuel Adjustment | D166: N/A | E166: N/A | F166: N/A
B173: Estimated Residue Table
B174: Item Groups | C174: Estimated Residue
B175: Asphalt Mixtures (P-401, P-403 etc) | C175: 1
B176: Emulsified Asphalt Treatments (e.g. P-602, P-603, P-608, P-623, and P-626) | C176: Enter based on estimated residue based on ASP 109B
B177: Fuel Adjustment Items (P-100, P-300, P-500) | C177: N/A
B179: Items with payment adjustment
B180: Individual Items | C180: =IFERROR(TRANSPOSE(_xlfn._xlws.FILTER('Bit Index Calculations'!B24:B64,('Bit Index Calculations'!I24:I64<>0)*('Bit Index Calculations'!B24:B64<>"Subtotal")*('Bit Index Calculations'!B24:B64<>"Item Number"))),"") -> 
B181: Individual Costs | C181: =TRANSPOSE(_xlfn._xlws.FILTER('Bit Index Calculations'!J24:J64,('Bit Index Calculations'!I24:I64<>0)*('Bit Index Calculations'!B24:B64<>"Subtotal")*('Bit Index Calculations'!B24:B64<>"Item Number"))) -> 
B182: Items + Costs | C182: =IF(C180="","",_xlfn.CONCAT(C180," ($",ROUND(C181,2),")")) ->  | D182: =IF(D180="","",_xlfn.CONCAT(D180," ($",ROUND(D181,2),")")) ->  | E182: =IF(E180="","",_xlfn.CONCAT(E180," ($",ROUND(E181,2),")")) ->  | F182: =IF(F180="","",_xlfn.CONCAT(F180," ($",ROUND(F181,2),")")) ->  | K182: =IF(K180="","",_xlfn.CONCAT(K180," ($",ROUND(K181,2),")")) ->  | L182: =IF(L180="","",_xlfn.CONCAT(L180," ($",ROUND(L181,2),")")) ->  | M182: =IF(M180="","",_xlfn.CONCAT(M180," ($",ROUND(M181,2),")")) ->  | N182: =IF(N180="","",_xlfn.CONCAT(N180," ($",ROUND(N181,2),")")) ->  | P182: =IF(P180="","",_xlfn.CONCAT(P180," ($",ROUND(P181,2),")")) ->  | Q182: =IF(Q180="","",_xlfn.CONCAT(Q180," ($",ROUND(Q181,2),")")) ->  | R182: =IF(R180="","",_xlfn.CONCAT(R180," ($",ROUND(R181,2),")")) ->  | S182: =IF(S180="","",_xlfn.CONCAT(S180," ($",ROUND(S181,2),")")) ->  | U182: =IF(U180="","",_xlfn.CONCAT(U180," ($",ROUND(U181,2),")")) ->  | V182: =IF(V180="","",_xlfn.CONCAT(V180," ($",ROUND(V181,2),")")) ->  | W182: =IF(W180="","",_xlfn.CONCAT(W180," ($",ROUND(W181,2),")")) ->  | X182: =IF(X180="","",_xlfn.CONCAT(X180," ($",ROUND(X181,2),")")) ->  | Z182: =IF(Z180="","",_xlfn.CONCAT(Z180," ($",ROUND(Z181,2),")")) -> 
B184: Items with payment adjustment
B185: Individual Items | C185: =IFERROR(TRANSPOSE(_xlfn._xlws.FILTER('Fuel Index Calculations'!B23:B44,('Fuel Index Calculations'!J23:J44<>0)*('Fuel Index Calculations'!B23:B44<>"Subtotal")*('Fuel Index Calculations'!B23:B44<>"Item Number"))),"") -> 
B186: Individual Costs | C186: =TRANSPOSE(_xlfn._xlws.FILTER('Fuel Index Calculations'!K23:K44,('Fuel Index Calculations'!J23:J44<>0)*('Fuel Index Calculations'!B23:B44<>"Subtotal")*('Fuel Index Calculations'!B23:B44<>"Item Number"))) -> 
B187: Items + Costs | C187: =IF(C185="","",_xlfn.CONCAT(C185," ($",ROUND(C186,2),")")) ->  | D187: =IF(D185="","",_xlfn.CONCAT(D185," ($",ROUND(D186,2),")")) ->  | G187: =IF(G185="","",_xlfn.CONCAT(G185," ($",ROUND(G186,2),")")) -> 
